Directorate,Department,Expenditure Type,Ref.Doc.1,Vendor Name,Expenditure Amount (exc VAT),Payment Date
Assurance,Assurance Management,Training,60009701,PREMIER PEOPLE SOLUTIONS LTD,"1,073.00",08/06/2015
Assurance,Assurance Management,Training,60015293,PREMIER PEOPLE SOLUTIONS LTD,"2,240.00",08/06/2015
Assurance,Assurance Management,Training,60015745,PREMIER PEOPLE SOLUTIONS LTD,800.00,08/06/2015
Assurance,Governance,Advertising,60021470,EXTERION MEDIA (UK) LIMITED,"3,800.00",02/06/2015
Assurance,Governance,Advertising,60021497,EXTERION MEDIA (UK) LIMITED,"1,598.00",02/06/2015
Assurance,Governance,Advertising,60023191,TMP (UK) LTD,"1,067.30",11/06/2015
Assurance,Governance,Equipment and Materials Purcha,60021956,LONDON SITE SERVICES LTD,"10,989.50",04/06/2015
Assurance,Governance,General Office Expenses,40000833,OFFICE DEPOT UK LTD,251.00,11/06/2015
Assurance,Governance,Other Services,60025007,ELECTORAL REFORM SERVICES,"42,720.96",29/06/2015
Assurance,Governance,Other Services,60025023,ELECTORAL REFORM SERVICES,"2,439.07",29/06/2015
Assurance,Governance,Postage,60020450,ROYAL MAIL GROUP LIMITED,881.02,08/06/2015
Assurance,Governance,Postage,60022383,ROYAL MAIL GROUP LIMITED,"6,484.72",01/06/2015
Assurance,Governance,Postage,60022455,ROYAL MAIL GROUP LIMITED,"5,326.20",01/06/2015
Assurance,Governance,Postage,60022857,ROYAL MAIL GROUP LIMITED,"2,510.07",05/06/2015
Assurance,Governance,Postage,60023793,ROYAL MAIL GROUP LIMITED,316.94,15/06/2015
Assurance,Governance,Professional Services,60024435,MIDDLESEX UNIVERSITY,979.69,24/06/2015
Assurance,Governance,Publications,60022142,REDACTED - PERSONAL DATA,350.00,16/06/2015
Assurance,Governance,Publications,60022337,SHAW & SONS LIMITED,558.00,01/06/2015
Assurance,Governance,Publications,60022460,SHAW & SONS LIMITED,"2,044.40",01/06/2015
Assurance,Governance,Rents,60022375,AVENUE HOUSE SERVICES LTD,660.00,01/06/2015
Assurance,Governance,Rents,60022340,BARNET BROOKSIDE METHODIST CHURCH,450.00,01/06/2015
Assurance,Governance,Rents,60022349,BARNET MULTICULTURAL COMMUNITY CENTRE,500.00,01/06/2015
Assurance,Governance,Rents,60023726,CHURCH OF ST MARY MAGDALEN,500.00,12/06/2015
Assurance,Governance,Rents,60022465,CHURCH OF ST PETER-LE-POER,500.00,01/06/2015
Assurance,Governance,Rents,60024008,EDGWARE PCC-ST PETER'S,646.00,23/06/2015
Assurance,Governance,Rents,60024015,EDGWARE PCC-ST PETER'S,975.00,18/06/2015
Assurance,Governance,Rents,60022328,FREEHOLD COMMUNITY ASSOCIATION,600.00,01/06/2015
Assurance,Governance,Rents,60022371,GRASVENOR AVENUE INFANT SCHOOL (ACA,285.00,01/06/2015
Assurance,Governance,Rents,60022474,HADLEY MEMORIAL HALL,352.00,01/06/2015
Assurance,Governance,Rents,60022862,HAMPSTEAD GARDEN SUBURB FELLOWSHIP,500.00,19/06/2015
Assurance,Governance,Rents,60023006,HARVESTER EDGWARE,350.00,05/06/2015
Assurance,Governance,Rents,60022473,LYONSDOWN HALL,990.00,01/06/2015
Assurance,Governance,Rents,60023677,PORTAKABIN LTD,"13,329.60",22/06/2015
Assurance,Governance,Rents,60024906,SAINT AUGUSTINE'S CHURCH,500.00,26/06/2015
Assurance,Governance,Rents,60024926,SARACENS LTD,"42,250.00",30/06/2015
Assurance,Governance,Rents,60022482,ST AGNES CHURCH,750.00,01/06/2015
Assurance,Governance,Rents,60025064,ST MARKS CHURCH BARNET VALE,732.00,26/06/2015
Assurance,Governance,Rents,60022463,THE HYDE CHURCHES,790.00,01/06/2015
Assurance,Governance,Rents,60022295,THE ROYAL BRITISH LEGION,675.00,02/06/2015
Assurance,Governance,Rents,60022397,TRINITY (METHODIST/URC) CHURCH,852.00,01/06/2015
Assurance,Governance,Rents,60024021,TRINITY CHURCH MILL HILL,624.30,17/06/2015
Assurance,Governance,Ttl IT & Comms,60022045,XPRESS SOFTWARE SOLUTIONS LTD,550.00,11/06/2015
Assurance,Internal Audit & CAFT,Other Services,60021309,REDACTED - PERSONAL DATA,800.00,04/06/2015
Assurance,Internal Audit & CAFT,Professional Services,60022001,PRICEWATERHOUSE COOPERS,"4,455.00",10/06/2015
Assurance,Internal Audit & CAFT,Professional Services,60022032,PRICEWATERHOUSE COOPERS,"16,374.00",10/06/2015
Assurance,Internal Audit & CAFT,Professional Services,60022081,PRICEWATERHOUSE COOPERS,"12,818.00",10/06/2015
Assurance,Internal Audit & CAFT,Training,60023763,CIPFA BUSINESS LIMITED,290.00,15/06/2015
Assurance,Internal Audit & CAFT,Training,60022526,PREMIER PEOPLE SOLUTIONS LTD,723.40,18/06/2015
Central Expenses,Central Expenses,Insurance Claims,20021184,AJ TINDALL LTD,312.00,19/06/2015
Central Expenses,Central Expenses,Insurance Claims,20020919,ALTIUS LAW,"3,750.00",12/06/2015
Central Expenses,Central Expenses,Insurance Claims,20021001,AMV LAW,"54,663.45",12/06/2015
Central Expenses,Central Expenses,Insurance Claims,20021294,BERRYMANS LACE MAWER,"1,369.00",24/06/2015
Central Expenses,Central Expenses,Insurance Claims,20021376,CHURCHILL MOTOR CLAIMS,863.62,26/06/2015
Central Expenses,Central Expenses,Insurance Claims,20020631,DAS LAW,"14,500.00",02/06/2015
Central Expenses,Central Expenses,Insurance Claims,20020738,DEPARTMENT FOR WORK & PENSIONS,"1,510.00",05/06/2015
Central Expenses,Central Expenses,Insurance Claims,20021047,DEPARTMENT FOR WORK & PENSIONS,637.00,16/06/2015
Central Expenses,Central Expenses,Insurance Claims,20021183,DEPARTMENT FOR WORK & PENSIONS,627.00,19/06/2015
Central Expenses,Central Expenses,Insurance Claims,20021293,DEPARTMENT FOR WORK & PENSIONS,829.00,23/06/2015
Central Expenses,Central Expenses,Insurance Claims,20021308,DEPARTMENT FOR WORK & PENSIONS,829.00,23/06/2015
Central Expenses,Central Expenses,Insurance Claims,20021380,HODGE JONES + ALLEN SOLICITORS,"5,612.76",26/06/2015
Central Expenses,Central Expenses,Insurance Claims,20021193,HUGHES WALKER SOLICITORS,576.00,19/06/2015
Central Expenses,Central Expenses,Insurance Claims,20021198,HUGHES WALKER SOLICITORS,"1,734.72",19/06/2015
Central Expenses,Central Expenses,Insurance Claims,20021200,IRWIN MITCHELL,614.00,19/06/2015
Central Expenses,Central Expenses,Insurance Claims,20021181,KINGS SOLICITORS,"2,184.00",19/06/2015
Central Expenses,Central Expenses,Insurance Claims,20020665,LONDON WASTE LTD,"2,587.77",26/06/2015
Central Expenses,Central Expenses,Insurance Claims,20021339,MAGNA ACCIDENT SERVICES,560.88,25/06/2015
Central Expenses,Central Expenses,Insurance Claims,20021292,MEDICAL AND PROFESIONAL SERVICES LTD,528.00,23/06/2015
Central Expenses,Central Expenses,Insurance Claims,20020684,QUINDELL LEGAL SERVICES LTD,"11,900.00",02/06/2015
Central Expenses,Central Expenses,Insurance Claims,20020659,R S A,909.53,02/06/2015
Central Expenses,Central Expenses,Insurance Claims,20020647,SCOTT REES & CO,500.00,02/06/2015
Central Expenses,Central Expenses,Insurance Claims,20021051,SCOTT REES & CO. SOLICITORS,720.00,16/06/2015
Central Expenses,Central Expenses,Insurance Claims,60019161,THE BARNETGROUP LIMITED,"2,957.00",08/06/2015
Central Expenses,Central Expenses,Insurance Claims,60019188,THE BARNETGROUP LIMITED,"3,066.33",08/06/2015
Central Expenses,Central Expenses,Insurance Claims,60023782,TREESUBS LTD,"9,545.00",15/06/2015
Central Expenses,Central Expenses,Insurance Claims,20021055,UK INSURANCE LTD,300.00,16/06/2015
Central Expenses,Central Expenses,Insurance Claims,20021186,WARING + CO SOLICITORS,"22,500.00",19/06/2015
Central Expenses,Central Expenses,Insurance Claims,20020731,WILKIN CHAPMAN LLP,"12,000.00",05/06/2015
Central Expenses,Central Expenses,Joint Authorities - Third Part,60018924,LONDON BOROUGH OF HARINGEY,"26,130.84",12/06/2015
Central Expenses,Central Expenses,Joint Authorities - Third Part,EBX0067041,NORTH LONDON WASTE AUTHORITY,"894,643.00",26/06/2015
Central Expenses,Central Expenses,Other Establishments - Third P,EBX0065804,ENVIRONMENT AGENCY,"75,627.75",23/06/2015
Central Expenses,Central Expenses,Other Establishments - Third P,EBX0064446,LEE VALLEY REGIONAL PARK AUTH.,"33,052.02",16/06/2015
Central Expenses,Central Expenses,Other Establishments - Third P,60025016,LONDON COUNCILS,"8,674.00",29/06/2015
Central Expenses,Central Expenses,Other Establishments - Third P,EBX0065484,LONDON PENSIONS FUND AUTHORITY,"50,154.80",22/06/2015
Central Expenses,Central Expenses,Subscriptions,60023678,LONDON COUNCILS,"32,734.00",15/06/2015
Central Expenses,Central Expenses,Subscriptions,60023717,LONDON COUNCILS,"109,739.00",15/06/2015
Commercial,Customer Support Group,Building Repairs & Maintenance,60016804,AJS LTD,312.50,11/06/2015
Commercial,Customer Support Group,Building Repairs & Maintenance,60024704,DOORWAY-MAINTENANCE CO.,810.00,29/06/2015
Commercial,Customer Support Group,Building Repairs & Maintenance,60024001,DORMA UK LTD,479.31,17/06/2015
Commercial,Customer Support Group,Building Repairs & Maintenance,60023752,EARLSWOOD INDUSTRIAL SVCS LTD,"1,064.00",26/06/2015
Commercial,Customer Support Group,Building Repairs & Maintenance,60013745,LEE SECURITY LONDON LIMITED,977.00,09/06/2015
Commercial,Customer Support Group,Building Repairs & Maintenance,60018088,LEE SECURITY LONDON LIMITED,766.00,09/06/2015
Commercial,Customer Support Group,Building Repairs & Maintenance,60022687,LIFT & ENGINEERING SERVICES LTD,"2,572.00",18/06/2015
Commercial,Customer Support Group,Building Repairs & Maintenance,60022694,LIFT & ENGINEERING SERVICES LTD,321.00,18/06/2015
Commercial,Customer Support Group,Building Repairs & Maintenance,60021152,O KAN,250.00,08/06/2015
Commercial,Customer Support Group,Building Repairs & Maintenance,60016535,OAKRAY LIMITED,409.50,29/06/2015
Commercial,Customer Support Group,Building Repairs & Maintenance,60016555,OAKRAY LIMITED,650.89,12/06/2015
Commercial,Customer Support Group,Building Repairs & Maintenance,60016647,OAKRAY LIMITED,783.00,29/06/2015
Commercial,Customer Support Group,Building Repairs & Maintenance,60024230,OAKRAY LIMITED,522.12,19/06/2015
Commercial,Customer Support Group,Building Repairs & Maintenance,60024240,OAKRAY LIMITED,"1,989.99",19/06/2015
Commercial,Customer Support Group,Building Repairs & Maintenance,60024250,OAKRAY LIMITED,300.00,19/06/2015
Commercial,Customer Support Group,Building Repairs & Maintenance,60020429,REDACTED - PERSONAL DATA,450.00,08/06/2015
Commercial,Customer Support Group,Building Repairs & Maintenance,60020109,RGE SERVICES,427.53,03/06/2015
Commercial,Customer Support Group,Building Repairs & Maintenance,60022568,RGE SERVICES,256.76,26/06/2015
Commercial,Customer Support Group,Building Repairs & Maintenance,60023108,RM COUNTRYSIDE SERVICES LTD,"2,572.00",10/06/2015
Commercial,Customer Support Group,Building Repairs & Maintenance,60008792,S W BRUCE & CO LTD,484.70,30/06/2015
Commercial,Customer Support Group,Building Repairs & Maintenance,60021322,S W BRUCE & CO LTD,808.90,11/06/2015
Commercial,Customer Support Group,Building Repairs & Maintenance,60021345,S W BRUCE & CO LTD,"2,019.59",11/06/2015
Commercial,Customer Support Group,Building Repairs & Maintenance,60021347,S W BRUCE & CO LTD,521.64,11/06/2015
Commercial,Customer Support Group,Building Repairs & Maintenance,60021601,S W BRUCE & CO LTD,364.05,15/06/2015
Commercial,Customer Support Group,Building Repairs & Maintenance,60021658,S W BRUCE & CO LTD,547.19,15/06/2015
Commercial,Customer Support Group,Building Repairs & Maintenance,60021973,S W BRUCE & CO LTD,470.42,17/06/2015
Commercial,Customer Support Group,Building Repairs & Maintenance,60022043,S W BRUCE & CO LTD,385.84,17/06/2015
Commercial,Customer Support Group,Building Repairs & Maintenance,60022049,S W BRUCE & CO LTD,252.33,17/06/2015
Commercial,Customer Support Group,Building Repairs & Maintenance,60022086,S W BRUCE & CO LTD,250.00,17/06/2015
Commercial,Customer Support Group,Building Repairs & Maintenance,60022096,S W BRUCE & CO LTD,668.16,17/06/2015
Commercial,Customer Support Group,Building Repairs & Maintenance,60022196,S W BRUCE & CO LTD,251.41,18/06/2015
Commercial,Customer Support Group,Building Repairs & Maintenance,60022210,S W BRUCE & CO LTD,"12,126.50",18/06/2015
Commercial,Customer Support Group,Building Repairs & Maintenance,60022238,S W BRUCE & CO LTD,"3,195.55",18/06/2015
Commercial,Customer Support Group,Building Repairs & Maintenance,60022281,S W BRUCE & CO LTD,275.00,18/06/2015
Commercial,Customer Support Group,Building Repairs & Maintenance,60022309,S W BRUCE & CO LTD,300.00,18/06/2015
Commercial,Customer Support Group,Building Repairs & Maintenance,60022941,SECOM PLC,"1,340.96",05/06/2015
Commercial,Customer Support Group,Building Repairs & Maintenance,60022990,SECOM PLC,457.23,05/06/2015
Commercial,Customer Support Group,Building Repairs & Maintenance,60023100,TECHNICAL SURFACES LTD,395.00,08/06/2015
Commercial,Customer Support Group,Building Repairs & Maintenance,60023134,TECHNICAL SURFACES LTD,498.75,08/06/2015
Commercial,Customer Support Group,Building Repairs & Maintenance,60023155,TECHNICAL SURFACES LTD,345.00,08/06/2015
Commercial,Customer Support Group,Building Repairs & Maintenance,60023796,WINTERS HAULAGE LTD,450.00,15/06/2015
Commercial,Customer Support Group,Cleaning and domestic material,60014355,CHURCHILL CONTRACT SERVICES,607.85,08/06/2015
Commercial,Customer Support Group,Cleaning and domestic material,60014379,CHURCHILL CONTRACT SERVICES,381.08,08/06/2015
Commercial,Customer Support Group,Cleaning and domestic material,60018567,CHURCHILL CONTRACT SERVICES,607.85,08/06/2015
Commercial,Customer Support Group,Cleaning and domestic material,60020641,CHURCHILL CONTRACT SERVICES,276.52,17/06/2015
Commercial,Customer Support Group,Cleaning and domestic material,60020645,CHURCHILL CONTRACT SERVICES,"1,527.49",11/06/2015
Commercial,Customer Support Group,Cleaning and domestic material,60020651,CHURCHILL CONTRACT SERVICES,367.88,17/06/2015
Commercial,Customer Support Group,Cleaning and domestic material,60020658,CHURCHILL CONTRACT SERVICES,647.01,17/06/2015
Commercial,Customer Support Group,Cleaning and domestic material,60020659,CHURCHILL CONTRACT SERVICES,607.85,17/06/2015
Commercial,Customer Support Group,Cleaning and domestic material,60020663,CHURCHILL CONTRACT SERVICES,367.88,17/06/2015
Commercial,Customer Support Group,Cleaning and domestic material,60020666,CHURCHILL CONTRACT SERVICES,367.88,17/06/2015
Commercial,Customer Support Group,Cleaning and domestic material,60020667,CHURCHILL CONTRACT SERVICES,367.88,17/06/2015
Commercial,Customer Support Group,Cleaning and domestic material,60020672,CHURCHILL CONTRACT SERVICES,570.36,17/06/2015
Commercial,Customer Support Group,Cleaning and domestic material,60020678,CHURCHILL CONTRACT SERVICES,"3,458.58",17/06/2015
Commercial,Customer Support Group,Cleaning and domestic material,60020691,CHURCHILL CONTRACT SERVICES,644.40,17/06/2015
Commercial,Customer Support Group,Cleaning and domestic material,60020713,CHURCHILL CONTRACT SERVICES,367.88,17/06/2015
Commercial,Customer Support Group,Cleaning and domestic material,60020716,CHURCHILL CONTRACT SERVICES,475.72,18/06/2015
Commercial,Customer Support Group,Cleaning and domestic material,60020722,CHURCHILL CONTRACT SERVICES,"7,809.56",17/06/2015
Commercial,Customer Support Group,Cleaning and domestic material,60020730,CHURCHILL CONTRACT SERVICES,"8,132.77",18/06/2015
Commercial,Customer Support Group,Cleaning and domestic material,60020749,CHURCHILL CONTRACT SERVICES,"1,103.65",17/06/2015
Commercial,Customer Support Group,Cleaning and domestic material,60020764,CHURCHILL CONTRACT SERVICES,417.21,11/06/2015
Commercial,Customer Support Group,Cleaning and domestic material,60020766,CHURCHILL CONTRACT SERVICES,367.88,18/06/2015
Commercial,Customer Support Group,Cleaning and domestic material,60020774,CHURCHILL CONTRACT SERVICES,313.51,18/06/2015
Commercial,Customer Support Group,Cleaning and domestic material,60020775,CHURCHILL CONTRACT SERVICES,"1,627.48",18/06/2015
Commercial,Customer Support Group,Cleaning and domestic material,60020809,CHURCHILL CONTRACT SERVICES,440.98,17/06/2015
Commercial,Customer Support Group,Cleaning and domestic material,60020812,CHURCHILL CONTRACT SERVICES,598.72,17/06/2015
Commercial,Customer Support Group,Cleaning and domestic material,60022704,CHURCHILL CONTRACT SERVICES,320.00,18/06/2015
Commercial,Customer Support Group,Cleaning and domestic material,60023160,CHURCHILL CONTRACT SERVICES,598.72,29/06/2015
Commercial,Customer Support Group,Cleaning and domestic material,60023172,CHURCHILL CONTRACT SERVICES,570.36,29/06/2015
Commercial,Customer Support Group,Cleaning and domestic material,60023177,CHURCHILL CONTRACT SERVICES,"3,458.58",29/06/2015
Commercial,Customer Support Group,Cleaning and domestic material,60023182,CHURCHILL CONTRACT SERVICES,"1,103.65",29/06/2015
Commercial,Customer Support Group,Cleaning and domestic material,60023183,CHURCHILL CONTRACT SERVICES,644.40,29/06/2015
Commercial,Customer Support Group,Cleaning and domestic material,60023194,CHURCHILL CONTRACT SERVICES,607.85,29/06/2015
Commercial,Customer Support Group,Cleaning and domestic material,60023202,CHURCHILL CONTRACT SERVICES,"8,132.77",29/06/2015
Commercial,Customer Support Group,Cleaning and domestic material,60023207,CHURCHILL CONTRACT SERVICES,276.52,29/06/2015
Commercial,Customer Support Group,Cleaning and domestic material,60023209,CHURCHILL CONTRACT SERVICES,475.72,29/06/2015
Commercial,Customer Support Group,Cleaning and domestic material,60023212,CHURCHILL CONTRACT SERVICES,367.88,29/06/2015
Commercial,Customer Support Group,Cleaning and domestic material,60023214,CHURCHILL CONTRACT SERVICES,367.88,29/06/2015
Commercial,Customer Support Group,Cleaning and domestic material,60023215,CHURCHILL CONTRACT SERVICES,417.21,29/06/2015
Commercial,Customer Support Group,Cleaning and domestic material,60023218,CHURCHILL CONTRACT SERVICES,647.01,29/06/2015
Commercial,Customer Support Group,Cleaning and domestic material,60023220,CHURCHILL CONTRACT SERVICES,367.88,29/06/2015
Commercial,Customer Support Group,Cleaning and domestic material,60023240,CHURCHILL CONTRACT SERVICES,367.88,29/06/2015
Commercial,Customer Support Group,Cleaning and domestic material,60023245,CHURCHILL CONTRACT SERVICES,367.88,29/06/2015
Commercial,Customer Support Group,Cleaning and domestic material,60023249,CHURCHILL CONTRACT SERVICES,"1,627.48",29/06/2015
Commercial,Customer Support Group,Cleaning and domestic material,60023269,CHURCHILL CONTRACT SERVICES,"1,527.49",29/06/2015
Commercial,Customer Support Group,Cleaning and domestic material,60023303,CHURCHILL CONTRACT SERVICES,"7,809.56",29/06/2015
Commercial,Customer Support Group,Cleaning and domestic material,60023306,CHURCHILL CONTRACT SERVICES,313.51,29/06/2015
Commercial,Customer Support Group,Cleaning and domestic material,60023311,CHURCHILL CONTRACT SERVICES,440.98,29/06/2015
Commercial,Customer Support Group,Cleaning and domestic material,60023320,CHURCHILL CONTRACT SERVICES,367.88,29/06/2015
Commercial,Customer Support Group,Cleaning and domestic material,60023663,CHURCHILL CONTRACT SERVICES,576.00,23/06/2015
Commercial,Customer Support Group,Cleaning and domestic material,60023753,CHURCHILL CONTRACT SERVICES,896.00,23/06/2015
Commercial,Customer Support Group,Cleaning and domestic material,60023448,HERTFORDSHIRE COUNTY COUNCIL,"1,613.40",11/06/2015
Commercial,Customer Support Group,Cleaning and domestic material,60023420,HERTFORDSHIRE SUPPLIES   COUNTY CO,621.75,11/06/2015
Commercial,Customer Support Group,Cleaning and domestic material,60023422,HERTFORDSHIRE SUPPLIES   COUNTY CO,"1,457.82",11/06/2015
Commercial,Customer Support Group,Clothing - Uniforms,60020883,PANORAMIC PROMOTIONS LIMITED,"1,006.35",08/06/2015
Commercial,Customer Support Group,Consultants Fees,60024316,KPMG FEES ACCOUNT,"1,400.00",22/06/2015
Commercial,Customer Support Group,CSG Services Contract Payment,10012361,CAPITA BUSINESS SERVICES LTD,"48,974.34",02/06/2015
Commercial,Customer Support Group,CSG Services Contract Payment,10012362,CAPITA BUSINESS SERVICES LTD,"35,698.23",12/06/2015
Commercial,Customer Support Group,CSG Services Contract Payment,10012447,CAPITA BUSINESS SERVICES LTD,"6,612,754.00",10/06/2015
Commercial,Customer Support Group,CSG Services Contract Payment,10012448,CAPITA BUSINESS SERVICES LTD,"95,562.00",10/06/2015
Commercial,Customer Support Group,CSG Services Contract Payment,10012449,CAPITA BUSINESS SERVICES LTD,"85,735.00",10/06/2015
Commercial,Customer Support Group,CSG Services Contract Payment,10012490,CAPITA BUSINESS SERVICES LTD,"242,615.87",24/06/2015
Commercial,Customer Support Group,CSG Services Contract Payment,10012491,CAPITA BUSINESS SERVICES LTD,"111,568.00",24/06/2015
Commercial,Customer Support Group,CSG Services Contract Payment,10012492,CAPITA BUSINESS SERVICES LTD,"-99,296.28",24/06/2015
Commercial,Customer Support Group,CSG Services Contract Payment,10012493,CAPITA BUSINESS SERVICES LTD,"-183,651.75",24/06/2015
Commercial,Customer Support Group,Electricity,60022876,KENT COUNTY COUNCIL (KCS),"1,172.82",05/06/2015
Commercial,Customer Support Group,Electricity,60022952,KENT COUNTY COUNCIL (KCS),"5,095.75",05/06/2015
Commercial,Customer Support Group,Electricity,60023239,KENT COUNTY COUNCIL (KCS),"7,081.70",12/06/2015
Commercial,Customer Support Group,Electricity,60025100,KENT COUNTY COUNCIL (KCS),"5,208.37",30/06/2015
Commercial,Customer Support Group,Equipment and Materials Purcha,60023686,SM ELECTRICAL SERVICES,"1,220.00",15/06/2015
Commercial,Customer Support Group,Gas,60024017,COMER PROPERTY MANAGEMENT,"38,928.05",17/06/2015
Commercial,Customer Support Group,Gas,60021357,KENT COUNTY COUNCIL (KCS),354.94,01/06/2015
Commercial,Customer Support Group,Gas,60021430,KENT COUNTY COUNCIL (KCS),385.40,01/06/2015
Commercial,Customer Support Group,Gas,60021460,KENT COUNTY COUNCIL (KCS),264.56,01/06/2015
Commercial,Customer Support Group,Gas,60021486,KENT COUNTY COUNCIL (KCS),820.50,01/06/2015
Commercial,Customer Support Group,Gas,60022872,KENT COUNTY COUNCIL (KCS),"4,736.74",05/06/2015
Commercial,Customer Support Group,Gas,60022877,KENT COUNTY COUNCIL (KCS),812.99,05/06/2015
Commercial,Customer Support Group,Gas,60022889,KENT COUNTY COUNCIL (KCS),418.12,05/06/2015
Commercial,Customer Support Group,Gas,60022980,KENT COUNTY COUNCIL (KCS),"10,130.06",05/06/2015
Commercial,Customer Support Group,Gas,60023200,KENT COUNTY COUNCIL (KCS),"1,595.46",10/06/2015
Commercial,Customer Support Group,Gas,60024264,KENT COUNTY COUNCIL (KCS),"3,286.85",29/06/2015
Commercial,Customer Support Group,Gas,60024269,KENT COUNTY COUNCIL (KCS),"8,592.70",29/06/2015
Commercial,Customer Support Group,Gas,60024354,KENT COUNTY COUNCIL (KCS),701.01,29/06/2015
Commercial,Customer Support Group,General Office Expenses,20020971,REDACTED - PERSONAL DATA,250.00,15/06/2015
Commercial,Customer Support Group,Operational Leases - Equipment,60023672,ROYAL MAIL GROUP LIMITED,"10,856.79",15/06/2015
Commercial,Customer Support Group,Operational Leases - Equipment,60021966,XEROX (UK) LTD,"3,549.92",05/06/2015
Commercial,Customer Support Group,Other Energy,60024042,DEPARTMENT OF ENERGY & CLIMATE CHAN,"230,085.10",26/06/2015
Commercial,Customer Support Group,Other Services,60023059,BLUE 9 SECURITY LIMITED,891.75,10/06/2015
Commercial,Customer Support Group,Other Services,60023062,BLUE 9 SECURITY LIMITED,"1,777.50",10/06/2015
Commercial,Customer Support Group,Other Services,60023139,BLUE 9 SECURITY LIMITED,"14,728.00",10/06/2015
Commercial,Customer Support Group,Other Services,60023154,BLUE 9 SECURITY LIMITED,"21,281.50",10/06/2015
Commercial,Customer Support Group,Other Services,60025042,COMER PROPERTY MANAGEMENT,"14,004.72",29/06/2015
Commercial,Customer Support Group,Postage,60021220,ROYAL MAIL GROUP LIMITED,"13,084.86",18/06/2015
Commercial,Customer Support Group,Postage,60021234,ROYAL MAIL GROUP LIMITED,"18,443.26",18/06/2015
Commercial,Customer Support Group,Postage,60023694,ROYAL MAIL GROUP LIMITED,"14,268.53",15/06/2015
Commercial,Customer Support Group,Postage,60023762,ROYAL MAIL GROUP LIMITED,"8,520.53",24/06/2015
Commercial,Customer Support Group,Postage,60024151,ROYAL MAIL GROUP LIMITED,"16,668.56",18/06/2015
Commercial,Customer Support Group,Postage,60024191,ROYAL MAIL GROUP LIMITED,"8,037.93",19/06/2015
Commercial,Customer Support Group,Postage,60024627,ROYAL MAIL GROUP LIMITED,"14,054.16",26/06/2015
Commercial,Customer Support Group,Rents,60024847,CANAL & RIVER TRUST,"2,000.00",26/06/2015
Commercial,Customer Support Group,Rents,60022967,DANCASTLE ASSOCIATES LIMITED,"186,250.00",10/06/2015
Commercial,Customer Support Group,Rents,60023020,RIDGELAND PROPERTIES LTD,"524,456.16",11/06/2015
Commercial,Customer Support Group,Rents,60023119,RIDGELAND PROPERTIES LTD,"10,894.01",11/06/2015
Commercial,Customer Support Group,Water Services,60024305,AFFINITY WATER LIMITED,258.90,30/06/2015
Commercial,HRA,Consultants Fees,60021065,PRIORITY ESTATES PROJECT LTD,"1,327.15",04/06/2015
Commercial,HRA,Consultants Fees,60021120,PRIORITY ESTATES PROJECT LTD,"1,362.07",04/06/2015
Commercial,HRA,Consultants Fees,60008419,STRATEGIC URBAN FUTURES LIMITED,586.63,30/06/2015
Commercial,HRA,Consultants Fees,60020535,THE BARNETGROUP LIMITED,"128,589.16",02/06/2015
Commercial,HRA,Consultants Fees,60021807,TROWERS & HAMLINS,650.00,04/06/2015
Commercial,HRA,Consultants Fees,60021821,TROWERS & HAMLINS,"1,247.00",04/06/2015
Commercial,HRA,Consultants Fees,60024565,TROWERS & HAMLINS,"1,006.10",24/06/2015
Commercial,HRA,Other Services,60024736,THE BARNETGROUP LIMITED,"40,000.00",25/06/2015
Commercial,HRA,Other Transfer Payments,20021079,REDACTED - PERSONAL DATA,"2,450.00",17/06/2015
Commercial,HRA,Other Transfer Payments,20021080,REDACTED - PERSONAL DATA,"2,450.00",17/06/2015
Commercial,HRA,Other Transfer Payments,20021081,REDACTED - PERSONAL DATA,"2,450.00",17/06/2015
Commercial,HRA,Other Transfer Payments,20021082,REDACTED - PERSONAL DATA,"2,450.00",17/06/2015
Commercial,HRA,Other Transfer Payments,20021083,REDACTED - PERSONAL DATA,"2,450.00",17/06/2015
Commercial,HRA,Other Transfer Payments,20021084,REDACTED - PERSONAL DATA,"2,450.00",17/06/2015
Commercial,HRA,Other Transfer Payments,20021085,REDACTED - PERSONAL DATA,"2,450.00",17/06/2015
Commercial,HRA,Other Transfer Payments,20021086,REDACTED - PERSONAL DATA,"2,450.00",17/06/2015
Commercial,HRA,Other Transfer Payments,20021439,REDACTED - PERSONAL DATA,"2,322.00",26/06/2015
Commercial,HRA,Other Transfer Payments,20021441,REDACTED - PERSONAL DATA,"2,450.00",26/06/2015
Commercial,HRA,Other Transfer Payments,20021443,REDACTED - PERSONAL DATA,"2,450.00",26/06/2015
Commercial,HRA,Other Transfer Payments,20021505,REDACTED - PERSONAL DATA,"2,450.00",30/06/2015
Commercial,HRA,Other Transfer Payments,20021506,REDACTED - PERSONAL DATA,"1,766.70",30/06/2015
Commercial,HRA,Other Transfer Payments,20021507,REDACTED - PERSONAL DATA,"2,450.00",30/06/2015
Commercial,HRA,Other Transfer Payments,20021508,REDACTED - PERSONAL DATA,"2,450.00",30/06/2015
Commercial,HRA,Water Services,10012475,AFFINITY WATER LIMITED,"12,513.44",19/06/2015
Commercial,HRA,Water Services,10012476,AFFINITY WATER LIMITED,"775,775.68",19/06/2015
Commercial,HRA,Water Services,10012477,AFFINITY WATER LIMITED,"831,622.93",19/06/2015
Commercial,HRA,Water Services,10012478,AFFINITY WATER LIMITED,292.86,19/06/2015
Commercial,Parking & Infrastructure,Electricity,60022733,BARNET LIGHTING SERVICES LTD,"478,032.92",10/06/2015
Commercial,Parking & Infrastructure,Electricity,60022073,LIGHTING REALITY LIMITED,440.00,15/06/2015
Commercial,Parking & Infrastructure,Equipment and Materials Purcha,60023660,ASD METAL SERVICES,512.40,15/06/2015
Commercial,Parking & Infrastructure,Equipment and Materials Purcha,60024218,ASD METAL SERVICES,"3,525.90",19/06/2015
Commercial,Parking & Infrastructure,Equipment and Materials Purcha,60024570,ASD METAL SERVICES,300.00,24/06/2015
Commercial,Parking & Infrastructure,Equipment and Materials Purcha,60020425,COBURN SERVICES LTD,886.80,29/06/2015
Commercial,Parking & Infrastructure,Equipment and Materials Purcha,60021426,COBURN SERVICES LTD,"1,113.00",04/06/2015
Commercial,Parking & Infrastructure,Equipment and Materials Purcha,60023764,COBURN SERVICES LTD,"1,113.00",15/06/2015
Commercial,Parking & Infrastructure,Equipment and Materials Purcha,60023780,COBURN SERVICES LTD,"1,113.00",23/06/2015
Commercial,Parking & Infrastructure,Equipment and Materials Purcha,60022370,COLAS LTD,"1,836.00",04/06/2015
Commercial,Parking & Infrastructure,Equipment and Materials Purcha,60021447,CONWAY AECOM LTD,"6,679.14",12/06/2015
Commercial,Parking & Infrastructure,Equipment and Materials Purcha,60021485,GREENHAM TRADING LIMITED,371.70,04/06/2015
Commercial,Parking & Infrastructure,Equipment and Materials Purcha,60022725,GREENHAM TRADING LIMITED,747.50,18/06/2015
Commercial,Parking & Infrastructure,Equipment and Materials Purcha,60022773,GREENHAM TRADING LIMITED,348.27,18/06/2015
Commercial,Parking & Infrastructure,Equipment and Materials Purcha,60023697,GREENHAM TRADING LIMITED,278.34,16/06/2015
Commercial,Parking & Infrastructure,Equipment and Materials Purcha,60021256,LAFARGE TARMAC TRADING LIMITED,382.14,04/06/2015
Commercial,Parking & Infrastructure,Equipment and Materials Purcha,60021830,RENNICK UK LTD,378.40,10/06/2015
Commercial,Parking & Infrastructure,Equipment and Materials Purcha,60023280,SPANDEX LIMITED,353.11,29/06/2015
Commercial,Parking & Infrastructure,Equipment and Materials Purcha,60023790,WM SMITH & SONS LIMITED,481.26,15/06/2015
Commercial,Parking & Infrastructure,Equipment and Materials Purcha,60024367,WM SMITH & SONS LIMITED,"1,070.61",23/06/2015
Commercial,Parking & Infrastructure,Equipment and Materials Purcha,60024419,WM SMITH & SONS LIMITED,826.00,23/06/2015
Commercial,Parking & Infrastructure,Legal and Court Fees,20020693,REDACTED - PERSONAL DATA,307.00,05/06/2015
Commercial,Parking & Infrastructure,Miscellaneous Expenses,60018807,LONDON COUNCILS,"9,506.00",01/06/2015
Commercial,Parking & Infrastructure,Miscellaneous Expenses,60022024,PARKEON LIMITED,"2,194.48",16/06/2015
Commercial,Parking & Infrastructure,Miscellaneous Expenses,60022048,PARKEON LIMITED,"7,375.00",16/06/2015
Commercial,Parking & Infrastructure,Miscellaneous Expenses,60022509,PARKEON LIMITED,796.50,18/06/2015
Commercial,Parking & Infrastructure,Other Services,60021053,LONDON COUNCILS,"6,671.00",04/06/2015
Commercial,Parking & Infrastructure,Other Services,60022699,LONDON COUNCILS,"1,500.00",05/06/2015
Commercial,Parking & Infrastructure,Other Services,60024202,NSL LTD,709.35,22/06/2015
Commercial,Parking & Infrastructure,Professional Services,60023671,NSL LTD,"218,032.31",16/06/2015
Commercial,Parking & Infrastructure,Professional Services,60023709,NSL LTD,"16,559.28",18/06/2015
Commercial,Parking & Infrastructure,Professional Services,60023728,NSL LTD,"12,419.46",18/06/2015
Commercial,Parking & Infrastructure,Software Licences & Support,60023222,NSL LTD,"5,642.70",12/06/2015
Commercial,Parking & Infrastructure,Software Licences & Support,60023392,NSL LTD,"2,896.14",12/06/2015
Commercial,Parking & Infrastructure,Software Licences & Support,60023681,NSL LTD,"29,795.93",15/06/2015
Commercial,Parking & Infrastructure,Software Licences & Support,60024223,NSL LTD,"4,194.95",22/06/2015
Commercial,Parking & Infrastructure,Subscriptions,60022215,BRITISH PARKING ASSOCIATION,"1,087.00",16/06/2015
Commercial,Parking & Infrastructure,Training,60022573,PREMIER PEOPLE SOLUTIONS LTD,682.50,29/06/2015
Commercial,Parking & Infrastructure,Training,60023198,PREMIER PEOPLE SOLUTIONS LTD,-682.50,29/06/2015
Commercial,Public Health,Health authorities - Third Par,10012337,LONDON BOROUGH OF HARROW,"2,269,764.00",08/06/2015
Commercial,Regional Enterprise,Consultants Fees,20021139,ANTHONY COLLINS SOLICITORS LLP,"9,000.00",19/06/2015
Commercial,Regional Enterprise,Consultants Fees,60024469,EVERSHEDS LLP,"17,249.37",24/06/2015
Commercial,Regional Enterprise,Consultants Fees,60024609,EVERSHEDS LLP,"68,542.03",24/06/2015
Commercial,Regional Enterprise,Consultants Fees,60024611,EVERSHEDS LLP,"23,775.00",24/06/2015
Commercial,Regional Enterprise,Consultants Fees,60024939,EVERSHEDS LLP,856.83,29/06/2015
Commercial,Regional Enterprise,Consultants Fees,10012479,NORTH LONDON ESTATE PARTNERSHIPS LTD,"12,213.25",26/06/2015
Commercial,Regional Enterprise,Consultants Fees,60024590,PRIORITY ESTATES PROJECT LTD,"1,387.92",24/06/2015
Commercial,Regional Enterprise,Consultants Fees,60024652,THE BARNETGROUP LIMITED,"72,120.00",25/06/2015
Commercial,Regional Enterprise,Equipment and Materials Purcha,20021265,REDACTED - PERSONAL DATA,"1,225.00",23/06/2015
Commercial,Regional Enterprise,Fees and Charges,20021417,REDACTED - PERSONAL DATA,300.00,26/06/2015
Commercial,Regional Enterprise,Grant Payments,20020974,AMWELL CONSTRUCTION LTD,429.12,15/06/2015
Commercial,Regional Enterprise,Grant Payments,20020975,AMWELL CONSTRUCTION LTD,252.00,15/06/2015
Commercial,Regional Enterprise,Grant Payments,20020990,AMWELL CONSTRUCTION LTD,"5,996.40",15/06/2015
Commercial,Regional Enterprise,Grant Payments,20021121,CAPITAL  LOCKSMITHS,336.48,18/06/2015
Commercial,Regional Enterprise,Grant Payments,20021122,CAPITAL  LOCKSMITHS,290.40,18/06/2015
Commercial,Regional Enterprise,Grant Payments,20021123,CAPITAL  LOCKSMITHS,363.60,18/06/2015
Commercial,Regional Enterprise,Grant Payments,20021124,CAPITAL  LOCKSMITHS,351.00,18/06/2015
Commercial,Regional Enterprise,Grant Payments,20021230,CAPITAL  LOCKSMITHS,324.00,23/06/2015
Commercial,Regional Enterprise,Grant Payments,20021232,CAPITAL  LOCKSMITHS,306.60,23/06/2015
Commercial,Regional Enterprise,Grant Payments,20021233,CAPITAL  LOCKSMITHS,355.20,23/06/2015
Commercial,Regional Enterprise,Grant Payments,20021563,H D PROPERTY SERVICES LTD,943.00,30/06/2015
Commercial,Regional Enterprise,Grant Payments,20020815,MCP PROPERTY SERVICES LTD,"7,050.00",10/06/2015
Commercial,Regional Enterprise,Grant Payments,20020816,MCP PROPERTY SERVICES LTD,"2,388.75",10/06/2015
Commercial,Regional Enterprise,Grant Payments,20020999,REDACTED - PERSONAL DATA,"2,084.25",15/06/2015
Commercial,Regional Enterprise,Grant Payments,20021503,REDACTED - PERSONAL DATA,"3,749.00",30/06/2015
Commercial,Regional Enterprise,Grant Payments,20021009,ROYSTON-HART LIMITED,"3,495.45",15/06/2015
Commercial,Regional Enterprise,Legal and Court Fees,60021776,LOCAL GOVERNMENT ASSOCIATION,"2,010.36",17/06/2015
Commercial,Regional Enterprise,Legal and Court Fees,20021056,NEWLANDS NW4 LTD,"8,500.00",16/06/2015
Commercial,Regional Enterprise,Other Services,10012450,CONWAY AECOM LTD,-733.67,10/06/2015
Commercial,Regional Enterprise,Other Services,10012451,CONWAY AECOM LTD,"-1,947.85",10/06/2015
Commercial,Regional Enterprise,Other Services,10012452,CONWAY AECOM LTD,-781.24,10/06/2015
Commercial,Regional Enterprise,Other Services,60006205,CONWAY AECOM LTD,900.00,08/06/2015
Commercial,Regional Enterprise,Other Services,60016154,CONWAY AECOM LTD,-864.00,26/06/2015
Commercial,Regional Enterprise,Other Services,60019616,CONWAY AECOM LTD,"1,063.44",04/06/2015
Commercial,Regional Enterprise,Other Services,60021520,CONWAY AECOM LTD,911.52,10/06/2015
Commercial,Regional Enterprise,Other Services,60021523,CONWAY AECOM LTD,712.13,10/06/2015
Commercial,Regional Enterprise,Other Services,60021551,CONWAY AECOM LTD,"1,417.92",10/06/2015
Commercial,Regional Enterprise,Other Services,60021572,CONWAY AECOM LTD,"1,367.28",08/06/2015
Commercial,Regional Enterprise,Other Services,60021573,CONWAY AECOM LTD,"4,873.91",08/06/2015
Commercial,Regional Enterprise,Other Services,60021585,CONWAY AECOM LTD,822.90,10/06/2015
Commercial,Regional Enterprise,Other Services,60021591,CONWAY AECOM LTD,675.75,10/06/2015
Commercial,Regional Enterprise,Other Services,60021625,CONWAY AECOM LTD,531.72,10/06/2015
Commercial,Regional Enterprise,Other Services,60021634,CONWAY AECOM LTD,"65,863.67",08/06/2015
Commercial,Regional Enterprise,Other Services,60021639,CONWAY AECOM LTD,"4,702.34",08/06/2015
Commercial,Regional Enterprise,Other Services,60021646,CONWAY AECOM LTD,"1,484.39",10/06/2015
Commercial,Regional Enterprise,Other Services,60021656,CONWAY AECOM LTD,464.20,10/06/2015
Commercial,Regional Enterprise,Other Services,60021661,CONWAY AECOM LTD,"1,772.40",10/06/2015
Commercial,Regional Enterprise,Other Services,60021662,CONWAY AECOM LTD,"16,207.78",08/06/2015
Commercial,Regional Enterprise,Other Services,60021680,CONWAY AECOM LTD,"7,726.08",10/06/2015
Commercial,Regional Enterprise,Other Services,60021685,CONWAY AECOM LTD,455.76,10/06/2015
Commercial,Regional Enterprise,Other Services,60023223,CONWAY AECOM LTD,"10,339.44",09/06/2015
Commercial,Regional Enterprise,Other Services,60023261,CONWAY AECOM LTD,"3,416.23",09/06/2015
Commercial,Regional Enterprise,Other Services,60023400,CONWAY AECOM LTD,"1,749.00",11/06/2015
Commercial,Regional Enterprise,Other Services,60024828,CONWAY AECOM LTD,"2,019.81",26/06/2015
Commercial,Regional Enterprise,Other Services,60024838,CONWAY AECOM LTD,"9,219.32",26/06/2015
Commercial,Regional Enterprise,Other Services,60024862,CONWAY AECOM LTD,"15,476.41",26/06/2015
Commercial,Regional Enterprise,Other Services,60024621,GROUNDWORK LONDON,"15,900.00",24/06/2015
Commercial,Regional Enterprise,Other Services,60023171,LONDON DRAINAGE ENGINEERING GROUP,"1,000.00",11/06/2015
Commercial,Regional Enterprise,Other Transfer Payments,60017578,WATES LIVING SPACE,"8,734.56",09/06/2015
Commercial,Regional Enterprise,Other Transfer Payments,60022491,WATES LIVING SPACE,929.57,01/06/2015
Commercial,Regional Enterprise,Professional Services,60020514,AFFINITY WATER LIMITED,410.00,09/06/2015
Commercial,Regional Enterprise,Professional Services,10012483,RE (REGIONAL ENTERPRISE) LIMITED,"3,659,252.00",24/06/2015
Commercial,Regional Enterprise,Professional Services,10012485,RE (REGIONAL ENTERPRISE) LIMITED,"50,000.00",24/06/2015
Commercial,Regional Enterprise,Professional Services,10012486,RE (REGIONAL ENTERPRISE) LIMITED,"90,091.35",24/06/2015
Commercial,Regional Enterprise,Professional Services,10012487,RE (REGIONAL ENTERPRISE) LIMITED,"155,500.00",24/06/2015
Commercial,Regional Enterprise,Professional Services,10012488,RE (REGIONAL ENTERPRISE) LIMITED,"-7,000.00",24/06/2015
Commercial,Regional Enterprise,Professional Services,10012489,RE (REGIONAL ENTERPRISE) LIMITED,"-113,100.00",24/06/2015
Commercial,Regional Enterprise,Professional Services,60024916,RE (REGIONAL ENTERPRISE) LIMITED,"2,000.00",30/06/2015
Commercial,Regional Enterprise,Professional Services,60025009,RE (REGIONAL ENTERPRISE) LIMITED,"2,000.00",30/06/2015
Commercial,Regional Enterprise,Professional Services,60025013,RE (REGIONAL ENTERPRISE) LIMITED,"5,683.00",30/06/2015
Commercial,Regional Enterprise,Professional Services,60025052,RE (REGIONAL ENTERPRISE) LIMITED,"12,177.00",30/06/2015
Commercial,Regional Enterprise,Refunds,20021576,DIVINE IDEAS (UK) LTD,250.00,30/06/2015
Commercial,Regional Enterprise,Subscriptions,60020610,RICS,923.00,09/06/2015
Commercial,The Barnet Group,Private Contractors - Third Pa,60024600,THE BARNETGROUP LIMITED,"1,160,000.00",29/06/2015
Commissioning,Commissioning,Advertising,10012357,TMP (UK) LTD,"1,782.05",01/06/2015
Commissioning,Commissioning,Building Repairs & Maintenance,60024273,CLEARWATER TECHNOLOGY LTD,790.00,22/06/2015
Commissioning,Commissioning,Building Repairs & Maintenance,60024298,CLEARWATER TECHNOLOGY LTD,"1,228.00",22/06/2015
Commissioning,Commissioning,Building Repairs & Maintenance,60024662,HERTEL (UK) LTD,390.00,26/06/2015
Commissioning,Commissioning,Building Repairs & Maintenance,60022545,LIFT & ENGINEERING SERVICES LTD,"1,035.00",18/06/2015
Commissioning,Commissioning,Building Repairs & Maintenance,60023918,RGE SERVICES,"2,589.39",26/06/2015
Commissioning,Commissioning,Building Repairs & Maintenance,60023724,T.&.D.BARRS,508.08,15/06/2015
Commissioning,Commissioning,Capital Construction and Works,60022067,ENVIRONMENTAL SCIENTIFICS GROUP (ESG),566.00,04/06/2015
Commissioning,Commissioning,Consultants Fees,60023935,BACTEC INTERNATIONAL LIMITED,"1,075.00",17/06/2015
Commissioning,Commissioning,Consultants Fees,60024287,LONDON WEEKLY NEWSPAPERS LTD,360.00,22/06/2015
Commissioning,Commissioning,Consultants Fees,60022861,MURPHY SURVEYS LIMITED,"2,450.00",26/06/2015
Commissioning,Commissioning,Consultants Fees,60023738,P A CONSULTING SERVICES LTD,"40,600.00",30/06/2015
Commissioning,Commissioning,Consultants Fees,60018750,SKY HIGH TECHNOLOGY LTD,"3,435.00",15/06/2015
Commissioning,Commissioning,Discretionary awards,20020791,FRIERN BARNET COMMUNITY LIBRARY,"2,500.00",10/06/2015
Commissioning,Commissioning,Discretionary awards,20020811,HENDON SEA TRAINING CORPS.,"5,550.00",10/06/2015
Commissioning,Commissioning,Discretionary awards,20021437,LOVE BURNT OAK COMMUNITY RESOURCE & SUPP,"10,000.00",26/06/2015
Commissioning,Commissioning,Discretionary awards,20020790,SOMALI BRAVANESE WELFARE ASSOC.IN BARNET,"9,695.00",10/06/2015
Commissioning,Commissioning,Discretionary awards,20020792,WEST HENDON COMMUNITY GROUP,"7,000.00",26/06/2015
Commissioning,Commissioning,Equipment and Materials Purcha,20021171,REDACTED - PERSONAL DATA,500.00,22/06/2015
Commissioning,Commissioning,Government Contributions,20021333,BARNET & SOUTHGATE COLLEGE,"12,312.00",25/06/2015
Commissioning,Commissioning,Grant Payments,20021096,COMMUNITY BARNET,"14,555.25",18/06/2015
Commissioning,Commissioning,Grant Payments,60023518,COMMUNITY BARNET,"8,750.00",26/06/2015
Commissioning,Commissioning,Grant Payments,60024164,COMMUNITY BARNET,"15,000.00",22/06/2015
Commissioning,Commissioning,Grant Payments,20021301,EAST BARNET COMMUNITY FESTIVAL,"1,500.00",24/06/2015
Commissioning,Commissioning,Grant Payments,20021258,SAAM THEATRE COMPANY,"1,620.00",23/06/2015
Commissioning,Commissioning,Miscellaneous Expenses,20020901,JON SHEAFF AND ASSOCIATES,"8,320.00",11/06/2015
Commissioning,Commissioning,Non Education Staff GPay,60024523,THE BARNETGROUP LIMITED,"21,056.52",25/06/2015
Commissioning,Commissioning,Other Agencies - Third Party P,60024062,BARNET CITIZENS ADVICE BUREAU,"7,811.66",18/06/2015
Commissioning,Commissioning,Other Agencies - Third Party P,60014940,FAMILY FUND TRADING LTD,"5,816.67",04/06/2015
Commissioning,Commissioning,Other Agencies - Third Party P,60017133,FAMILY FUND TRADING LTD,"2,858.33",04/06/2015
Commissioning,Commissioning,Other Agencies - Third Party P,60017140,FAMILY FUND TRADING LTD,"-2,829.17",04/06/2015
Commissioning,Commissioning,Other Agencies - Third Party P,60017398,FAMILY FUND TRADING LTD,"-4,575.29",04/06/2015
Commissioning,Commissioning,Other Agencies - Third Party P,60017459,FAMILY FUND TRADING LTD,"-5,906.59",04/06/2015
Commissioning,Commissioning,Other Agencies - Third Party P,60018710,FAMILY FUND TRADING LTD,"3,408.33",04/06/2015
Commissioning,Commissioning,Other Agencies - Third Party P,60019050,FAMILY FUND TRADING LTD,"2,589.17",04/06/2015
Commissioning,Commissioning,Other Agencies - Third Party P,60019286,FAMILY FUND TRADING LTD,"2,790.84",04/06/2015
Commissioning,Commissioning,Other Agencies - Third Party P,60019581,FAMILY FUND TRADING LTD,"-1,874.81",04/06/2015
Commissioning,Commissioning,Other Agencies - Third Party P,60020496,FAMILY FUND TRADING LTD,567.50,04/06/2015
Commissioning,Commissioning,Other Agencies - Third Party P,60020613,FAMILY FUND TRADING LTD,911.66,04/06/2015
Commissioning,Commissioning,Other Agencies - Third Party P,60021235,FAMILY FUND TRADING LTD,"1,033.33",04/06/2015
Commissioning,Commissioning,Other Agencies - Third Party P,60022130,FAMILY FUND TRADING LTD,"2,660.00",04/06/2015
Commissioning,Commissioning,Other Agencies - Third Party P,60023483,FAMILY FUND TRADING LTD,"2,828.33",12/06/2015
Commissioning,Commissioning,Other Agencies - Third Party P,60023707,FAMILY FUND TRADING LTD,"3,457.50",16/06/2015
Commissioning,Commissioning,Other Services,60023126,4PROJECTS LTD,"1,725.00",11/06/2015
Commissioning,Commissioning,Other Services,60022913,BLUE 9 SECURITY LIMITED,928.00,10/06/2015
Commissioning,Commissioning,Other Services,60022686,IMPOWER CONSULTING LIMITED,"13,810.34",08/06/2015
Commissioning,Commissioning,Other Services,60025055,IMPOWER CONSULTING LIMITED,"33,073.65",30/06/2015
Commissioning,Commissioning,Professional Services,60024753,COMMUNITY BARNET,"8,796.42",25/06/2015
Commissioning,Commissioning,Professional Services,60019555,FAMILY FUND TRADING LTD,"-4,681.54",04/06/2015
Commissioning,Commissioning,Professional Services,60019333,GENERAL DYNAMICS INFORMATION TECHNOLOGY,"3,840.12",08/06/2015
Commissioning,Commissioning,Publications,60022691,REDACTED - PERSONAL DATA,"1,175.00",24/06/2015
Commissioning,Commissioning,Rubbish Collection,60023545,IRON MOUNTAIN (UK) LIMITED,306.00,29/06/2015
Commissioning,Commissioning,Software Licences & Support,60024793,ACCESS INTELLIGENCE MEDIA & COMM.LT,"4,620.00",29/06/2015
Commissioning,Commissioning,Software Licences & Support,60024777,ICASEWORK LTD,"11,400.00",26/06/2015
Commissioning,Commissioning,Software Licences & Support,20020735,INSURANCE DATABASE SERVICES LTD,"1,000.00",05/06/2015
Commissioning,Commissioning,Subscriptions,60019625,CAPITA CONFERENCES,350.00,24/06/2015
Commissioning,Commissioning,Subscriptions,60024974,PDP TRAINING,"1,095.00",29/06/2015
Commissioning,Commissioning,Training,20021012,CROWN COMMERCIAL SERVICE,"2,400.00",16/06/2015
Commissioning,Commissioning,Training,60023813,GRANT THORNTON UK LLP,"9,907.00",26/06/2015
Commissioning,Commissioning,Training,60022558,OCEAN MEDIA GROUP LIMITED,"1,790.00",11/06/2015
Commissioning,Commissioning,Training,60020685,PREMIER PEOPLE SOLUTIONS LTD,635.00,10/06/2015
Commissioning,Commissioning,Transport Hire Charges,20020648,FIREBIRD-ORCHESTRA,600.00,02/06/2015
Commissioning,Commissioning,Transport Hire Charges,20021010,FIREBIRD-ORCHESTRA,600.00,15/06/2015
Commissioning,Commissioning,Ttl IT & Comms,60020037,C A C I LTD,"2,000.00",04/06/2015
Commissioning,Commissioning,Venue Hire,60021056,ARIANA BANQUETING HALL,"7,700.00",04/06/2015
Commissioning,Commissioning,Venue Hire,60021988,ARIANA BANQUETING HALL,"7,770.00",17/06/2015
Commissioning,Commissioning,Water Services,60021524,S W BRUCE & CO LTD,"2,381.88",15/06/2015
Corporate Accounting,Corporate Accounting,Other Agencies - Third Party P,60021415,THE BARNETGROUP LIMITED,"963,252.48",04/06/2015
Corporate Accounting,Corporate Accounting,Other Agencies - Third Party P,60024537,THE BARNETGROUP LIMITED,"2,885,000.00",29/06/2015
Corporate Accounting,Corporate Accounting,Other Local Authorities - Thir,20021091,GREATER LONDON AUTHORITY,"-203,278.08",22/06/2015
Corporate Accounting,Corporate Accounting,Other Local Authorities - Thir,EBX0064061,GREATER LONDON AUTHORITY,"1,847,629.00",11/06/2015
Corporate Accounting,Corporate Accounting,Other Local Authorities - Thir,EBX0065485,GREATER LONDON AUTHORITY,"4,004,237.40",22/06/2015
Corporate Accounting,Corporate Accounting,Other Transfer Payments to Soc,60019824,CITIBANK NA LONDON,"3,093.24",16/06/2015
Corporate Accounting,Corporate Accounting,Other Transfer Payments to Soc,60020829,CITIBANK NA LONDON,400.99,02/06/2015
Corporate Accounting,Corporate Accounting,Other Transfer Payments to Soc,60020878,CITIBANK NA LONDON,"2,962.53",02/06/2015
Corporate Accounting,Corporate Accounting,Other Transfer Payments to Soc,60020882,CITIBANK NA LONDON,"2,798.25",02/06/2015
Corporate Accounting,Corporate Accounting,Other Transfer Payments to Soc,60020893,CITIBANK NA LONDON,"2,023.96",02/06/2015
Corporate Accounting,Corporate Accounting,Other Transfer Payments to Soc,60020900,CITIBANK NA LONDON,371.90,02/06/2015
Corporate Accounting,Corporate Accounting,Other Transfer Payments to Soc,60020915,CITIBANK NA LONDON,"2,338.32",02/06/2015
Corporate Accounting,Corporate Accounting,Other Transfer Payments to Soc,60020933,CITIBANK NA LONDON,767.00,02/06/2015
Corporate Accounting,Corporate Accounting,Other Transfer Payments to Soc,60020940,CITIBANK NA LONDON,480.50,02/06/2015
Corporate Accounting,Corporate Accounting,Other Transfer Payments to Soc,60020957,CITIBANK NA LONDON,300.00,02/06/2015
Corporate Accounting,Corporate Accounting,Other Transfer Payments to Soc,60020970,CITIBANK NA LONDON,"5,420.38",11/06/2015
Corporate Accounting,Corporate Accounting,Other Transfer Payments to Soc,60022234,CITIBANK NA LONDON,250.00,05/06/2015
Corporate Accounting,Corporate Accounting,Other Transfer Payments to Soc,60022252,CITIBANK NA LONDON,476.75,08/06/2015
Corporate Accounting,Corporate Accounting,Other Transfer Payments to Soc,60022377,CITIBANK NA LONDON,"2,082.35",10/06/2015
Corporate Accounting,Corporate Accounting,Other Transfer Payments to Soc,60022385,CITIBANK NA LONDON,"2,509.20",10/06/2015
Corporate Accounting,Corporate Accounting,Other Transfer Payments to Soc,60022414,CITIBANK NA LONDON,"2,288.10",10/06/2015
Corporate Accounting,Corporate Accounting,Other Transfer Payments to Soc,60022440,CITIBANK NA LONDON,370.00,10/06/2015
Corporate Accounting,Corporate Accounting,Other Transfer Payments to Soc,60022446,CITIBANK NA LONDON,450.00,10/06/2015
Corporate Accounting,Corporate Accounting,Other Transfer Payments to Soc,60022471,CITIBANK NA LONDON,"1,073.28",10/06/2015
Corporate Accounting,Corporate Accounting,Other Transfer Payments to Soc,60022906,CITIBANK NA LONDON,587.90,11/06/2015
Corporate Accounting,Corporate Accounting,Other Transfer Payments to Soc,60022929,CITIBANK NA LONDON,250.00,11/06/2015
Corporate Accounting,Corporate Accounting,Other Transfer Payments to Soc,60022974,CITIBANK NA LONDON,250.00,11/06/2015
Corporate Accounting,Corporate Accounting,Other Transfer Payments to Soc,60022982,CITIBANK NA LONDON,339.60,11/06/2015
Corporate Accounting,Corporate Accounting,Other Transfer Payments to Soc,60023016,CITIBANK NA LONDON,357.16,11/06/2015
Corporate Accounting,Corporate Accounting,Other Transfer Payments to Soc,60023583,CITIBANK NA LONDON,350.00,16/06/2015
Corporate Accounting,Corporate Accounting,Other Transfer Payments to Soc,60023591,CITIBANK NA LONDON,504.00,16/06/2015
Corporate Accounting,Corporate Accounting,Other Transfer Payments to Soc,60023621,CITIBANK NA LONDON,"3,016.55",16/06/2015
Corporate Accounting,Corporate Accounting,Other Transfer Payments to Soc,60023624,CITIBANK NA LONDON,"7,700.89",16/06/2015
Corporate Accounting,Corporate Accounting,Other Transfer Payments to Soc,60023631,CITIBANK NA LONDON,"3,044.13",16/06/2015
Corporate Accounting,Corporate Accounting,Other Transfer Payments to Soc,60024172,CITIBANK NA LONDON,"3,521.84",22/06/2015
Delivery Units,Adults and Communities,Advertising,60020536,TMP (UK) LTD,"4,281.00",08/06/2015
Delivery Units,Adults and Communities,Advertising,60020586,TMP (UK) LTD,"4,098.15",08/06/2015
Delivery Units,Adults and Communities,Agency/Interim Hays,30081673,COMENSURA LIMITED,"-1,171.92",24/06/2015
Delivery Units,Adults and Communities,Building Repairs & Maintenance,60023873,C FRANKLIN LTD,275.00,17/06/2015
Delivery Units,Adults and Communities,Building Repairs & Maintenance,60023895,CAMBS-PAT LTD,412.95,17/06/2015
Delivery Units,Adults and Communities,Cleaning and domestic material,60023913,SUPERCLEAN SERVICES WOTHORPE LTD,602.55,16/06/2015
Delivery Units,Adults and Communities,Cleaning and domestic material,60023950,SUPERCLEAN SERVICES WOTHORPE LTD,602.55,16/06/2015
Delivery Units,Adults and Communities,Direct Transfer Payments to So,30078827,REDACTED - PERSONAL DATA,250.00,05/06/2015
Delivery Units,Adults and Communities,Direct Transfer Payments to So,30078830,REDACTED - PERSONAL DATA,250.00,05/06/2015
Delivery Units,Adults and Communities,Direct Transfer Payments to So,30079301,REDACTED - PERSONAL DATA,250.00,10/06/2015
Delivery Units,Adults and Communities,Direct Transfer Payments to So,30082319,REDACTED - PERSONAL DATA,250.00,26/06/2015
Delivery Units,Adults and Communities,Equipment and Materials Purcha,60024598,MEDEQUIP ASSISTIVE TECHNOLOGY LTD,"1,462.20",24/06/2015
Delivery Units,Adults and Communities,Equipment and Materials Purcha,60022366,OCS GROUP UK LIMITED,"46,225.00",05/06/2015
Delivery Units,Adults and Communities,Equipment and Materials Purcha,60022425,OCS GROUP UK LIMITED,"46,225.00",05/06/2015
Delivery Units,Adults and Communities,Equipment and Materials Purcha,60022502,OCS GROUP UK LIMITED,920.00,05/06/2015
Delivery Units,Adults and Communities,Equipment and Materials Purcha,60008735,PICKLES CHEMIST,688.02,18/06/2015
Delivery Units,Adults and Communities,Equipment and Materials Purcha,60014676,PICKLES CHEMIST,865.61,18/06/2015
Delivery Units,Adults and Communities,Equipment and Materials Purcha,60021023,PICKLES CHEMIST,890.31,18/06/2015
Delivery Units,Adults and Communities,Equipment and Materials Purcha,60024343,PICKLES CHEMIST,525.21,23/06/2015
Delivery Units,Adults and Communities,Equipment and Materials Purcha,60021139,REDLAND HEALTHCARE LTD,"1,338.46",11/06/2015
Delivery Units,Adults and Communities,Equipment and Materials Purcha,60023254,REDLAND HEALTHCARE LTD,434.85,12/06/2015
Delivery Units,Adults and Communities,Equipment and Materials Purcha,60023279,REDLAND HEALTHCARE LTD,"1,095.33",12/06/2015
Delivery Units,Adults and Communities,Equipment and Materials Purcha,60023166,SABEL CHEMIST,753.85,10/06/2015
Delivery Units,Adults and Communities,Furniture-Purchase-Repair,60021928,AV2HIRE,420.00,10/06/2015
Delivery Units,Adults and Communities,Furniture-Purchase-Repair,60010298,BLUE 9 SECURITY LIMITED,"6,912.00",08/06/2015
Delivery Units,Adults and Communities,Furniture-Purchase-Repair,60023170,BLUE 9 SECURITY LIMITED,"6,831.00",10/06/2015
Delivery Units,Adults and Communities,Gas,60022939,BRITISH GAS BUSINESS,"1,391.63",05/06/2015
Delivery Units,Adults and Communities,Gas,60023900,BRITISH GAS BUSINESS(ELEC),441.57,17/06/2015
Delivery Units,Adults and Communities,Gas,10012366,BRITISH GAS TRADING LIMITED,"1,252.09",01/06/2015
Delivery Units,Adults and Communities,Gas,10012367,BRITISH GAS TRADING LIMITED,546.31,01/06/2015
Delivery Units,Adults and Communities,Government Grants,60022975,ACADEMIA LTD,"5,000.00",29/06/2015
Delivery Units,Adults and Communities,Legal and Court Fees,20021369,CARTWRIGHT KING SOLICITORS,"13,356.67",26/06/2015
Delivery Units,Adults and Communities,Other Agencies - Third Party P,30078544,AARON COURT CARE HOME,"2,216.41",04/06/2015
Delivery Units,Adults and Communities,Other Agencies - Third Party P,20021158,ABBEY RAVENSCROFT PARK NURSING HOME,"1,275.00",19/06/2015
Delivery Units,Adults and Communities,Other Agencies - Third Party P,30078481,ABBEY RAVENSCROFT PARK NURSING HOME,"2,570.70",04/06/2015
Delivery Units,Adults and Communities,Other Agencies - Third Party P,30078482,ABBEY RAVENSCROFT PARK NURSING HOME,"2,570.70",04/06/2015
Delivery Units,Adults and Communities,Other Agencies - Third Party P,30078483,ABBEY RAVENSCROFT PARK NURSING HOME,"2,657.14",04/06/2015
Delivery Units,Adults and Communities,Other Agencies - Third Party P,30078484,ABBEY RAVENSCROFT PARK NURSING HOME,"2,318.93",04/06/2015
Delivery Units,Adults and Communities,Other Agencies - Third Party P,30078485,ABBEY RAVENSCROFT PARK NURSING HOME,"2,570.70",04/06/2015
Delivery Units,Adults and Communities,Other Agencies - Third Party P,30078486,ABBEY RAVENSCROFT PARK NURSING HOME,"2,570.70",04/06/2015
Delivery Units,Adults and Communities,Other Agencies - Third Party P,30078487,ABBEY RAVENSCROFT PARK NURSING HOME,"2,570.70",04/06/2015
Delivery Units,Adults and Communities,Other Agencies - Third Party P,30078488,ABBEY RAVENSCROFT PARK NURSING HOME,"2,570.70",04/06/2015
Delivery Units,Adults and Communities,Other Agencies - Third Party P,30078489,ABBEY RAVENSCROFT PARK NURSING HOME,"2,570.70",04/06/2015
Delivery Units,Adults and Communities,Other Agencies - Third Party P,30078490,ABBEY RAVENSCROFT PARK NURSING HOME,"2,570.70",04/06/2015
Delivery Units,Adults and Communities,Other Agencies - Third Party P,30078491,ABBEY RAVENSCROFT PARK NURSING HOME,"3,100.00",04/06/2015
Delivery Units,Adults and Communities,Other Agencies - Third Party P,30078492,ABBEY RAVENSCROFT PARK NURSING HOME,"2,568.57",04/06/2015
Delivery Units,Adults and Communities,Other Agencies - Third Party P,30078493,ABBEY RAVENSCROFT PARK NURSING HOME,"3,100.00",04/06/2015
Delivery Units,Adults and Communities,Other Agencies - Third Party P,30080072,ABBEY RAVENSCROFT PARK NURSING HOME,"2,487.77",17/06/2015
Delivery Units,Adults and Communities,Other Agencies - Third Party P,30080073,ABBEY RAVENSCROFT PARK NURSING HOME,-746.33,17/06/2015
Delivery Units,Adults and Communities,Other Agencies - Third Party P,30080081,ABBEY RAVENSCROFT PARK NURSING HOME,"3,100.00",17/06/2015
Delivery Units,Adults and Communities,Other Agencies - Third Party P,30080082,ABBEY RAVENSCROFT PARK NURSING HOME,"-2,400.00",17/06/2015
Delivery Units,Adults and Communities,Other Agencies - Third Party P,30080084,ABBEY RAVENSCROFT PARK NURSING HOME,"2,322.04",17/06/2015
Delivery Units,Adults and Communities,Other Agencies - Third Party P,30080085,ABBEY RAVENSCROFT PARK NURSING HOME,"-1,048.68",17/06/2015
Delivery Units,Adults and Communities,Other Agencies - Third Party P,30080086,ABBEY RAVENSCROFT PARK NURSING HOME,"2,568.57",17/06/2015
Delivery Units,Adults and Communities,Other Agencies - Third Party P,30079534,ABOUT ME CARE & SUPPORT LTD,"1,365.84",12/06/2015
Delivery Units,Adults and Communities,Other Agencies - Third Party P,30081428,ACCEDO CARE LTD,"5,600.00",24/06/2015
Delivery Units,Adults and Communities,Other Agencies - Third Party P,30081429,ACCEDO CARE LTD,"5,600.00",24/06/2015
Delivery Units,Adults and Communities,Other Agencies - Third Party P,30081430,ACCEDO CARE LTD,"8,960.00",24/06/2015
Delivery Units,Adults and Communities,Other Agencies - Third Party P,30082359,ACCEDO CARE LTD,"8,960.00",29/06/2015
Delivery Units,Adults and Communities,Other Agencies - Third Party P,30079103,ADVANTAGE HEALTHCARE GROUP LTD,-423.25,18/06/2015
Delivery Units,Adults and Communities,Other Agencies - Third Party P,30079104,ADVANTAGE HEALTHCARE GROUP LTD,"1,647.09",10/06/2015
Delivery Units,Adults and Communities,Other Agencies - Third Party P,30079105,ADVANTAGE HEALTHCARE GROUP LTD,"1,602.77",10/06/2015
Delivery Units,Adults and Communities,Other Agencies - Third Party P,30079106,ADVANTAGE HEALTHCARE GROUP LTD,"1,957.01",10/06/2015
Delivery Units,Adults and Communities,Other Agencies - Third Party P,30079107,ADVANTAGE HEALTHCARE GROUP LTD,"1,418.49",18/06/2015
Delivery Units,Adults and Communities,Other Agencies - Third Party P,30078262,AGUDAS ISRAEL HOUSING ASSCTN LTD,"1,600.20",10/06/2015
Delivery Units,Adults and Communities,Other Agencies - Third Party P,30079440,AGUDAS ISRAEL HOUSING ASSCTN LTD,"3,154.25",11/06/2015
Delivery Units,Adults and Communities,Other Agencies - Third Party P,30079441,AGUDAS ISRAEL HOUSING ASSCTN LTD,"4,207.14",11/06/2015
Delivery Units,Adults and Communities,Other Agencies - Third Party P,30079442,AGUDAS ISRAEL HOUSING ASSCTN LTD,"2,527.83",11/06/2015
Delivery Units,Adults and Communities,Other Agencies - Third Party P,30080356,AGUDAS ISRAEL HOUSING ASSCTN LTD,"1,600.20",26/06/2015
Delivery Units,Adults and Communities,Other Agencies - Third Party P,30079432,ALL ABOUT CARE,"1,958.01",11/06/2015
Delivery Units,Adults and Communities,Other Agencies - Third Party P,30079433,ALL ABOUT CARE,-342.21,11/06/2015
Delivery Units,Adults and Communities,Other Agencies - Third Party P,30078649,ALLIED HEALTHCARE LTD,"4,169.28",04/06/2015
Delivery Units,Adults and Communities,Other Agencies - Third Party P,30078111,ANA HOMECARE LTD,359.94,02/06/2015
Delivery Units,Adults and Communities,Other Agencies - Third Party P,30078112,ANA HOMECARE LTD,798.44,02/06/2015
Delivery Units,Adults and Communities,Other Agencies - Third Party P,30078113,ANA HOMECARE LTD,"1,053.34",02/06/2015
Delivery Units,Adults and Communities,Other Agencies - Third Party P,30078114,ANA HOMECARE LTD,"1,229.48",02/06/2015
Delivery Units,Adults and Communities,Other Agencies - Third Party P,30079614,ANA HOMECARE LTD,"1,229.59",15/06/2015
Delivery Units,Adults and Communities,Other Agencies - Third Party P,30079616,ANA HOMECARE LTD,"1,372.06",15/06/2015
Delivery Units,Adults and Communities,Other Agencies - Third Party P,30079618,ANA HOMECARE LTD,918.38,15/06/2015
Delivery Units,Adults and Communities,Other Agencies - Third Party P,30079620,ANA HOMECARE LTD,772.34,15/06/2015
Delivery Units,Adults and Communities,Other Agencies - Third Party P,30078516,ANCASTER COURT NURSING HOME,"2,570.70",04/06/2015
Delivery Units,Adults and Communities,Other Agencies - Third Party P,30078517,ANCASTER COURT NURSING HOME,"2,570.70",04/06/2015
Delivery Units,Adults and Communities,Other Agencies - Third Party P,30078736,APEX CARE HOME LTD,"3,999.85",04/06/2015
Delivery Units,Adults and Communities,Other Agencies - Third Party P,30078737,APEX CARE HOME LTD,-342.64,04/06/2015
Delivery Units,Adults and Communities,Other Agencies - Third Party P,30080335,AREA 51 EDUCATION LTD,553.00,18/06/2015
Delivery Units,Adults and Communities,Other Agencies - Third Party P,30080336,AREA 51 EDUCATION LTD,"1,501.00",18/06/2015
Delivery Units,Adults and Communities,Other Agencies - Third Party P,30080337,AREA 51 EDUCATION LTD,869.00,18/06/2015
Delivery Units,Adults and Communities,Other Agencies - Third Party P,30082285,AREA 51 EDUCATION LTD,705.00,26/06/2015
Delivery Units,Adults and Communities,Other Agencies - Third Party P,30076910,ASHFIELDS RESIDENTIAL CARE HOME,"4,758.09",11/06/2015
Delivery Units,Adults and Communities,Other Agencies - Third Party P,30079655,ASHFIELDS RESIDENTIAL CARE HOME,"4,361.32",15/06/2015
Delivery Units,Adults and Communities,Other Agencies - Third Party P,30079656,ASHFIELDS RESIDENTIAL CARE HOME,"2,431.04",15/06/2015
Delivery Units,Adults and Communities,Other Agencies - Third Party P,30079423,ASHGALE HOUSE,"4,729.98",11/06/2015
Delivery Units,Adults and Communities,Other Agencies - Third Party P,30079424,ASHGALE HOUSE,-401.76,11/06/2015
Delivery Units,Adults and Communities,Other Agencies - Third Party P,30079610,ASHGALE HOUSE,"4,729.98",15/06/2015
Delivery Units,Adults and Communities,Other Agencies - Third Party P,30079611,ASHGALE HOUSE,-401.76,15/06/2015
Delivery Units,Adults and Communities,Other Agencies - Third Party P,30078541,ASHTON LODGE CARE CENTRE,"2,570.70",04/06/2015
Delivery Units,Adults and Communities,Other Agencies - Third Party P,30078546,ASHTON LODGE CARE CENTRE,"2,367.07",04/06/2015
Delivery Units,Adults and Communities,Other Agencies - Third Party P,30078553,ASHTON LODGE CARE CENTRE,"2,570.70",04/06/2015
Delivery Units,Adults and Communities,Other Agencies - Third Party P,30078555,ASHTON LODGE CARE CENTRE,"2,418.04",04/06/2015
Delivery Units,Adults and Communities,Other Agencies - Third Party P,30078558,ASHTON LODGE CARE CENTRE,"2,489.74",04/06/2015
Delivery Units,Adults and Communities,Other Agencies - Third Party P,30078559,ASHTON LODGE CARE CENTRE,-356.28,04/06/2015
Delivery Units,Adults and Communities,Other Agencies - Third Party P,30078581,ASHTON LODGE CARE CENTRE,"2,320.53",04/06/2015
Delivery Units,Adults and Communities,Other Agencies - Third Party P,30078599,ASHTON LODGE CARE CENTRE,"2,318.93",04/06/2015
Delivery Units,Adults and Communities,Other Agencies - Third Party P,30078603,ASHTON LODGE CARE CENTRE,"-1,409.74",04/06/2015
Delivery Units,Adults and Communities,Other Agencies - Third Party P,30078605,ASHTON LODGE CARE CENTRE,"2,318.94",04/06/2015
Delivery Units,Adults and Communities,Other Agencies - Third Party P,30078629,ASHTON LODGE CARE CENTRE,"2,418.04",04/06/2015
Delivery Units,Adults and Communities,Other Agencies - Third Party P,30078784,ASHTON LODGE CARE CENTRE,"2,418.04",04/06/2015
Delivery Units,Adults and Communities,Other Agencies - Third Party P,30078791,ASHTON LODGE CARE CENTRE,"2,418.04",04/06/2015
Delivery Units,Adults and Communities,Other Agencies - Third Party P,30079039,ASHTON LODGE CARE CENTRE,"2,570.70",08/06/2015
Delivery Units,Adults and Communities,Other Agencies - Third Party P,30079090,ASHTON LODGE CARE CENTRE,"2,318.93",08/06/2015
Delivery Units,Adults and Communities,Other Agencies - Third Party P,30079672,ASHTON LODGE CARE CENTRE,"3,276.06",15/06/2015
Delivery Units,Adults and Communities,Other Agencies - Third Party P,30080128,ASHTON LODGE CARE CENTRE,"2,098.57",17/06/2015
Delivery Units,Adults and Communities,Other Agencies - Third Party P,30080129,ASHTON LODGE CARE CENTRE,"2,418.00",17/06/2015
Delivery Units,Adults and Communities,Other Agencies - Third Party P,30078168,ASPEN VILLAGES LTD,"1,134.53",02/06/2015
Delivery Units,Adults and Communities,Other Agencies - Third Party P,30078169,ASPEN VILLAGES LTD,-567.26,02/06/2015
Delivery Units,Adults and Communities,Other Agencies - Third Party P,30078570,ASPEN VILLAGES LTD,"2,216.41",04/06/2015
Delivery Units,Adults and Communities,Other Agencies - Third Party P,30078571,ASPEN VILLAGES LTD,"2,570.70",04/06/2015
Delivery Units,Adults and Communities,Other Agencies - Third Party P,30078572,ASPEN VILLAGES LTD,"3,321.43",04/06/2015
Delivery Units,Adults and Communities,Other Agencies - Third Party P,30080936,ASPEN VILLAGES LTD,"2,418.04",22/06/2015
Delivery Units,Adults and Communities,Other Agencies - Third Party P,30080937,ASPEN VILLAGES LTD,"3,700.75",22/06/2015
Delivery Units,Adults and Communities,Other Agencies - Third Party P,30080938,ASPEN VILLAGES LTD,-342.21,22/06/2015
Delivery Units,Adults and Communities,Other Agencies - Third Party P,30080939,ASPEN VILLAGES LTD,"3,157.21",22/06/2015
Delivery Units,Adults and Communities,Other Agencies - Third Party P,30080940,ASPEN VILLAGES LTD,"4,255.37",22/06/2015
Delivery Units,Adults and Communities,Other Agencies - Third Party P,30081569,ASPEN VILLAGES LTD,567.27,30/06/2015
Delivery Units,Adults and Communities,Other Agencies - Third Party P,30081570,ASPEN VILLAGES LTD,"-1,092.02",30/06/2015
Delivery Units,Adults and Communities,Other Agencies - Third Party P,30082479,ASPEN VILLAGES LTD,"4,871.43",30/06/2015
Delivery Units,Adults and Communities,Other Agencies - Third Party P,30082480,ASPEN VILLAGES LTD,"4,714.29",30/06/2015
Delivery Units,Adults and Communities,Other Agencies - Third Party P,30082481,ASPEN VILLAGES LTD,"4,871.43",30/06/2015
Delivery Units,Adults and Communities,Other Agencies - Third Party P,30082482,ASPEN VILLAGES LTD,"4,714.29",30/06/2015
Delivery Units,Adults and Communities,Other Agencies - Third Party P,30082483,ASPEN VILLAGES LTD,"2,514.29",30/06/2015
Delivery Units,Adults and Communities,Other Agencies - Third Party P,30078514,AVERY LODGE CARE HOME,"2,216.41",05/06/2015
Delivery Units,Adults and Communities,Other Agencies - Third Party P,30078515,AVERY LODGE CARE HOME,-548.92,05/06/2015
Delivery Units,Adults and Communities,Other Agencies - Third Party P,30078577,B & M CARE,"2,216.41",04/06/2015
Delivery Units,Adults and Communities,Other Agencies - Third Party P,30078578,B & M CARE,"2,418.04",04/06/2015
Delivery Units,Adults and Communities,Other Agencies - Third Party P,30078579,B & M CARE,"2,418.04",04/06/2015
Delivery Units,Adults and Communities,Other Agencies - Third Party P,30079704,B & M CARE,-357.49,24/06/2015
Delivery Units,Adults and Communities,Other Agencies - Third Party P,30081584,B & M CARE,929.46,24/06/2015
Delivery Units,Adults and Communities,Other Agencies - Third Party P,30082406,B & M CARE,"2,418.00",29/06/2015
Delivery Units,Adults and Communities,Other Agencies - Third Party P,30082407,B & M CARE,-571.91,29/06/2015
Delivery Units,Adults and Communities,Other Agencies - Third Party P,30079897,BARNET HOMES LIMITED,"9,017.40",17/06/2015
Delivery Units,Adults and Communities,Other Agencies - Third Party P,30079680,BARNET MENCAP,589.65,15/06/2015
Delivery Units,Adults and Communities,Other Agencies - Third Party P,30081667,BARNET MENCAP,786.20,24/06/2015
Delivery Units,Adults and Communities,Other Agencies - Third Party P,30079023,BAYTREE COMMUNITY CARE (LONDON) LTD,"3,538.37",08/06/2015
Delivery Units,Adults and Communities,Other Agencies - Third Party P,30079140,BAYTREE COMMUNITY CARE (LONDON) LTD,"1,280.00",10/06/2015
Delivery Units,Adults and Communities,Other Agencies - Third Party P,30079141,BAYTREE COMMUNITY CARE (LONDON) LTD,734.40,10/06/2015
Delivery Units,Adults and Communities,Other Agencies - Third Party P,30078431,BENSLOW MANAGEMENT COMPANY LIMITED,"2,418.04",04/06/2015
Delivery Units,Adults and Communities,Other Agencies - Third Party P,30082472,BIRCHWOOD GRANGE CARE HOME,"1,574.29",30/06/2015
Delivery Units,Adults and Communities,Other Agencies - Third Party P,30082474,BIRCHWOOD GRANGE CARE HOME,"2,485.71",30/06/2015
Delivery Units,Adults and Communities,Other Agencies - Third Party P,30082475,BIRCHWOOD GRANGE CARE HOME,"2,657.14",30/06/2015
Delivery Units,Adults and Communities,Other Agencies - Third Party P,30082476,BIRCHWOOD GRANGE CARE HOME,"2,318.93",30/06/2015
Delivery Units,Adults and Communities,Other Agencies - Third Party P,30082477,BIRCHWOOD GRANGE CARE HOME,"2,568.57",30/06/2015
Delivery Units,Adults and Communities,Other Agencies - Third Party P,30082478,BIRCHWOOD GRANGE CARE HOME,"-1,944.91",30/06/2015
Delivery Units,Adults and Communities,Other Agencies - Third Party P,30078105,BRADBURY HOUSE ORGANISATION,"3,349.07",02/06/2015
Delivery Units,Adults and Communities,Other Agencies - Third Party P,30078106,BRADBURY HOUSE ORGANISATION,-342.21,02/06/2015
Delivery Units,Adults and Communities,Other Agencies - Third Party P,30078349,BRADBURY HOUSE ORGANISATION,"3,460.71",04/06/2015
Delivery Units,Adults and Communities,Other Agencies - Third Party P,30078350,BRADBURY HOUSE ORGANISATION,-356.28,04/06/2015
Delivery Units,Adults and Communities,Other Agencies - Third Party P,20020825,BROOKDALE HEALTHCARE,"7,554.90",10/06/2015
Delivery Units,Adults and Communities,Other Agencies - Third Party P,20020826,BROOKDALE HEALTHCARE,"9,497.70",10/06/2015
Delivery Units,Adults and Communities,Other Agencies - Third Party P,20020832,BROOKDALE HEALTHCARE,"7,198.50",10/06/2015
Delivery Units,Adults and Communities,Other Agencies - Third Party P,20020833,BROOKDALE HEALTHCARE,"3,231.30",10/06/2015
Delivery Units,Adults and Communities,Other Agencies - Third Party P,20020834,BROOKDALE HEALTHCARE,"7,928.70",10/06/2015
Delivery Units,Adults and Communities,Other Agencies - Third Party P,20020835,BROOKDALE HEALTHCARE,"9,300.00",10/06/2015
Delivery Units,Adults and Communities,Other Agencies - Third Party P,20020836,BROOKDALE HEALTHCARE,"9,368.10",10/06/2015
Delivery Units,Adults and Communities,Other Agencies - Third Party P,20020837,BROOKDALE HEALTHCARE,"9,000.00",10/06/2015
Delivery Units,Adults and Communities,Other Agencies - Third Party P,30078309,BROOKDALE HEALTHCARE,"3,759.36",04/06/2015
Delivery Units,Adults and Communities,Other Agencies - Third Party P,30078311,BROOKDALE HEALTHCARE,"9,610.00",04/06/2015
Delivery Units,Adults and Communities,Other Agencies - Third Party P,30078313,BROOKDALE HEALTHCARE,"9,814.29",04/06/2015
Delivery Units,Adults and Communities,Other Agencies - Third Party P,30078318,BROOKDALE HEALTHCARE,"9,300.00",04/06/2015
Delivery Units,Adults and Communities,Other Agencies - Third Party P,30078319,BROOKDALE HEALTHCARE,"7,806.73",04/06/2015
Delivery Units,Adults and Communities,Other Agencies - Third Party P,30082070,BROOKDALE HEALTHCARE,"3,759.36",25/06/2015
Delivery Units,Adults and Communities,Other Agencies - Third Party P,30079174,BRUNSWICK SUPPORTED LIVING SERVICES,"1,321.60",10/06/2015
Delivery Units,Adults and Communities,Other Agencies - Third Party P,30079180,BRUNSWICK SUPPORTED LIVING SERVICES,"1,412.68",10/06/2015
Delivery Units,Adults and Communities,Other Agencies - Third Party P,30079182,BRUNSWICK SUPPORTED LIVING SERVICES,"1,942.84",10/06/2015
Delivery Units,Adults and Communities,Other Agencies - Third Party P,30079190,BRUNSWICK SUPPORTED LIVING SERVICES,"2,153.92",10/06/2015
Delivery Units,Adults and Communities,Other Agencies - Third Party P,30078564,BUPA CARE HOMES,"2,570.70",04/06/2015
Delivery Units,Adults and Communities,Other Agencies - Third Party P,30078565,BUPA CARE HOMES,"2,570.70",04/06/2015
Delivery Units,Adults and Communities,Other Agencies - Third Party P,30078566,BUPA CARE HOMES,"2,418.04",04/06/2015
Delivery Units,Adults and Communities,Other Agencies - Third Party P,30078567,BUPA CARE HOMES,"2,418.04",04/06/2015
Delivery Units,Adults and Communities,Other Agencies - Third Party P,30078568,BUPA CARE HOMES,"1,014.02",04/06/2015
Delivery Units,Adults and Communities,Other Agencies - Third Party P,30078569,BUPA CARE HOMES,"1,872.03",08/06/2015
Delivery Units,Adults and Communities,Other Agencies - Third Party P,30078585,BUPA CARE HOMES,"2,216.41",04/06/2015
Delivery Units,Adults and Communities,Other Agencies - Third Party P,30078586,BUPA CARE HOMES,"9,428.58",04/06/2015
Delivery Units,Adults and Communities,Other Agencies - Third Party P,30078587,BUPA CARE HOMES,"7,750.00",04/06/2015
Delivery Units,Adults and Communities,Other Agencies - Third Party P,30078590,BUPA CARE HOMES,"3,258.81",04/06/2015
Delivery Units,Adults and Communities,Other Agencies - Third Party P,30078591,BUPA CARE HOMES,"3,258.81",04/06/2015
Delivery Units,Adults and Communities,Other Agencies - Third Party P,30078592,BUPA CARE HOMES,"3,321.43",04/06/2015
Delivery Units,Adults and Communities,Other Agencies - Third Party P,30078593,BUPA CARE HOMES,"3,321.43",04/06/2015
Delivery Units,Adults and Communities,Other Agencies - Third Party P,30078594,BUPA CARE HOMES,"2,418.04",04/06/2015
Delivery Units,Adults and Communities,Other Agencies - Third Party P,30078793,BUPA CARE HOMES,"4,842.64",05/06/2015
Delivery Units,Adults and Communities,Other Agencies - Third Party P,30079034,BUPA CARE HOMES,337.14,08/06/2015
Delivery Units,Adults and Communities,Other Agencies - Third Party P,30079037,BUPA CARE HOMES,"2,318.93",08/06/2015
Delivery Units,Adults and Communities,Other Agencies - Third Party P,30079476,BUPA CARE HOMES,"2,318.93",12/06/2015
Delivery Units,Adults and Communities,Other Agencies - Third Party P,30079477,BUPA CARE HOMES,"2,924.05",12/06/2015
Delivery Units,Adults and Communities,Other Agencies - Third Party P,30079478,BUPA CARE HOMES,"2,302.06",12/06/2015
Delivery Units,Adults and Communities,Other Agencies - Third Party P,30079479,BUPA CARE HOMES,"3,498.57",12/06/2015
Delivery Units,Adults and Communities,Other Agencies - Third Party P,30079663,BUPA CARE HOMES,"7,500.00",15/06/2015
Delivery Units,Adults and Communities,Other Agencies - Third Party P,30080112,BUPA CARE HOMES,"-1,122.06",18/06/2015
Delivery Units,Adults and Communities,Other Agencies - Third Party P,30080423,BUPA CARE HOMES,"2,318.93",18/06/2015
Delivery Units,Adults and Communities,Other Agencies - Third Party P,30080424,BUPA CARE HOMES,"2,318.93",18/06/2015
Delivery Units,Adults and Communities,Other Agencies - Third Party P,30080425,BUPA CARE HOMES,"2,318.93",18/06/2015
Delivery Units,Adults and Communities,Other Agencies - Third Party P,30080426,BUPA CARE HOMES,"1,104.16",18/06/2015
Delivery Units,Adults and Communities,Other Agencies - Third Party P,30080945,BUPA CARE HOMES,-253.47,29/06/2015
Delivery Units,Adults and Communities,Other Agencies - Third Party P,30082408,BUPA CARE HOMES,580.48,29/06/2015
Delivery Units,Adults and Communities,Other Agencies - Third Party P,30082409,BUPA CARE HOMES,"1,870.11",29/06/2015
Delivery Units,Adults and Communities,Other Agencies - Third Party P,30082486,BUPA CARE HOMES,"2,785.71",30/06/2015
Delivery Units,Adults and Communities,Other Agencies - Third Party P,30079463,BUPA NURSING HOMES LTD - ARKLEY,"1,604.52",11/06/2015
Delivery Units,Adults and Communities,Other Agencies - Third Party P,30079464,BUPA NURSING HOMES LTD - ARKLEY,"2,094.52",11/06/2015
Delivery Units,Adults and Communities,Other Agencies - Third Party P,30079465,BUPA NURSING HOMES LTD - ARKLEY,"2,094.52",11/06/2015
Delivery Units,Adults and Communities,Other Agencies - Third Party P,30079466,BUPA NURSING HOMES LTD - ARKLEY,"2,094.52",11/06/2015
Delivery Units,Adults and Communities,Other Agencies - Third Party P,30079467,BUPA NURSING HOMES LTD - ARKLEY,"2,001.92",11/06/2015
Delivery Units,Adults and Communities,Other Agencies - Third Party P,30079468,BUPA NURSING HOMES LTD - ARKLEY,"3,356.44",11/06/2015
Delivery Units,Adults and Communities,Other Agencies - Third Party P,30079469,BUPA NURSING HOMES LTD - ARKLEY,"2,094.52",11/06/2015
Delivery Units,Adults and Communities,Other Agencies - Third Party P,30082401,BUPA NURSING HOMES LTD - ARKLEY,"2,001.92",29/06/2015
Delivery Units,Adults and Communities,Other Agencies - Third Party P,30082402,BUPA NURSING HOMES LTD - ARKLEY,"2,001.92",29/06/2015
Delivery Units,Adults and Communities,Other Agencies - Third Party P,30082403,BUPA NURSING HOMES LTD - ARKLEY,"2,001.92",29/06/2015
Delivery Units,Adults and Communities,Other Agencies - Third Party P,30082463,BUPA NURSING HOMES LTD - ARKLEY,"2,094.52",30/06/2015
Delivery Units,Adults and Communities,Other Agencies - Third Party P,30078622,CAMBIAN BEECHES,"13,164.46",04/06/2015
Delivery Units,Adults and Communities,Other Agencies - Third Party P,30078623,CAMBIAN BEECHES,"13,164.46",04/06/2015
Delivery Units,Adults and Communities,Other Agencies - Third Party P,30081446,CAMPHILL DEVON COMMUNITY LIMITED,"4,508.00",24/06/2015
Delivery Units,Adults and Communities,Other Agencies - Third Party P,30078386,CANDLE COURT NURSING HOME,"2,570.70",04/06/2015
Delivery Units,Adults and Communities,Other Agencies - Third Party P,30078387,CANDLE COURT NURSING HOME,"3,764.29",04/06/2015
Delivery Units,Adults and Communities,Other Agencies - Third Party P,30078583,CARE ASSIST LIMITED,"4,207.14",04/06/2015
Delivery Units,Adults and Communities,Other Agencies - Third Party P,30078584,CARE ASSIST LIMITED,"4,207.14",04/06/2015
Delivery Units,Adults and Communities,Other Agencies - Third Party P,30078562,CARE UK COMMUNITY PARTNERSHIPS,"2,867.46",04/06/2015
Delivery Units,Adults and Communities,Other Agencies - Third Party P,30079532,CARE WORLDWIDE (LONDON) LTD,"2,392.50",12/06/2015
Delivery Units,Adults and Communities,Other Agencies - Third Party P,30078494,CAREBASE BURNT OAK 2006 LIMITED,"2,318.93",04/06/2015
Delivery Units,Adults and Communities,Other Agencies - Third Party P,30078495,CAREBASE BURNT OAK 2006 LIMITED,"2,570.70",04/06/2015
Delivery Units,Adults and Communities,Other Agencies - Third Party P,30078496,CAREBASE BURNT OAK 2006 LIMITED,"3,042.06",04/06/2015
Delivery Units,Adults and Communities,Other Agencies - Third Party P,30078497,CAREBASE BURNT OAK 2006 LIMITED,"1,907.29",04/06/2015
Delivery Units,Adults and Communities,Other Agencies - Third Party P,30078498,CAREBASE BURNT OAK 2006 LIMITED,"2,570.70",04/06/2015
Delivery Units,Adults and Communities,Other Agencies - Third Party P,30078499,CAREBASE BURNT OAK 2006 LIMITED,"2,418.04",04/06/2015
Delivery Units,Adults and Communities,Other Agencies - Third Party P,30078500,CAREBASE BURNT OAK 2006 LIMITED,"2,570.70",04/06/2015
Delivery Units,Adults and Communities,Other Agencies - Third Party P,30078501,CAREBASE BURNT OAK 2006 LIMITED,"2,318.93",04/06/2015
Delivery Units,Adults and Communities,Other Agencies - Third Party P,30078502,CAREBASE BURNT OAK 2006 LIMITED,"2,302.06",04/06/2015
Delivery Units,Adults and Communities,Other Agencies - Third Party P,30078503,CAREBASE BURNT OAK 2006 LIMITED,"2,320.53",04/06/2015
Delivery Units,Adults and Communities,Other Agencies - Third Party P,30078504,CAREBASE BURNT OAK 2006 LIMITED,"2,657.14",04/06/2015
Delivery Units,Adults and Communities,Other Agencies - Third Party P,30078505,CAREBASE BURNT OAK 2006 LIMITED,"2,418.04",04/06/2015
Delivery Units,Adults and Communities,Other Agencies - Third Party P,30078506,CAREBASE BURNT OAK 2006 LIMITED,"2,570.70",04/06/2015
Delivery Units,Adults and Communities,Other Agencies - Third Party P,30080701,CAREBASE BURNT OAK 2006 LIMITED,"1,160.96",22/06/2015
Delivery Units,Adults and Communities,Other Agencies - Third Party P,30081448,CAREBASE BURNT OAK 2006 LIMITED,580.48,24/06/2015
Delivery Units,Adults and Communities,Other Agencies - Third Party P,30078682,CARETECH COMMUNITY SERVICES LTD,"4,774.00",04/06/2015
Delivery Units,Adults and Communities,Other Agencies - Third Party P,30078683,CARETECH COMMUNITY SERVICES LTD,-353.62,04/06/2015
Delivery Units,Adults and Communities,Other Agencies - Third Party P,30078684,CARETECH COMMUNITY SERVICES LTD,"5,890.00",04/06/2015
Delivery Units,Adults and Communities,Other Agencies - Third Party P,30078685,CARETECH COMMUNITY SERVICES LTD,-353.62,04/06/2015
Delivery Units,Adults and Communities,Other Agencies - Third Party P,30078686,CARETECH COMMUNITY SERVICES LTD,"6,653.80",04/06/2015
Delivery Units,Adults and Communities,Other Agencies - Third Party P,30078687,CARETECH COMMUNITY SERVICES LTD,-353.62,04/06/2015
Delivery Units,Adults and Communities,Other Agencies - Third Party P,30078688,CARETECH COMMUNITY SERVICES LTD,475.27,04/06/2015
Delivery Units,Adults and Communities,Other Agencies - Third Party P,30078689,CARETECH COMMUNITY SERVICES LTD,"4,627.86",04/06/2015
Delivery Units,Adults and Communities,Other Agencies - Third Party P,30078690,CARETECH COMMUNITY SERVICES LTD,"6,551.23",04/06/2015
Delivery Units,Adults and Communities,Other Agencies - Third Party P,30078691,CARETECH COMMUNITY SERVICES LTD,-548.92,04/06/2015
Delivery Units,Adults and Communities,Other Agencies - Third Party P,30078692,CARETECH COMMUNITY SERVICES LTD,816.14,04/06/2015
Delivery Units,Adults and Communities,Other Agencies - Third Party P,30078693,CARETECH COMMUNITY SERVICES LTD,"4,646.55",04/06/2015
Delivery Units,Adults and Communities,Other Agencies - Third Party P,30078694,CARETECH COMMUNITY SERVICES LTD,"4,817.18",04/06/2015
Delivery Units,Adults and Communities,Other Agencies - Third Party P,30078695,CARETECH COMMUNITY SERVICES LTD,-353.62,04/06/2015
Delivery Units,Adults and Communities,Other Agencies - Third Party P,30078696,CARETECH COMMUNITY SERVICES LTD,722.61,04/06/2015
Delivery Units,Adults and Communities,Other Agencies - Third Party P,30078697,CARETECH COMMUNITY SERVICES LTD,"7,621.57",04/06/2015
Delivery Units,Adults and Communities,Other Agencies - Third Party P,30078698,CARETECH COMMUNITY SERVICES LTD,"4,628.03",04/06/2015
Delivery Units,Adults and Communities,Other Agencies - Third Party P,30078699,CARETECH COMMUNITY SERVICES LTD,"6,551.23",04/06/2015
Delivery Units,Adults and Communities,Other Agencies - Third Party P,30078700,CARETECH COMMUNITY SERVICES LTD,-548.92,04/06/2015
Delivery Units,Adults and Communities,Other Agencies - Third Party P,30078701,CARETECH COMMUNITY SERVICES LTD,816.14,04/06/2015
Delivery Units,Adults and Communities,Other Agencies - Third Party P,30078702,CARETECH COMMUNITY SERVICES LTD,"4,627.86",04/06/2015
Delivery Units,Adults and Communities,Other Agencies - Third Party P,30078703,CARETECH COMMUNITY SERVICES LTD,"6,296.28",04/06/2015
Delivery Units,Adults and Communities,Other Agencies - Third Party P,30078704,CARETECH COMMUNITY SERVICES LTD,"6,653.80",04/06/2015
Delivery Units,Adults and Communities,Other Agencies - Third Party P,30078705,CARETECH COMMUNITY SERVICES LTD,-353.62,04/06/2015
Delivery Units,Adults and Communities,Other Agencies - Third Party P,30078706,CARETECH COMMUNITY SERVICES LTD,475.27,04/06/2015
Delivery Units,Adults and Communities,Other Agencies - Third Party P,30078707,CARETECH COMMUNITY SERVICES LTD,"4,627.86",04/06/2015
Delivery Units,Adults and Communities,Other Agencies - Third Party P,30078708,CARETECH COMMUNITY SERVICES LTD,919.15,04/06/2015
Delivery Units,Adults and Communities,Other Agencies - Third Party P,30078709,CARETECH COMMUNITY SERVICES LTD,"6,952.37",04/06/2015
Delivery Units,Adults and Communities,Other Agencies - Third Party P,30078710,CARETECH COMMUNITY SERVICES LTD,-353.62,04/06/2015
Delivery Units,Adults and Communities,Other Agencies - Third Party P,30078711,CARETECH COMMUNITY SERVICES LTD,"5,059.38",04/06/2015
Delivery Units,Adults and Communities,Other Agencies - Third Party P,30078712,CARETECH COMMUNITY SERVICES LTD,-353.62,04/06/2015
Delivery Units,Adults and Communities,Other Agencies - Third Party P,30078713,CARETECH COMMUNITY SERVICES LTD,"1,088.14",04/06/2015
Delivery Units,Adults and Communities,Other Agencies - Third Party P,30078714,CARETECH COMMUNITY SERVICES LTD,"6,328.43",04/06/2015
Delivery Units,Adults and Communities,Other Agencies - Third Party P,30078715,CARETECH COMMUNITY SERVICES LTD,-353.62,04/06/2015
Delivery Units,Adults and Communities,Other Agencies - Third Party P,30078716,CARETECH COMMUNITY SERVICES LTD,"5,468.93",04/06/2015
Delivery Units,Adults and Communities,Other Agencies - Third Party P,30078717,CARETECH COMMUNITY SERVICES LTD,-353.62,04/06/2015
Delivery Units,Adults and Communities,Other Agencies - Third Party P,30078718,CARETECH COMMUNITY SERVICES LTD,"5,823.57",04/06/2015
Delivery Units,Adults and Communities,Other Agencies - Third Party P,30078719,CARETECH COMMUNITY SERVICES LTD,-485.37,04/06/2015
Delivery Units,Adults and Communities,Other Agencies - Third Party P,30078720,CARETECH COMMUNITY SERVICES LTD,"5,468.93",04/06/2015
Delivery Units,Adults and Communities,Other Agencies - Third Party P,30078721,CARETECH COMMUNITY SERVICES LTD,-353.62,04/06/2015
Delivery Units,Adults and Communities,Other Agencies - Third Party P,30078722,CARETECH COMMUNITY SERVICES LTD,"1,088.14",04/06/2015
Delivery Units,Adults and Communities,Other Agencies - Third Party P,30078723,CARETECH COMMUNITY SERVICES LTD,"4,377.11",04/06/2015
Delivery Units,Adults and Communities,Other Agencies - Third Party P,30078724,CARETECH COMMUNITY SERVICES LTD,-353.62,04/06/2015
Delivery Units,Adults and Communities,Other Agencies - Third Party P,30078725,CARETECH COMMUNITY SERVICES LTD,"5,987.43",04/06/2015
Delivery Units,Adults and Communities,Other Agencies - Third Party P,30078726,CARETECH COMMUNITY SERVICES LTD,-353.62,04/06/2015
Delivery Units,Adults and Communities,Other Agencies - Third Party P,30078727,CARETECH COMMUNITY SERVICES LTD,"5,059.38",04/06/2015
Delivery Units,Adults and Communities,Other Agencies - Third Party P,30078728,CARETECH COMMUNITY SERVICES LTD,-548.92,04/06/2015
Delivery Units,Adults and Communities,Other Agencies - Third Party P,30078729,CARETECH COMMUNITY SERVICES LTD,"1,088.14",04/06/2015
Delivery Units,Adults and Communities,Other Agencies - Third Party P,30078730,CARETECH COMMUNITY SERVICES LTD,"4,782.86",04/06/2015
Delivery Units,Adults and Communities,Other Agencies - Third Party P,30078732,CARETECH COMMUNITY SERVICES LTD,"1,527.86",04/06/2015
Delivery Units,Adults and Communities,Other Agencies - Third Party P,30078733,CARETECH COMMUNITY SERVICES LTD,"7,072.43",04/06/2015
Delivery Units,Adults and Communities,Other Agencies - Third Party P,30078734,CARETECH COMMUNITY SERVICES LTD,-401.67,04/06/2015
Delivery Units,Adults and Communities,Other Agencies - Third Party P,30078735,CARETECH COMMUNITY SERVICES LTD,919.15,04/06/2015
Delivery Units,Adults and Communities,Other Agencies - Third Party P,30078800,CARETECH COMMUNITY SERVICES LTD,"7,287.66",04/06/2015
Delivery Units,Adults and Communities,Other Agencies - Third Party P,30078801,CARETECH COMMUNITY SERVICES LTD,-353.62,04/06/2015
Delivery Units,Adults and Communities,Other Agencies - Third Party P,30079084,CARETECH COMMUNITY SERVICES LTD,"4,627.86",08/06/2015
Delivery Units,Adults and Communities,Other Agencies - Third Party P,30079512,CARETECH COMMUNITY SERVICES LTD,"2,589.74",11/06/2015
Delivery Units,Adults and Communities,Other Agencies - Third Party P,30079513,CARETECH COMMUNITY SERVICES LTD,"2,149.94",11/06/2015
Delivery Units,Adults and Communities,Other Agencies - Third Party P,30082487,CARETECH COMMUNITY SERVICES LTD,298.57,30/06/2015
Delivery Units,Adults and Communities,Other Agencies - Third Party P,30082488,CARETECH COMMUNITY SERVICES LTD,298.58,30/06/2015
Delivery Units,Adults and Communities,Other Agencies - Third Party P,30082489,CARETECH COMMUNITY SERVICES LTD,"9,405.34",30/06/2015
Delivery Units,Adults and Communities,Other Agencies - Third Party P,30078351,CARLTON COURT (TLC GROUP),"2,216.41",04/06/2015
Delivery Units,Adults and Communities,Other Agencies - Third Party P,30078352,CARLTON COURT (TLC GROUP),"2,418.04",04/06/2015
Delivery Units,Adults and Communities,Other Agencies - Third Party P,30078353,CARLTON COURT (TLC GROUP),"2,216.41",04/06/2015
Delivery Units,Adults and Communities,Other Agencies - Third Party P,30078354,CARLTON COURT (TLC GROUP),"2,318.93",04/06/2015
Delivery Units,Adults and Communities,Other Agencies - Third Party P,30078355,CARLTON COURT (TLC GROUP),"2,570.70",04/06/2015
Delivery Units,Adults and Communities,Other Agencies - Third Party P,30078356,CARLTON COURT (TLC GROUP),"2,570.70",04/06/2015
Delivery Units,Adults and Communities,Other Agencies - Third Party P,30078357,CARLTON COURT (TLC GROUP),"2,318.93",04/06/2015
Delivery Units,Adults and Communities,Other Agencies - Third Party P,30078358,CARLTON COURT (TLC GROUP),"2,570.70",04/06/2015
Delivery Units,Adults and Communities,Other Agencies - Third Party P,30078359,CARLTON COURT (TLC GROUP),"3,720.93",04/06/2015
Delivery Units,Adults and Communities,Other Agencies - Third Party P,30078360,CARLTON COURT (TLC GROUP),"2,570.70",04/06/2015
Delivery Units,Adults and Communities,Other Agencies - Third Party P,30078361,CARLTON COURT (TLC GROUP),"2,570.70",04/06/2015
Delivery Units,Adults and Communities,Other Agencies - Third Party P,30078362,CARLTON COURT (TLC GROUP),"2,318.93",04/06/2015
Delivery Units,Adults and Communities,Other Agencies - Third Party P,30078363,CARLTON COURT (TLC GROUP),"2,216.41",04/06/2015
Delivery Units,Adults and Communities,Other Agencies - Third Party P,30078365,CARLTON COURT (TLC GROUP),"3,764.29",04/06/2015
Delivery Units,Adults and Communities,Other Agencies - Third Party P,30078366,CARLTON COURT (TLC GROUP),"2,418.04",04/06/2015
Delivery Units,Adults and Communities,Other Agencies - Third Party P,30082371,CARLTON COURT (TLC GROUP),"2,487.78",29/06/2015
Delivery Units,Adults and Communities,Other Agencies - Third Party P,30082372,CARLTON COURT (TLC GROUP),-539.19,29/06/2015
Delivery Units,Adults and Communities,Other Agencies - Third Party P,30082373,CARLTON COURT (TLC GROUP),"2,570.70",29/06/2015
Delivery Units,Adults and Communities,Other Agencies - Third Party P,30082374,CARLTON COURT (TLC GROUP),-557.16,29/06/2015
Delivery Units,Adults and Communities,Other Agencies - Third Party P,30082437,CARLTON COURT (TLC GROUP),"4,071.43",30/06/2015
Delivery Units,Adults and Communities,Other Agencies - Third Party P,30082438,CARLTON COURT (TLC GROUP),"2,237.87",30/06/2015
Delivery Units,Adults and Communities,Other Agencies - Third Party P,30082439,CARLTON COURT (TLC GROUP),-603.86,30/06/2015
Delivery Units,Adults and Communities,Other Agencies - Third Party P,30082440,CARLTON COURT (TLC GROUP),"4,207.14",30/06/2015
Delivery Units,Adults and Communities,Other Agencies - Third Party P,30082441,CARLTON COURT (TLC GROUP),"17,911.95",30/06/2015
Delivery Units,Adults and Communities,Other Agencies - Third Party P,30082442,CARLTON COURT (TLC GROUP),"2,487.77",30/06/2015
Delivery Units,Adults and Communities,Other Agencies - Third Party P,30082443,CARLTON COURT (TLC GROUP),"15,535.71",30/06/2015
Delivery Units,Adults and Communities,Other Agencies - Third Party P,30082444,CARLTON COURT (TLC GROUP),"3,214.29",30/06/2015
Delivery Units,Adults and Communities,Other Agencies - Third Party P,30082446,CARLTON COURT (TLC GROUP),"-6,785.70",30/06/2015
Delivery Units,Adults and Communities,Other Agencies - Third Party P,30082447,CARLTON COURT (TLC GROUP),"-4,207.13",30/06/2015
Delivery Units,Adults and Communities,Other Agencies - Third Party P,30078507,CARMEN LODGE RESIDENTIAL HOME,"2,739.47",04/06/2015
Delivery Units,Adults and Communities,Other Agencies - Third Party P,30080914,CARTREF CARE HOME,"2,001.98",22/06/2015
Delivery Units,Adults and Communities,Other Agencies - Third Party P,30080915,CARTREF CARE HOME,"2,001.92",22/06/2015
Delivery Units,Adults and Communities,Other Agencies - Third Party P,30078131,CATHERINE LODGE,"2,184.04",02/06/2015
Delivery Units,Adults and Communities,Other Agencies - Third Party P,30079004,CATHERINE LODGE,"2,184.04",10/06/2015
Delivery Units,Adults and Communities,Other Agencies - Third Party P,30081437,CATHERINE LODGE,"2,184.04",24/06/2015
Delivery Units,Adults and Communities,Other Agencies - Third Party P,30081438,CATHERINE LODGE,"2,184.04",24/06/2015
Delivery Units,Adults and Communities,Other Agencies - Third Party P,30081439,CATHERINE LODGE,"2,184.04",24/06/2015
Delivery Units,Adults and Communities,Other Agencies - Third Party P,30081440,CATHERINE LODGE,"2,184.04",24/06/2015
Delivery Units,Adults and Communities,Other Agencies - Third Party P,30078533,CEDARS NURSING HOME,"2,565.78",04/06/2015
Delivery Units,Adults and Communities,Other Agencies - Third Party P,30078534,CEDARS NURSING HOME,"2,565.78",04/06/2015
Delivery Units,Adults and Communities,Other Agencies - Third Party P,30078535,CEDARS NURSING HOME,"2,565.78",04/06/2015
Delivery Units,Adults and Communities,Other Agencies - Third Party P,30078536,CEDARS NURSING HOME,"2,314.02",04/06/2015
Delivery Units,Adults and Communities,Other Agencies - Third Party P,30078537,CEDARS NURSING HOME,"2,353.25",04/06/2015
Delivery Units,Adults and Communities,Other Agencies - Third Party P,30078538,CEDARS NURSING HOME,"2,565.78",04/06/2015
Delivery Units,Adults and Communities,Other Agencies - Third Party P,30078539,CEDARS NURSING HOME,"2,314.02",04/06/2015
Delivery Units,Adults and Communities,Other Agencies - Third Party P,30078540,CEDARS NURSING HOME,"2,353.25",04/06/2015
Delivery Units,Adults and Communities,Other Agencies - Third Party P,30079033,CEDARS NURSING HOME,"2,565.78",08/06/2015
Delivery Units,Adults and Communities,Other Agencies - Third Party P,30079309,CENTRAL & NORTH WEST LONDON NHS FT,"4,886.00",10/06/2015
Delivery Units,Adults and Communities,Other Agencies - Third Party P,30079304,CENTRAL MIDDLESEX SKILLS,904.60,10/06/2015
Delivery Units,Adults and Communities,Other Agencies - Third Party P,30079305,CENTRAL MIDDLESEX SKILLS,814.14,10/06/2015
Delivery Units,Adults and Communities,Other Agencies - Third Party P,30078388,CHARING GARDENS LTD,"2,124.61",04/06/2015
Delivery Units,Adults and Communities,Other Agencies - Third Party P,30079444,CHATSWORTH CARE,"10,606.43",11/06/2015
Delivery Units,Adults and Communities,Other Agencies - Third Party P,30082385,CHEQUERS TRANSPORT LIMITED,459.60,29/06/2015
Delivery Units,Adults and Communities,Other Agencies - Third Party P,30079446,CHOICE CARE GROUP,"8,736.73",11/06/2015
Delivery Units,Adults and Communities,Other Agencies - Third Party P,30079447,CHOICE CARE GROUP,-356.45,11/06/2015
Delivery Units,Adults and Communities,Other Agencies - Third Party P,30081557,CLARE HOUSE NURSING HOME,"2,094.52",24/06/2015
Delivery Units,Adults and Communities,Other Agencies - Third Party P,30081545,CLOVELLY HOUSE RESID. HOME LTD,"2,184.04",24/06/2015
Delivery Units,Adults and Communities,Other Agencies - Third Party P,30081546,CLOVELLY HOUSE RESID. HOME LTD,"-1,170.02",24/06/2015
Delivery Units,Adults and Communities,Other Agencies - Third Party P,30081547,CLOVELLY HOUSE RESID. HOME LTD,"2,600.00",24/06/2015
Delivery Units,Adults and Communities,Other Agencies - Third Party P,30081548,CLOVELLY HOUSE RESID. HOME LTD,"2,600.00",24/06/2015
Delivery Units,Adults and Communities,Other Agencies - Third Party P,30081549,CLOVELLY HOUSE RESID. HOME LTD,"2,184.04",24/06/2015
Delivery Units,Adults and Communities,Other Agencies - Third Party P,30081550,CLOVELLY HOUSE RESID. HOME LTD,"1,872.64",24/06/2015
Delivery Units,Adults and Communities,Other Agencies - Third Party P,30081551,CLOVELLY HOUSE RESID. HOME LTD,"2,600.00",24/06/2015
Delivery Units,Adults and Communities,Other Agencies - Third Party P,30081552,CLOVELLY HOUSE RESID. HOME LTD,"2,184.04",24/06/2015
Delivery Units,Adults and Communities,Other Agencies - Third Party P,30081553,CLOVELLY HOUSE RESID. HOME LTD,"2,184.04",24/06/2015
Delivery Units,Adults and Communities,Other Agencies - Third Party P,30081556,CLOVELLY HOUSE RESID. HOME LTD,-713.04,24/06/2015
Delivery Units,Adults and Communities,Other Agencies - Third Party P,30078993,CMG HOMES LTD,"2,097.96",08/06/2015
Delivery Units,Adults and Communities,Other Agencies - Third Party P,30078994,CMG HOMES LTD,-505.20,08/06/2015
Delivery Units,Adults and Communities,Other Agencies - Third Party P,30078995,CMG HOMES LTD,592.40,08/06/2015
Delivery Units,Adults and Communities,Other Agencies - Third Party P,30078996,CMG HOMES LTD,"2,097.96",08/06/2015
Delivery Units,Adults and Communities,Other Agencies - Third Party P,30078997,CMG HOMES LTD,-505.20,08/06/2015
Delivery Units,Adults and Communities,Other Agencies - Third Party P,30078998,CMG HOMES LTD,592.40,08/06/2015
Delivery Units,Adults and Communities,Other Agencies - Third Party P,30078999,CMG HOMES LTD,"3,990.12",08/06/2015
Delivery Units,Adults and Communities,Other Agencies - Third Party P,30079000,CMG HOMES LTD,-505.20,08/06/2015
Delivery Units,Adults and Communities,Other Agencies - Third Party P,30082304,CMG HOMES LTD,"3,086.84",26/06/2015
Delivery Units,Adults and Communities,Other Agencies - Third Party P,30082305,CMG HOMES LTD,"3,086.84",26/06/2015
Delivery Units,Adults and Communities,Other Agencies - Third Party P,30082308,CMG HOMES LTD,"4,800.00",26/06/2015
Delivery Units,Adults and Communities,Other Agencies - Third Party P,30082309,CMG HOMES LTD,"4,800.00",26/06/2015
Delivery Units,Adults and Communities,Other Agencies - Third Party P,30078389,COMPLETE CARE SERVICES LTD,"5,426.86",04/06/2015
Delivery Units,Adults and Communities,Other Agencies - Third Party P,20021168,CO-OPERATIVE FUNERALCARE,"1,512.00",19/06/2015
Delivery Units,Adults and Communities,Other Agencies - Third Party P,20021169,COURT OF PROTECTION,400.00,19/06/2015
Delivery Units,Adults and Communities,Other Agencies - Third Party P,20021277,COURT OF PROTECTION,400.00,23/06/2015
Delivery Units,Adults and Communities,Other Agencies - Third Party P,30078411,CRAEGMOOR,"3,787.36",04/06/2015
Delivery Units,Adults and Communities,Other Agencies - Third Party P,30078412,CRAEGMOOR,-280.99,04/06/2015
Delivery Units,Adults and Communities,Other Agencies - Third Party P,30081654,CYGNET HEALTH CARE,418.70,24/06/2015
Delivery Units,Adults and Communities,Other Agencies - Third Party P,30079308,DABB PAA,"1,176.12",10/06/2015
Delivery Units,Adults and Communities,Other Agencies - Third Party P,20020776,DANA CARE LIMITED,"9,902.29",08/06/2015
Delivery Units,Adults and Communities,Other Agencies - Third Party P,30078451,DEVELOPMENT AND LEARNING OPPORTUNIT,350.00,04/06/2015
Delivery Units,Adults and Communities,Other Agencies - Third Party P,30078452,DEVELOPMENT AND LEARNING OPPORTUNIT,350.00,04/06/2015
Delivery Units,Adults and Communities,Other Agencies - Third Party P,30078453,DEVELOPMENT AND LEARNING OPPORTUNIT,350.00,04/06/2015
Delivery Units,Adults and Communities,Other Agencies - Third Party P,30078454,DEVELOPMENT AND LEARNING OPPORTUNIT,350.00,04/06/2015
Delivery Units,Adults and Communities,Other Agencies - Third Party P,30078455,DEVELOPMENT AND LEARNING OPPORTUNIT,350.00,04/06/2015
Delivery Units,Adults and Communities,Other Agencies - Third Party P,30079311,DEVELOPMENT AND LEARNING OPPORTUNIT,"1,053.00",10/06/2015
Delivery Units,Adults and Communities,Other Agencies - Third Party P,30079312,DEVELOPMENT AND LEARNING OPPORTUNIT,"1,053.00",10/06/2015
Delivery Units,Adults and Communities,Other Agencies - Third Party P,30079313,DEVELOPMENT AND LEARNING OPPORTUNIT,"1,053.00",10/06/2015
Delivery Units,Adults and Communities,Other Agencies - Third Party P,30079314,DEVELOPMENT AND LEARNING OPPORTUNIT,"1,053.00",10/06/2015
Delivery Units,Adults and Communities,Other Agencies - Third Party P,30079315,DEVELOPMENT AND LEARNING OPPORTUNIT,"1,053.00",10/06/2015
Delivery Units,Adults and Communities,Other Agencies - Third Party P,30081465,DEVELOPMENT AND LEARNING OPPORTUNIT,"1,053.00",24/06/2015
Delivery Units,Adults and Communities,Other Agencies - Third Party P,30081466,DEVELOPMENT AND LEARNING OPPORTUNIT,"2,025.00",24/06/2015
Delivery Units,Adults and Communities,Other Agencies - Third Party P,30082155,DEVELOPMENT AND LEARNING OPPORTUNIT,652.40,25/06/2015
Delivery Units,Adults and Communities,Other Agencies - Third Party P,30082156,DEVELOPMENT AND LEARNING OPPORTUNIT,500.00,25/06/2015
Delivery Units,Adults and Communities,Other Agencies - Third Party P,30082157,DEVELOPMENT AND LEARNING OPPORTUNIT,908.28,25/06/2015
Delivery Units,Adults and Communities,Other Agencies - Third Party P,30082158,DEVELOPMENT AND LEARNING OPPORTUNIT,"1,056.00",25/06/2015
Delivery Units,Adults and Communities,Other Agencies - Third Party P,30078675,DIMENSIONS UK,"2,128.00",04/06/2015
Delivery Units,Adults and Communities,Other Agencies - Third Party P,30078680,DIMENSIONS UK,"1,541.00",04/06/2015
Delivery Units,Adults and Communities,Other Agencies - Third Party P,30078681,DIMENSIONS UK,279.72,04/06/2015
Delivery Units,Adults and Communities,Other Agencies - Third Party P,30079069,DIMENSIONS UK,965.60,08/06/2015
Delivery Units,Adults and Communities,Other Agencies - Third Party P,30079075,DIMENSIONS UK,-321.80,08/06/2015
Delivery Units,Adults and Communities,Other Agencies - Third Party P,30079076,DIMENSIONS UK,"4,817.56",08/06/2015
Delivery Units,Adults and Communities,Other Agencies - Third Party P,30079077,DIMENSIONS UK,-321.80,08/06/2015
Delivery Units,Adults and Communities,Other Agencies - Third Party P,30079092,DIMENSIONS UK,"4,495.76",08/06/2015
Delivery Units,Adults and Communities,Other Agencies - Third Party P,30079197,DIMENSIONS UK,"7,950.68",10/06/2015
Delivery Units,Adults and Communities,Other Agencies - Third Party P,30079200,DIMENSIONS UK,"2,019.60",09/06/2015
Delivery Units,Adults and Communities,Other Agencies - Third Party P,30079201,DIMENSIONS UK,"2,019.60",10/06/2015
Delivery Units,Adults and Communities,Other Agencies - Third Party P,30079210,DIMENSIONS UK,523.60,10/06/2015
Delivery Units,Adults and Communities,Other Agencies - Third Party P,30079211,DIMENSIONS UK,299.20,10/06/2015
Delivery Units,Adults and Communities,Other Agencies - Third Party P,30079213,DIMENSIONS UK,299.20,10/06/2015
Delivery Units,Adults and Communities,Other Agencies - Third Party P,30080147,DIMENSIONS UK,523.60,17/06/2015
Delivery Units,Adults and Communities,Other Agencies - Third Party P,30080148,DIMENSIONS UK,299.20,17/06/2015
Delivery Units,Adults and Communities,Other Agencies - Third Party P,30080440,DIMENSIONS UK,448.80,18/06/2015
Delivery Units,Adults and Communities,Other Agencies - Third Party P,30079470,DR FRENCH MEMORIAL HOME LTD,"-1,560.03",24/06/2015
Delivery Units,Adults and Communities,Other Agencies - Third Party P,30079473,DR FRENCH MEMORIAL HOME LTD,390.01,24/06/2015
Delivery Units,Adults and Communities,Other Agencies - Third Party P,30081562,DR FRENCH MEMORIAL HOME LTD,"1,092.02",24/06/2015
Delivery Units,Adults and Communities,Other Agencies - Third Party P,30081431,EASTSIDE HOUSE RESIDENTIAL CARE HOM,"2,001.92",23/06/2015
Delivery Units,Adults and Communities,Other Agencies - Third Party P,30079007,ELEANOR PALMER TRUST NO 2 A/C.,"12,324.23",08/06/2015
Delivery Units,Adults and Communities,Other Agencies - Third Party P,30079445,ELEANOR PALMER TRUST NO 2 A/C.,357.49,11/06/2015
Delivery Units,Adults and Communities,Other Agencies - Third Party P,30078378,ELIZABETH FITZROY SUPPORT,"5,380.45",04/06/2015
Delivery Units,Adults and Communities,Other Agencies - Third Party P,30078379,ELIZABETH FITZROY SUPPORT,-353.62,04/06/2015
Delivery Units,Adults and Communities,Other Agencies - Third Party P,30078449,ELIZABETH FITZROY SUPPORT,"4,991.58",04/06/2015
Delivery Units,Adults and Communities,Other Agencies - Third Party P,30078450,ELIZABETH FITZROY SUPPORT,-353.62,04/06/2015
Delivery Units,Adults and Communities,Other Agencies - Third Party P,30079431,ELIZABETH FITZROY SUPPORT,-342.21,11/06/2015
Delivery Units,Adults and Communities,Other Agencies - Third Party P,30079454,ELIZABETH FITZROY SUPPORT,-342.21,11/06/2015
Delivery Units,Adults and Communities,Other Agencies - Third Party P,30078595,ELIZABETH HOUSE,"2,340.04",04/06/2015
Delivery Units,Adults and Communities,Other Agencies - Third Party P,30078596,ELIZABETH HOUSE,"2,418.04",04/06/2015
Delivery Units,Adults and Communities,Other Agencies - Third Party P,30079422,ELIZABETH HOUSE,"7,920.00",12/06/2015
Delivery Units,Adults and Communities,Other Agencies - Third Party P,30081565,ELIZABETH HOUSE,"6,619.20",24/06/2015
Delivery Units,Adults and Communities,Other Agencies - Third Party P,30080113,ELM PARK LODGE,"8,579.66",19/06/2015
Delivery Units,Adults and Communities,Other Agencies - Third Party P,30080114,ELM PARK LODGE,"-2,147.02",19/06/2015
Delivery Units,Adults and Communities,Other Agencies - Third Party P,30080115,ELM PARK LODGE,"8,141.83",19/06/2015
Delivery Units,Adults and Communities,Other Agencies - Third Party P,30080150,ELM PARK LODGE,"11,859.77",19/06/2015
Delivery Units,Adults and Communities,Other Agencies - Third Party P,30081534,ELM PARK LODGE,"3,299.29",23/06/2015
Delivery Units,Adults and Communities,Other Agencies - Third Party P,30081543,ELM PARK LODGE,"3,484.80",23/06/2015
Delivery Units,Adults and Communities,Other Agencies - Third Party P,30081589,ELM PARK LODGE,"3,612.87",23/06/2015
Delivery Units,Adults and Communities,Other Agencies - Third Party P,30081590,ELM PARK LODGE,"3,100.00",23/06/2015
Delivery Units,Adults and Communities,Other Agencies - Third Party P,30081591,ELM PARK LODGE,"3,432.14",23/06/2015
Delivery Units,Adults and Communities,Other Agencies - Third Party P,30081592,ELM PARK LODGE,"2,161.85",23/06/2015
Delivery Units,Adults and Communities,Other Agencies - Third Party P,30081598,ELM PARK LODGE,"3,387.86",23/06/2015
Delivery Units,Adults and Communities,Other Agencies - Third Party P,30081607,ELM PARK LODGE,"3,210.71",23/06/2015
Delivery Units,Adults and Communities,Other Agencies - Third Party P,30081611,ELM PARK LODGE,"3,387.86",23/06/2015
Delivery Units,Adults and Communities,Other Agencies - Third Party P,30081623,ELM PARK LODGE,"3,455.61",23/06/2015
Delivery Units,Adults and Communities,Other Agencies - Third Party P,30081655,ELM PARK LODGE,"3,612.87",23/06/2015
Delivery Units,Adults and Communities,Other Agencies - Third Party P,30080326,ELMHURST RESIDENTIAL HOME,"14,898.27",18/06/2015
Delivery Units,Adults and Communities,Other Agencies - Third Party P,30080327,ELMHURST RESIDENTIAL HOME,"7,392.86",18/06/2015
Delivery Units,Adults and Communities,Other Agencies - Third Party P,30080328,ELMHURST RESIDENTIAL HOME,"7,020.13",18/06/2015
Delivery Units,Adults and Communities,Other Agencies - Third Party P,30080329,ELMHURST RESIDENTIAL HOME,"7,020.13",18/06/2015
Delivery Units,Adults and Communities,Other Agencies - Third Party P,30080330,ELMHURST RESIDENTIAL HOME,"7,020.13",18/06/2015
Delivery Units,Adults and Communities,Other Agencies - Third Party P,30080332,ELMHURST RESIDENTIAL HOME,"7,020.12",18/06/2015
Delivery Units,Adults and Communities,Other Agencies - Third Party P,30080333,ELMHURST RESIDENTIAL HOME,"-1,593.64",18/06/2015
Delivery Units,Adults and Communities,Other Agencies - Third Party P,30080359,ELMHURST RESIDENTIAL HOME,"2,574.05",18/06/2015
Delivery Units,Adults and Communities,Other Agencies - Third Party P,30080360,ELMHURST RESIDENTIAL HOME,"7,071.43",18/06/2015
Delivery Units,Adults and Communities,Other Agencies - Third Party P,30080364,ELMHURST RESIDENTIAL HOME,"7,020.13",18/06/2015
Delivery Units,Adults and Communities,Other Agencies - Third Party P,30080365,ELMHURST RESIDENTIAL HOME,"7,020.13",18/06/2015
Delivery Units,Adults and Communities,Other Agencies - Third Party P,30080366,ELMHURST RESIDENTIAL HOME,"-2,367.26",18/06/2015
Delivery Units,Adults and Communities,Other Agencies - Third Party P,30080369,ELMHURST RESIDENTIAL HOME,"7,020.13",18/06/2015
Delivery Units,Adults and Communities,Other Agencies - Third Party P,30080370,ELMHURST RESIDENTIAL HOME,"-1,918.67",18/06/2015
Delivery Units,Adults and Communities,Other Agencies - Third Party P,30080371,ELMHURST RESIDENTIAL HOME,"7,020.12",18/06/2015
Delivery Units,Adults and Communities,Other Agencies - Third Party P,30080372,ELMHURST RESIDENTIAL HOME,"-1,593.64",18/06/2015
Delivery Units,Adults and Communities,Other Agencies - Third Party P,30080609,ELMHURST RESIDENTIAL HOME,"16,692.31",22/06/2015
Delivery Units,Adults and Communities,Other Agencies - Third Party P,30080610,ELMHURST RESIDENTIAL HOME,"7,020.13",22/06/2015
Delivery Units,Adults and Communities,Other Agencies - Third Party P,30081566,EMMAUS HOUSE,"2,184.04",24/06/2015
Delivery Units,Adults and Communities,Other Agencies - Third Party P,30078638,EVE HERSOV & CO,262.00,04/06/2015
Delivery Units,Adults and Communities,Other Agencies - Third Party P,30078465,FERNBANK NURSING HOME.,"2,318.80",04/06/2015
Delivery Units,Adults and Communities,Other Agencies - Third Party P,30078466,FERNBANK NURSING HOME.,"2,318.80",04/06/2015
Delivery Units,Adults and Communities,Other Agencies - Third Party P,30078467,FERNBANK NURSING HOME.,"2,318.80",04/06/2015
Delivery Units,Adults and Communities,Other Agencies - Third Party P,30078468,FERNBANK NURSING HOME.,"2,318.80",04/06/2015
Delivery Units,Adults and Communities,Other Agencies - Third Party P,30078469,FERNBANK NURSING HOME.,"2,318.80",04/06/2015
Delivery Units,Adults and Communities,Other Agencies - Third Party P,30078470,FERNBANK NURSING HOME.,"2,318.80",04/06/2015
Delivery Units,Adults and Communities,Other Agencies - Third Party P,30078471,FERNBANK NURSING HOME.,"2,318.80",04/06/2015
Delivery Units,Adults and Communities,Other Agencies - Third Party P,30078472,FERNBANK NURSING HOME.,"2,318.80",04/06/2015
Delivery Units,Adults and Communities,Other Agencies - Third Party P,30079032,FERNBANK NURSING HOME.,"2,570.52",08/06/2015
Delivery Units,Adults and Communities,Other Agencies - Third Party P,30082397,FERNBANK NURSING HOME.,"2,244.00",29/06/2015
Delivery Units,Adults and Communities,Other Agencies - Third Party P,30082398,FERNBANK NURSING HOME.,"1,720.40",29/06/2015
Delivery Units,Adults and Communities,Other Agencies - Third Party P,30082458,FERNBANK NURSING HOME.,"2,244.00",30/06/2015
Delivery Units,Adults and Communities,Other Agencies - Third Party P,30078464,FINBOND LIMITED,"2,657.14",04/06/2015
Delivery Units,Adults and Communities,Other Agencies - Third Party P,30080947,FLAGSWAN TWO LTD,"2,546.43",22/06/2015
Delivery Units,Adults and Communities,Other Agencies - Third Party P,30081608,FLAGSWAN TWO LTD,"3,379.00",24/06/2015
Delivery Units,Adults and Communities,Other Agencies - Third Party P,30080117,FOUR SEASONS HEALTH CARE,"2,443.33",17/06/2015
Delivery Units,Adults and Communities,Other Agencies - Third Party P,30080118,FOUR SEASONS HEALTH CARE,"2,085.68",17/06/2015
Delivery Units,Adults and Communities,Other Agencies - Third Party P,30080119,FOUR SEASONS HEALTH CARE,"2,085.68",17/06/2015
Delivery Units,Adults and Communities,Other Agencies - Third Party P,30080120,FOUR SEASONS HEALTH CARE,"2,123.48",17/06/2015
Delivery Units,Adults and Communities,Other Agencies - Third Party P,30080121,FOUR SEASONS HEALTH CARE,"2,313.08",17/06/2015
Delivery Units,Adults and Communities,Other Agencies - Third Party P,30080122,FOUR SEASONS HEALTH CARE,"2,085.68",17/06/2015
Delivery Units,Adults and Communities,Other Agencies - Third Party P,30080123,FOUR SEASONS HEALTH CARE,"2,085.68",17/06/2015
Delivery Units,Adults and Communities,Other Agencies - Third Party P,30080124,FOUR SEASONS HEALTH CARE,"2,313.08",17/06/2015
Delivery Units,Adults and Communities,Other Agencies - Third Party P,30080125,FOUR SEASONS HEALTH CARE,"2,090.08",17/06/2015
Delivery Units,Adults and Communities,Other Agencies - Third Party P,30080126,FOUR SEASONS HEALTH CARE,"2,321.92",17/06/2015
Delivery Units,Adults and Communities,Other Agencies - Third Party P,30080127,FOUR SEASONS HEALTH CARE,"2,085.68",17/06/2015
Delivery Units,Adults and Communities,Other Agencies - Third Party P,30080428,FOUR SEASONS HEALTH CARE,"2,085.72",18/06/2015
Delivery Units,Adults and Communities,Other Agencies - Third Party P,30080429,FOUR SEASONS HEALTH CARE,"2,090.08",18/06/2015
Delivery Units,Adults and Communities,Other Agencies - Third Party P,30080430,FOUR SEASONS HEALTH CARE,"1,791.50",18/06/2015
Delivery Units,Adults and Communities,Other Agencies - Third Party P,30080946,FOUR SEASONS HEALTH CARE,468.01,22/06/2015
Delivery Units,Adults and Communities,Other Agencies - Third Party P,30081554,FOUR SEASONS HEALTH CARE,-496.00,24/06/2015
Delivery Units,Adults and Communities,Other Agencies - Third Party P,30081593,FOUR SEASONS HEALTH CARE,"1,268.98",24/06/2015
Delivery Units,Adults and Communities,Other Agencies - Third Party P,30081594,FOUR SEASONS HEALTH CARE,"5,388.62",24/06/2015
Delivery Units,Adults and Communities,Other Agencies - Third Party P,30079448,FOUR SEASONS HEALTH CARE (NO.4) LTD,"2,004.00",11/06/2015
Delivery Units,Adults and Communities,Other Agencies - Third Party P,30082454,FOUR SEASONS HEALTH CARE (NO.4) LTD,"2,004.00",30/06/2015
Delivery Units,Adults and Communities,Other Agencies - Third Party P,30079093,FREEWAYS TRUST LIMITED,829.80,08/06/2015
Delivery Units,Adults and Communities,Other Agencies - Third Party P,30079042,FREMANTLE TRUST,"3,434.98",08/06/2015
Delivery Units,Adults and Communities,Other Agencies - Third Party P,30079043,FREMANTLE TRUST,-319.20,08/06/2015
Delivery Units,Adults and Communities,Other Agencies - Third Party P,30079044,FREMANTLE TRUST,"21,045.30",08/06/2015
Delivery Units,Adults and Communities,Other Agencies - Third Party P,30079045,FREMANTLE TRUST,"-1,524.40",08/06/2015
Delivery Units,Adults and Communities,Other Agencies - Third Party P,30079046,FREMANTLE TRUST,"30,527.78",08/06/2015
Delivery Units,Adults and Communities,Other Agencies - Third Party P,30079047,FREMANTLE TRUST,"-2,845.80",08/06/2015
Delivery Units,Adults and Communities,Other Agencies - Third Party P,30078371,FRIARY LODGE,"2,418.04",08/06/2015
Delivery Units,Adults and Communities,Other Agencies - Third Party P,30078377,FRIARY LODGE,"2,216.41",08/06/2015
Delivery Units,Adults and Communities,Other Agencies - Third Party P,30078426,FRIARY LODGE,"2,418.04",08/06/2015
Delivery Units,Adults and Communities,Other Agencies - Third Party P,30078442,FRIARY LODGE,"2,418.04",08/06/2015
Delivery Units,Adults and Communities,Other Agencies - Third Party P,30078170,FRIERN RESIDENTIAL CARE HOME,"1,219.75",02/06/2015
Delivery Units,Adults and Communities,Other Agencies - Third Party P,30078171,FRIERN RESIDENTIAL CARE HOME,-539.61,02/06/2015
Delivery Units,Adults and Communities,Other Agencies - Third Party P,30078177,FRIERN RESIDENTIAL CARE HOME,"2,035.46",02/06/2015
Delivery Units,Adults and Communities,Other Agencies - Third Party P,30078178,FRIERN RESIDENTIAL CARE HOME,-344.36,02/06/2015
Delivery Units,Adults and Communities,Other Agencies - Third Party P,30078185,FRIERN RESIDENTIAL CARE HOME,"1,323.26",02/06/2015
Delivery Units,Adults and Communities,Other Agencies - Third Party P,30078186,FRIERN RESIDENTIAL CARE HOME,-391.93,02/06/2015
Delivery Units,Adults and Communities,Other Agencies - Third Party P,30078190,FRIERN RESIDENTIAL CARE HOME,"2,144.95",02/06/2015
Delivery Units,Adults and Communities,Other Agencies - Third Party P,30078191,FRIERN RESIDENTIAL CARE HOME,-539.61,02/06/2015
Delivery Units,Adults and Communities,Other Agencies - Third Party P,30078198,FRIERN RESIDENTIAL CARE HOME,"2,144.95",02/06/2015
Delivery Units,Adults and Communities,Other Agencies - Third Party P,30078199,FRIERN RESIDENTIAL CARE HOME,-539.61,02/06/2015
Delivery Units,Adults and Communities,Other Agencies - Third Party P,30078522,FRIERN RESIDENTIAL CARE HOME,"3,985.71",04/06/2015
Delivery Units,Adults and Communities,Other Agencies - Third Party P,30078574,FRIERN RESIDENTIAL CARE HOME,"1,262.14",04/06/2015
Delivery Units,Adults and Communities,Other Agencies - Third Party P,30078575,FRIERN RESIDENTIAL CARE HOME,-559.33,04/06/2015
Delivery Units,Adults and Communities,Other Agencies - Third Party P,30078613,FRIERN RESIDENTIAL CARE HOME,"2,218.18",04/06/2015
Delivery Units,Adults and Communities,Other Agencies - Third Party P,30078614,FRIERN RESIDENTIAL CARE HOME,-559.33,04/06/2015
Delivery Units,Adults and Communities,Other Agencies - Third Party P,30078633,FRIERN RESIDENTIAL CARE HOME,"2,103.75",04/06/2015
Delivery Units,Adults and Communities,Other Agencies - Third Party P,30078634,FRIERN RESIDENTIAL CARE HOME,-356.28,04/06/2015
Delivery Units,Adults and Communities,Other Agencies - Third Party P,30078651,FRIERN RESIDENTIAL CARE HOME,"1,368.03",04/06/2015
Delivery Units,Adults and Communities,Other Agencies - Third Party P,30078652,FRIERN RESIDENTIAL CARE HOME,-405.66,04/06/2015
Delivery Units,Adults and Communities,Other Agencies - Third Party P,30078787,FRIERN RESIDENTIAL CARE HOME,"2,218.18",04/06/2015
Delivery Units,Adults and Communities,Other Agencies - Third Party P,30078788,FRIERN RESIDENTIAL CARE HOME,-559.33,04/06/2015
Delivery Units,Adults and Communities,Other Agencies - Third Party P,30079474,GENTLE HANDS CARE AGENCY,"1,400.00",11/06/2015
Delivery Units,Adults and Communities,Other Agencies - Third Party P,30080547,GENTLE HANDS CARE AGENCY,"1,400.00",19/06/2015
Delivery Units,Adults and Communities,Other Agencies - Third Party P,30080548,GENTLE HANDS CARE AGENCY,"1,316.00",19/06/2015
Delivery Units,Adults and Communities,Other Agencies - Third Party P,30080549,GENTLE HANDS CARE AGENCY,"1,232.00",19/06/2015
Delivery Units,Adults and Communities,Other Agencies - Third Party P,30082331,GENTLE HANDS CARE AGENCY,468.00,26/06/2015
Delivery Units,Adults and Communities,Other Agencies - Third Party P,30080420,GENTLE HANDS CARE HOMES LIMITED,"4,394.00",18/06/2015
Delivery Units,Adults and Communities,Other Agencies - Third Party P,30078074,GLEBELANDS,"12,000.00",02/06/2015
Delivery Units,Adults and Communities,Other Agencies - Third Party P,30078547,GLENHOLME PSYCHIATRIC AFTER CARE HO,"4,097.05",04/06/2015
Delivery Units,Adults and Communities,Other Agencies - Third Party P,30078632,GLENHOLME PSYCHIATRIC AFTER CARE HO,"3,986.16",04/06/2015
Delivery Units,Adults and Communities,Other Agencies - Third Party P,30078796,GLENHOLME PSYCHIATRIC AFTER CARE HO,"4,207.14",04/06/2015
Delivery Units,Adults and Communities,Other Agencies - Third Party P,30078339,GLOUCESTERSHIRE GROUP HOMES,"8,243.20",04/06/2015
Delivery Units,Adults and Communities,Other Agencies - Third Party P,30078340,GLOUCESTERSHIRE GROUP HOMES,"-1,618.64",04/06/2015
Delivery Units,Adults and Communities,Other Agencies - Third Party P,30078440,GRATWICK HOUSE CARE HOME,"2,001.92",04/06/2015
Delivery Units,Adults and Communities,Other Agencies - Third Party P,30078441,GRATWICK HOUSE CARE HOME,-497.20,04/06/2015
Delivery Units,Adults and Communities,Other Agencies - Third Party P,30079450,GRATWICK HOUSE CARE HOME,500.48,11/06/2015
Delivery Units,Adults and Communities,Other Agencies - Third Party P,30079629,GREENFIELDS RESIDENTIAL HOME,"2,216.41",15/06/2015
Delivery Units,Adults and Communities,Other Agencies - Third Party P,30079630,GREENFIELDS RESIDENTIAL HOME,-868.04,15/06/2015
Delivery Units,Adults and Communities,Other Agencies - Third Party P,30078659,GROVEWELL ESTATES LTD,"2,184.04",04/06/2015
Delivery Units,Adults and Communities,Other Agencies - Third Party P,30078660,GROVEWELL ESTATES LTD,"2,964.05",04/06/2015
Delivery Units,Adults and Communities,Other Agencies - Third Party P,30078373,H.C.S. (ENFIELD) LTD,"5,260.36",04/06/2015
Delivery Units,Adults and Communities,Other Agencies - Third Party P,30078374,H.C.S. (ENFIELD) LTD,-342.21,04/06/2015
Delivery Units,Adults and Communities,Other Agencies - Third Party P,30078576,HALLMARK CARE (KINGS LYNN) LTD,"2,890.31",10/06/2015
Delivery Units,Adults and Communities,Other Agencies - Third Party P,30077271,HEADWAY EAST LONDON,376.08,10/06/2015
Delivery Units,Adults and Communities,Other Agencies - Third Party P,30077272,HEADWAY EAST LONDON,376.08,10/06/2015
Delivery Units,Adults and Communities,Other Agencies - Third Party P,30077273,HEADWAY EAST LONDON,340.00,10/06/2015
Delivery Units,Adults and Communities,Other Agencies - Third Party P,30078108,HENRY NIHILL HOUSE,"2,001.92",04/06/2015
Delivery Units,Adults and Communities,Other Agencies - Third Party P,30078109,HENRY NIHILL HOUSE,-502.85,04/06/2015
Delivery Units,Adults and Communities,Other Agencies - Third Party P,30078375,HENRY NIHILL HOUSE,"1,994.87",04/06/2015
Delivery Units,Adults and Communities,Other Agencies - Third Party P,30078376,HENRY NIHILL HOUSE,-495.80,04/06/2015
Delivery Units,Adults and Communities,Other Agencies - Third Party P,30079613,HENRY NIHILL HOUSE,"2,321.92",15/06/2015
Delivery Units,Adults and Communities,Other Agencies - Third Party P,30078418,HILLGREEN CARE LTD,"6,864.42",04/06/2015
Delivery Units,Adults and Communities,Other Agencies - Third Party P,30078419,HILLGREEN CARE LTD,"7,093.24",04/06/2015
Delivery Units,Adults and Communities,Other Agencies - Third Party P,30078141,HILLVIEW COURT NURSING HOME,"4,200.00",02/06/2015
Delivery Units,Adults and Communities,Other Agencies - Third Party P,30078142,HILLVIEW COURT NURSING HOME,-321.20,02/06/2015
Delivery Units,Adults and Communities,Other Agencies - Third Party P,30082455,HILLVIEW COURT NURSING HOME,"4,200.00",30/06/2015
Delivery Units,Adults and Communities,Other Agencies - Third Party P,30082456,HILLVIEW COURT NURSING HOME,-321.20,30/06/2015
Delivery Units,Adults and Communities,Other Agencies - Third Party P,30079415,HOLLY HOUSE CARE HOME,"4,368.08",11/06/2015
Delivery Units,Adults and Communities,Other Agencies - Third Party P,30079416,HOLLY HOUSE CARE HOME,"3,276.06",11/06/2015
Delivery Units,Adults and Communities,Other Agencies - Third Party P,30079420,HOLLY HOUSE CARE HOME,"3,276.06",11/06/2015
Delivery Units,Adults and Communities,Other Agencies - Third Party P,30078656,HOLLY HOUSE RESIDENTIAL CARE HOME,"3,535.06",04/06/2015
Delivery Units,Adults and Communities,Other Agencies - Third Party P,30078510,HOME FARM TRUST LTD,"8,034.76",18/06/2015
Delivery Units,Adults and Communities,Other Agencies - Third Party P,30078511,HOME FARM TRUST LTD,-320.00,18/06/2015
Delivery Units,Adults and Communities,Other Agencies - Third Party P,30081529,HOME FARM TRUST LTD,"2,657.40",24/06/2015
Delivery Units,Adults and Communities,Other Agencies - Third Party P,30081530,HOME FARM TRUST LTD,-321.80,24/06/2015
Delivery Units,Adults and Communities,Other Agencies - Third Party P,30080151,HOME FROM HOME CARE LTD,"9,769.00",17/06/2015
Delivery Units,Adults and Communities,Other Agencies - Third Party P,30080152,HOME FROM HOME CARE LTD,-350.60,17/06/2015
Delivery Units,Adults and Communities,Other Agencies - Third Party P,30080323,HOPE WORLDWIDE,"2,250.00",18/06/2015
Delivery Units,Adults and Communities,Other Agencies - Third Party P,30082244,HOPE WORLDWIDE,"2,250.00",26/06/2015
Delivery Units,Adults and Communities,Other Agencies - Third Party P,30078390,HOUSING 21 (BARNET),736.68,04/06/2015
Delivery Units,Adults and Communities,Other Agencies - Third Party P,30079520,HUSKARDS NEW CARE LTD,"2,145.00",11/06/2015
Delivery Units,Adults and Communities,Other Agencies - Third Party P,30079521,HUSKARDS NEW CARE LTD,"2,216.50",11/06/2015
Delivery Units,Adults and Communities,Other Agencies - Third Party P,20020603,HYTHE HOUSE SUPPORT LTD,"3,969.46",01/06/2015
Delivery Units,Adults and Communities,Other Agencies - Third Party P,30079119,INDEPENDENCE HOMES LIMITED,"2,900.00",10/06/2015
Delivery Units,Adults and Communities,Other Agencies - Third Party P,30079120,INDEPENDENCE HOMES LIMITED,"5,400.00",10/06/2015
Delivery Units,Adults and Communities,Other Agencies - Third Party P,30078076,INDIVIDUALISED CARE LIMITED,800.00,02/06/2015
Delivery Units,Adults and Communities,Other Agencies - Third Party P,30078077,INDIVIDUALISED CARE LIMITED,"2,400.00",02/06/2015
Delivery Units,Adults and Communities,Other Agencies - Third Party P,30078078,INDIVIDUALISED CARE LIMITED,800.00,02/06/2015
Delivery Units,Adults and Communities,Other Agencies - Third Party P,30078079,INDIVIDUALISED CARE LIMITED,700.00,02/06/2015
Delivery Units,Adults and Communities,Other Agencies - Third Party P,30078080,INDIVIDUALISED CARE LIMITED,500.00,02/06/2015
Delivery Units,Adults and Communities,Other Agencies - Third Party P,30078081,INDIVIDUALISED CARE LIMITED,800.00,02/06/2015
Delivery Units,Adults and Communities,Other Agencies - Third Party P,30078082,INDIVIDUALISED CARE LIMITED,700.00,02/06/2015
Delivery Units,Adults and Communities,Other Agencies - Third Party P,30078088,INDIVIDUALISED CARE LIMITED,700.00,02/06/2015
Delivery Units,Adults and Communities,Other Agencies - Third Party P,30078090,INDIVIDUALISED CARE LIMITED,284.00,02/06/2015
Delivery Units,Adults and Communities,Other Agencies - Third Party P,30078091,INDIVIDUALISED CARE LIMITED,"2,512.00",02/06/2015
Delivery Units,Adults and Communities,Other Agencies - Third Party P,30078092,INDIVIDUALISED CARE LIMITED,276.00,02/06/2015
Delivery Units,Adults and Communities,Other Agencies - Third Party P,30078093,INDIVIDUALISED CARE LIMITED,560.00,02/06/2015
Delivery Units,Adults and Communities,Other Agencies - Third Party P,30078095,INDIVIDUALISED CARE LIMITED,300.00,02/06/2015
Delivery Units,Adults and Communities,Other Agencies - Third Party P,30078096,INDIVIDUALISED CARE LIMITED,288.00,02/06/2015
Delivery Units,Adults and Communities,Other Agencies - Third Party P,30078099,INDIVIDUALISED CARE LIMITED,400.00,02/06/2015
Delivery Units,Adults and Communities,Other Agencies - Third Party P,30078100,INDIVIDUALISED CARE LIMITED,"1,000.00",02/06/2015
Delivery Units,Adults and Communities,Other Agencies - Third Party P,30078101,INDIVIDUALISED CARE LIMITED,300.00,02/06/2015
Delivery Units,Adults and Communities,Other Agencies - Third Party P,30078103,INDIVIDUALISED CARE LIMITED,"1,000.00",02/06/2015
Delivery Units,Adults and Communities,Other Agencies - Third Party P,30078245,INDIVIDUALISED CARE LIMITED,712.00,04/06/2015
Delivery Units,Adults and Communities,Other Agencies - Third Party P,30078246,INDIVIDUALISED CARE LIMITED,450.00,04/06/2015
Delivery Units,Adults and Communities,Other Agencies - Third Party P,30078248,INDIVIDUALISED CARE LIMITED,300.00,04/06/2015
Delivery Units,Adults and Communities,Other Agencies - Third Party P,30078249,INDIVIDUALISED CARE LIMITED,331.00,04/06/2015
Delivery Units,Adults and Communities,Other Agencies - Third Party P,30078992,INDIVIDUALISED CARE LIMITED,342.00,08/06/2015
Delivery Units,Adults and Communities,Other Agencies - Third Party P,30079784,INDIVIDUALISED CARE LIMITED,255.00,16/06/2015
Delivery Units,Adults and Communities,Other Agencies - Third Party P,30079785,INDIVIDUALISED CARE LIMITED,425.00,16/06/2015
Delivery Units,Adults and Communities,Other Agencies - Third Party P,30082252,INDIVIDUALISED CARE LIMITED,"1,000.00",26/06/2015
Delivery Units,Adults and Communities,Other Agencies - Third Party P,30082253,INDIVIDUALISED CARE LIMITED,"2,400.00",26/06/2015
Delivery Units,Adults and Communities,Other Agencies - Third Party P,30082254,INDIVIDUALISED CARE LIMITED,"1,000.00",26/06/2015
Delivery Units,Adults and Communities,Other Agencies - Third Party P,30082255,INDIVIDUALISED CARE LIMITED,"1,800.00",26/06/2015
Delivery Units,Adults and Communities,Other Agencies - Third Party P,30082256,INDIVIDUALISED CARE LIMITED,800.00,26/06/2015
Delivery Units,Adults and Communities,Other Agencies - Third Party P,30082257,INDIVIDUALISED CARE LIMITED,"2,512.00",26/06/2015
Delivery Units,Adults and Communities,Other Agencies - Third Party P,30082258,INDIVIDUALISED CARE LIMITED,700.00,26/06/2015
Delivery Units,Adults and Communities,Other Agencies - Third Party P,30082259,INDIVIDUALISED CARE LIMITED,500.00,26/06/2015
Delivery Units,Adults and Communities,Other Agencies - Third Party P,30082260,INDIVIDUALISED CARE LIMITED,800.00,26/06/2015
Delivery Units,Adults and Communities,Other Agencies - Third Party P,30082262,INDIVIDUALISED CARE LIMITED,700.00,26/06/2015
Delivery Units,Adults and Communities,Other Agencies - Third Party P,30082263,INDIVIDUALISED CARE LIMITED,255.00,26/06/2015
Delivery Units,Adults and Communities,Other Agencies - Third Party P,30082265,INDIVIDUALISED CARE LIMITED,700.00,26/06/2015
Delivery Units,Adults and Communities,Other Agencies - Third Party P,30082268,INDIVIDUALISED CARE LIMITED,284.00,26/06/2015
Delivery Units,Adults and Communities,Other Agencies - Third Party P,30082269,INDIVIDUALISED CARE LIMITED,560.00,26/06/2015
Delivery Units,Adults and Communities,Other Agencies - Third Party P,30082270,INDIVIDUALISED CARE LIMITED,588.00,26/06/2015
Delivery Units,Adults and Communities,Other Agencies - Third Party P,30082271,INDIVIDUALISED CARE LIMITED,300.00,26/06/2015
Delivery Units,Adults and Communities,Other Agencies - Third Party P,30082274,INDIVIDUALISED CARE LIMITED,400.00,26/06/2015
Delivery Units,Adults and Communities,Other Agencies - Third Party P,30082275,INDIVIDUALISED CARE LIMITED,"1,000.00",26/06/2015
Delivery Units,Adults and Communities,Other Agencies - Third Party P,30082276,INDIVIDUALISED CARE LIMITED,700.00,26/06/2015
Delivery Units,Adults and Communities,Other Agencies - Third Party P,30082277,INDIVIDUALISED CARE LIMITED,500.00,26/06/2015
Delivery Units,Adults and Communities,Other Agencies - Third Party P,30082278,INDIVIDUALISED CARE LIMITED,300.00,26/06/2015
Delivery Units,Adults and Communities,Other Agencies - Third Party P,30082280,INDIVIDUALISED CARE LIMITED,534.00,26/06/2015
Delivery Units,Adults and Communities,Other Agencies - Third Party P,30082281,INDIVIDUALISED CARE LIMITED,800.00,26/06/2015
Delivery Units,Adults and Communities,Other Agencies - Third Party P,30082282,INDIVIDUALISED CARE LIMITED,600.00,26/06/2015
Delivery Units,Adults and Communities,Other Agencies - Third Party P,30082368,INDIVIDUALISED CARE LIMITED,358.00,29/06/2015
Delivery Units,Adults and Communities,Other Agencies - Third Party P,30082369,INDIVIDUALISED CARE LIMITED,408.00,29/06/2015
Delivery Units,Adults and Communities,Other Agencies - Third Party P,30082370,INDIVIDUALISED CARE LIMITED,430.00,29/06/2015
Delivery Units,Adults and Communities,Other Agencies - Third Party P,30078414,INSIGHT SPECIALIST BEHAVIOURAL,"5,944.08",04/06/2015
Delivery Units,Adults and Communities,Other Agencies - Third Party P,30082245,INTEGRATED SERVICES PROGRAMME,"2,878.66",26/06/2015
Delivery Units,Adults and Communities,Other Agencies - Third Party P,30082246,INTEGRATED SERVICES PROGRAMME,"2,600.08",26/06/2015
Delivery Units,Adults and Communities,Other Agencies - Third Party P,30082249,INTEGRATED SERVICES PROGRAMME,"2,600.08",26/06/2015
Delivery Units,Adults and Communities,Other Agencies - Third Party P,30082250,INTEGRATED SERVICES PROGRAMME,"2,600.08",29/06/2015
Delivery Units,Adults and Communities,Other Agencies - Third Party P,30082286,INTEGRATED SERVICES PROGRAMME,"2,878.66",26/06/2015
Delivery Units,Adults and Communities,Other Agencies - Third Party P,30078380,JANITH HOMES LTD,"2,650.19",04/06/2015
Delivery Units,Adults and Communities,Other Agencies - Third Party P,30078381,JANITH HOMES LTD,-356.19,04/06/2015
Delivery Units,Adults and Communities,Other Agencies - Third Party P,30078071,JEMINI RESPONSE,"9,100.00",05/06/2015
Delivery Units,Adults and Communities,Other Agencies - Third Party P,30078161,JEWISH CARE,750.71,02/06/2015
Delivery Units,Adults and Communities,Other Agencies - Third Party P,30078162,JEWISH CARE,"9,346.77",02/06/2015
Delivery Units,Adults and Communities,Other Agencies - Third Party P,30078163,JEWISH CARE,"8,794.21",02/06/2015
Delivery Units,Adults and Communities,Other Agencies - Third Party P,30078164,JEWISH CARE,"-8,914.28",02/06/2015
Delivery Units,Adults and Communities,Other Agencies - Third Party P,30080079,JEWISH CARE,491.41,17/06/2015
Delivery Units,Adults and Communities,Other Agencies - Third Party P,30081504,JEWISH CARE,"5,219.29",24/06/2015
Delivery Units,Adults and Communities,Other Agencies - Third Party P,30081505,JEWISH CARE,"6,306.00",24/06/2015
Delivery Units,Adults and Communities,Other Agencies - Third Party P,30081508,JEWISH CARE,"2,102.00",24/06/2015
Delivery Units,Adults and Communities,Other Agencies - Third Party P,30081509,JEWISH CARE,"3,200.00",24/06/2015
Delivery Units,Adults and Communities,Other Agencies - Third Party P,30081517,JEWISH CARE,"2,199.24",24/06/2015
Delivery Units,Adults and Communities,Other Agencies - Third Party P,30081518,JEWISH CARE,"3,360.00",24/06/2015
Delivery Units,Adults and Communities,Other Agencies - Third Party P,30081519,JEWISH CARE,-321.80,24/06/2015
Delivery Units,Adults and Communities,Other Agencies - Third Party P,30081521,JEWISH CARE,"1,628.64",24/06/2015
Delivery Units,Adults and Communities,Other Agencies - Third Party P,30082461,JEWISH CARE,"5,480.21",30/06/2015
Delivery Units,Adults and Communities,Other Agencies - Third Party P,30082462,JEWISH CARE,"-1,351.29",30/06/2015
Delivery Units,Adults and Communities,Other Agencies - Third Party P,30078115,JIGSAW CREATIVE CARE LIMITED,"2,998.68",02/06/2015
Delivery Units,Adults and Communities,Other Agencies - Third Party P,30078116,JIGSAW CREATIVE CARE LIMITED,"1,412.00",02/06/2015
Delivery Units,Adults and Communities,Other Agencies - Third Party P,30078117,JIGSAW CREATIVE CARE LIMITED,"2,783.00",02/06/2015
Delivery Units,Adults and Communities,Other Agencies - Third Party P,30080338,JIGSAW CREATIVE CARE LIMITED,"2,998.68",18/06/2015
Delivery Units,Adults and Communities,Other Agencies - Third Party P,30080339,JIGSAW CREATIVE CARE LIMITED,"1,412.00",18/06/2015
Delivery Units,Adults and Communities,Other Agencies - Third Party P,30080340,JIGSAW CREATIVE CARE LIMITED,"2,783.00",18/06/2015
Delivery Units,Adults and Communities,Other Agencies - Third Party P,30080342,JIGSAW CREATIVE CARE LIMITED,"5,997.36",18/06/2015
Delivery Units,Adults and Communities,Other Agencies - Third Party P,30080343,JIGSAW CREATIVE CARE LIMITED,"2,824.00",18/06/2015
Delivery Units,Adults and Communities,Other Agencies - Third Party P,30080344,JIGSAW CREATIVE CARE LIMITED,"5,566.00",18/06/2015
Delivery Units,Adults and Communities,Other Agencies - Third Party P,30082102,JIGSAW CREATIVE CARE LIMITED,"2,998.68",25/06/2015
Delivery Units,Adults and Communities,Other Agencies - Third Party P,30082103,JIGSAW CREATIVE CARE LIMITED,"1,412.00",25/06/2015
Delivery Units,Adults and Communities,Other Agencies - Third Party P,30082104,JIGSAW CREATIVE CARE LIMITED,"2,783.00",25/06/2015
Delivery Units,Adults and Communities,Other Agencies - Third Party P,30078310,KEMBLE HOUSE,"8,192.99",04/06/2015
Delivery Units,Adults and Communities,Other Agencies - Third Party P,30078312,KEMBLE HOUSE,"9,680.37",04/06/2015
Delivery Units,Adults and Communities,Other Agencies - Third Party P,30078314,KEMBLE HOUSE,"3,339.01",04/06/2015
Delivery Units,Adults and Communities,Other Agencies - Third Party P,30078315,KEMBLE HOUSE,"7,438.45",04/06/2015
Delivery Units,Adults and Communities,Other Agencies - Third Party P,30079350,KENWARD TRUST,"1,860.00",10/06/2015
Delivery Units,Adults and Communities,Other Agencies - Third Party P,30080551,KILCULLEN HOMES (UK) LLP,"1,569.48",19/06/2015
Delivery Units,Adults and Communities,Other Agencies - Third Party P,30080552,KILCULLEN HOMES (UK) LLP,"1,569.48",19/06/2015
Delivery Units,Adults and Communities,Other Agencies - Third Party P,30080553,KILCULLEN HOMES (UK) LLP,"1,569.48",19/06/2015
Delivery Units,Adults and Communities,Other Agencies - Third Party P,30082412,KIRKLEY MANOR,"2,001.92",29/06/2015
Delivery Units,Adults and Communities,Other Agencies - Third Party P,30082413,KIRKLEY MANOR,-495.80,29/06/2015
Delivery Units,Adults and Communities,Other Agencies - Third Party P,30079008,KISHARON DAY SCHOOL,"1,464.03",08/06/2015
Delivery Units,Adults and Communities,Other Agencies - Third Party P,30079009,KISHARON DAY SCHOOL,"4,260.72",08/06/2015
Delivery Units,Adults and Communities,Other Agencies - Third Party P,30079010,KISHARON DAY SCHOOL,794.08,08/06/2015
Delivery Units,Adults and Communities,Other Agencies - Third Party P,30079011,KISHARON DAY SCHOOL,381.54,08/06/2015
Delivery Units,Adults and Communities,Other Agencies - Third Party P,30079012,KISHARON DAY SCHOOL,"1,373.49",08/06/2015
Delivery Units,Adults and Communities,Other Agencies - Third Party P,30079013,KISHARON DAY SCHOOL,"1,679.87",08/06/2015
Delivery Units,Adults and Communities,Other Agencies - Third Party P,30079014,KISHARON DAY SCHOOL,"1,340.18",08/06/2015
Delivery Units,Adults and Communities,Other Agencies - Third Party P,30079015,KISHARON DAY SCHOOL,"1,241.16",08/06/2015
Delivery Units,Adults and Communities,Other Agencies - Third Party P,30079016,KISHARON DAY SCHOOL,"1,369.23",08/06/2015
Delivery Units,Adults and Communities,Other Agencies - Third Party P,30079017,KISHARON DAY SCHOOL,"1,133.60",08/06/2015
Delivery Units,Adults and Communities,Other Agencies - Third Party P,30079018,KISHARON DAY SCHOOL,"1,373.68",08/06/2015
Delivery Units,Adults and Communities,Other Agencies - Third Party P,30079019,KISHARON DAY SCHOOL,733.72,08/06/2015
Delivery Units,Adults and Communities,Other Agencies - Third Party P,30079021,KISHARON DAY SCHOOL,"1,275.96",08/06/2015
Delivery Units,Adults and Communities,Other Agencies - Third Party P,30079127,KISHARON DAY SCHOOL,"2,144.10",09/06/2015
Delivery Units,Adults and Communities,Other Agencies - Third Party P,30079128,KISHARON DAY SCHOOL,"2,144.10",10/06/2015
Delivery Units,Adults and Communities,Other Agencies - Third Party P,30079130,KISHARON DAY SCHOOL,"2,284.24",10/06/2015
Delivery Units,Adults and Communities,Other Agencies - Third Party P,30079131,KISHARON DAY SCHOOL,397.11,10/06/2015
Delivery Units,Adults and Communities,Other Agencies - Third Party P,30079449,KISHARON DAY SCHOOL,"1,373.49",11/06/2015
Delivery Units,Adults and Communities,Other Agencies - Third Party P,30079531,KISHARON DAY SCHOOL,686.88,12/06/2015
Delivery Units,Adults and Communities,Other Agencies - Third Party P,30079632,KISHARON DAY SCHOOL,"3,098.05",15/06/2015
Delivery Units,Adults and Communities,Other Agencies - Third Party P,30079633,KISHARON DAY SCHOOL,-353.62,15/06/2015
Delivery Units,Adults and Communities,Other Agencies - Third Party P,30079634,KISHARON DAY SCHOOL,"3,098.05",15/06/2015
Delivery Units,Adults and Communities,Other Agencies - Third Party P,30079635,KISHARON DAY SCHOOL,-353.62,15/06/2015
Delivery Units,Adults and Communities,Other Agencies - Third Party P,30079636,KISHARON DAY SCHOOL,"5,044.23",15/06/2015
Delivery Units,Adults and Communities,Other Agencies - Third Party P,30079637,KISHARON DAY SCHOOL,-353.62,15/06/2015
Delivery Units,Adults and Communities,Other Agencies - Third Party P,30079638,KISHARON DAY SCHOOL,"3,098.05",15/06/2015
Delivery Units,Adults and Communities,Other Agencies - Third Party P,30079639,KISHARON DAY SCHOOL,-353.62,15/06/2015
Delivery Units,Adults and Communities,Other Agencies - Third Party P,30079163,LANGDON COMMUNITY LTD,"2,403.92",10/06/2015
Delivery Units,Adults and Communities,Other Agencies - Third Party P,30079168,LANGDON COMMUNITY LTD,"1,276.80",10/06/2015
Delivery Units,Adults and Communities,Other Agencies - Third Party P,30079169,LANGDON COMMUNITY LTD,956.38,10/06/2015
Delivery Units,Adults and Communities,Other Agencies - Third Party P,30079170,LANGDON COMMUNITY LTD,"3,144.56",10/06/2015
Delivery Units,Adults and Communities,Other Agencies - Third Party P,30079175,LANGDON COMMUNITY LTD,"3,411.49",10/06/2015
Delivery Units,Adults and Communities,Other Agencies - Third Party P,30079176,LANGDON COMMUNITY LTD,"1,763.20",09/06/2015
Delivery Units,Adults and Communities,Other Agencies - Third Party P,30079178,LANGDON COMMUNITY LTD,425.60,10/06/2015
Delivery Units,Adults and Communities,Other Agencies - Third Party P,30079185,LANGDON COMMUNITY LTD,"1,772.32",10/06/2015
Delivery Units,Adults and Communities,Other Agencies - Third Party P,30079187,LANGDON COMMUNITY LTD,"2,097.60",10/06/2015
Delivery Units,Adults and Communities,Other Agencies - Third Party P,30079188,LANGDON COMMUNITY LTD,"5,002.64",10/06/2015
Delivery Units,Adults and Communities,Other Agencies - Third Party P,30079235,LANGDON COMMUNITY LTD,"1,315.12",10/06/2015
Delivery Units,Adults and Communities,Other Agencies - Third Party P,30079236,LANGDON COMMUNITY LTD,608.00,10/06/2015
Delivery Units,Adults and Communities,Other Agencies - Third Party P,30079239,LANGDON COMMUNITY LTD,"1,064.00",10/06/2015
Delivery Units,Adults and Communities,Other Agencies - Third Party P,30079650,LANGDON COMMUNITY LTD,"1,641.60",15/06/2015
Delivery Units,Adults and Communities,Other Agencies - Third Party P,30079651,LANGDON COMMUNITY LTD,"2,979.20",15/06/2015
Delivery Units,Adults and Communities,Other Agencies - Third Party P,30079652,LANGDON COMMUNITY LTD,"2,979.20",15/06/2015
Delivery Units,Adults and Communities,Other Agencies - Third Party P,30079666,LANGDON COMMUNITY LTD,425.60,15/06/2015
Delivery Units,Adults and Communities,Other Agencies - Third Party P,30079671,LANGDON COMMUNITY LTD,"5,002.64",15/06/2015
Delivery Units,Adults and Communities,Other Agencies - Third Party P,30079703,LANGDON COMMUNITY LTD,"1,064.00",15/06/2015
Delivery Units,Adults and Communities,Other Agencies - Third Party P,30079794,LANGDON COMMUNITY LTD,"2,403.92",16/06/2015
Delivery Units,Adults and Communities,Other Agencies - Third Party P,30079795,LANGDON COMMUNITY LTD,"1,641.60",16/06/2015
Delivery Units,Adults and Communities,Other Agencies - Third Party P,30079796,LANGDON COMMUNITY LTD,"1,276.80",16/06/2015
Delivery Units,Adults and Communities,Other Agencies - Third Party P,30079797,LANGDON COMMUNITY LTD,956.38,16/06/2015
Delivery Units,Adults and Communities,Other Agencies - Third Party P,30079798,LANGDON COMMUNITY LTD,"3,144.56",16/06/2015
Delivery Units,Adults and Communities,Other Agencies - Third Party P,30079799,LANGDON COMMUNITY LTD,"3,411.49",16/06/2015
Delivery Units,Adults and Communities,Other Agencies - Third Party P,30079800,LANGDON COMMUNITY LTD,"1,763.20",16/06/2015
Delivery Units,Adults and Communities,Other Agencies - Third Party P,30079801,LANGDON COMMUNITY LTD,"1,772.32",16/06/2015
Delivery Units,Adults and Communities,Other Agencies - Third Party P,30079802,LANGDON COMMUNITY LTD,"2,097.60",16/06/2015
Delivery Units,Adults and Communities,Other Agencies - Third Party P,30079804,LANGDON COMMUNITY LTD,"1,315.12",16/06/2015
Delivery Units,Adults and Communities,Other Agencies - Third Party P,30079805,LANGDON COMMUNITY LTD,608.00,16/06/2015
Delivery Units,Adults and Communities,Other Agencies - Third Party P,30080097,LANGDON COMMUNITY LTD,851.20,17/06/2015
Delivery Units,Adults and Communities,Other Agencies - Third Party P,30078620,LEEMING BAR CARE HOME,"1,939.32",04/06/2015
Delivery Units,Adults and Communities,Other Agencies - Third Party P,30078542,LEO BAECK HOUSING ASSOC. LTD,996.06,04/06/2015
Delivery Units,Adults and Communities,Other Agencies - Third Party P,30078742,LEWIS.W.HAMMERSON MEMORIAL HOME,"2,216.41",04/06/2015
Delivery Units,Adults and Communities,Other Agencies - Third Party P,30078743,LEWIS.W.HAMMERSON MEMORIAL HOME,"2,216.41",04/06/2015
Delivery Units,Adults and Communities,Other Agencies - Third Party P,30078744,LEWIS.W.HAMMERSON MEMORIAL HOME,-544.00,04/06/2015
Delivery Units,Adults and Communities,Other Agencies - Third Party P,30078745,LEWIS.W.HAMMERSON MEMORIAL HOME,"2,216.41",04/06/2015
Delivery Units,Adults and Communities,Other Agencies - Third Party P,30078746,LEWIS.W.HAMMERSON MEMORIAL HOME,"2,216.41",04/06/2015
Delivery Units,Adults and Communities,Other Agencies - Third Party P,30078747,LEWIS.W.HAMMERSON MEMORIAL HOME,"2,216.41",04/06/2015
Delivery Units,Adults and Communities,Other Agencies - Third Party P,30079690,LEWIS.W.HAMMERSON MEMORIAL HOME,"2,144.92",15/06/2015
Delivery Units,Adults and Communities,Other Agencies - Third Party P,30079691,LEWIS.W.HAMMERSON MEMORIAL HOME,-876.69,15/06/2015
Delivery Units,Adults and Communities,Other Agencies - Third Party P,30079692,LEWIS.W.HAMMERSON MEMORIAL HOME,"2,129.23",15/06/2015
Delivery Units,Adults and Communities,Other Agencies - Third Party P,30079693,LEWIS.W.HAMMERSON MEMORIAL HOME,-510.77,15/06/2015
Delivery Units,Adults and Communities,Other Agencies - Third Party P,30079694,LEWIS.W.HAMMERSON MEMORIAL HOME,"2,216.40",15/06/2015
Delivery Units,Adults and Communities,Other Agencies - Third Party P,30079695,LEWIS.W.HAMMERSON MEMORIAL HOME,-905.90,15/06/2015
Delivery Units,Adults and Communities,Other Agencies - Third Party P,30079696,LEWIS.W.HAMMERSON MEMORIAL HOME,"2,144.91",15/06/2015
Delivery Units,Adults and Communities,Other Agencies - Third Party P,30079697,LEWIS.W.HAMMERSON MEMORIAL HOME,-876.68,15/06/2015
Delivery Units,Adults and Communities,Other Agencies - Third Party P,30079698,LEWIS.W.HAMMERSON MEMORIAL HOME,-929.46,15/06/2015
Delivery Units,Adults and Communities,Other Agencies - Third Party P,30082426,LEWIS.W.HAMMERSON MEMORIAL HOME,"2,144.91",29/06/2015
Delivery Units,Adults and Communities,Other Agencies - Third Party P,30082427,LEWIS.W.HAMMERSON MEMORIAL HOME,"2,144.91",29/06/2015
Delivery Units,Adults and Communities,Other Agencies - Third Party P,30082428,LEWIS.W.HAMMERSON MEMORIAL HOME,"2,144.91",29/06/2015
Delivery Units,Adults and Communities,Other Agencies - Third Party P,30079490,LIFESTYLE CARE 2011 PLC,"2,138.00",11/06/2015
Delivery Units,Adults and Communities,Other Agencies - Third Party P,30079481,LIFESTYLE CARE PLC,"2,318.93",11/06/2015
Delivery Units,Adults and Communities,Other Agencies - Third Party P,30079482,LIFESTYLE CARE PLC,"2,318.93",11/06/2015
Delivery Units,Adults and Communities,Other Agencies - Third Party P,30079483,LIFESTYLE CARE PLC,"2,318.93",11/06/2015
Delivery Units,Adults and Communities,Other Agencies - Third Party P,30079484,LIFESTYLE CARE PLC,"2,570.39",11/06/2015
Delivery Units,Adults and Communities,Other Agencies - Third Party P,30079485,LIFESTYLE CARE PLC,"2,575.15",11/06/2015
Delivery Units,Adults and Communities,Other Agencies - Third Party P,30079486,LIFESTYLE CARE PLC,"2,323.69",11/06/2015
Delivery Units,Adults and Communities,Other Agencies - Third Party P,30079487,LIFESTYLE CARE PLC,"3,953.41",11/06/2015
Delivery Units,Adults and Communities,Other Agencies - Third Party P,30079488,LIFESTYLE CARE PLC,"2,318.93",11/06/2015
Delivery Units,Adults and Communities,Other Agencies - Third Party P,30079489,LIFESTYLE CARE PLC,"2,318.93",11/06/2015
Delivery Units,Adults and Communities,Other Agencies - Third Party P,30079536,LIFEWAYS,"3,145.24",12/06/2015
Delivery Units,Adults and Communities,Other Agencies - Third Party P,30079538,LIFEWAYS,"5,037.40",12/06/2015
Delivery Units,Adults and Communities,Other Agencies - Third Party P,30079539,LIFEWAYS,"5,943.00",12/06/2015
Delivery Units,Adults and Communities,Other Agencies - Third Party P,30079544,LIFEWAYS,"3,656.00",12/06/2015
Delivery Units,Adults and Communities,Other Agencies - Third Party P,30079545,LIFEWAYS,"5,766.44",12/06/2015
Delivery Units,Adults and Communities,Other Agencies - Third Party P,30079546,LIFEWAYS,"2,377.20",12/06/2015
Delivery Units,Adults and Communities,Other Agencies - Third Party P,30079547,LIFEWAYS,"4,828.24",12/06/2015
Delivery Units,Adults and Communities,Other Agencies - Third Party P,30079658,LIFEWAYS,"1,060.00",15/06/2015
Delivery Units,Adults and Communities,Other Agencies - Third Party P,30080103,LIFEWAYS,"6,930.00",17/06/2015
Delivery Units,Adults and Communities,Other Agencies - Third Party P,30078523,LIVABILITY,"2,400.00",04/06/2015
Delivery Units,Adults and Communities,Other Agencies - Third Party P,30078524,LIVABILITY,"3,424.00",04/06/2015
Delivery Units,Adults and Communities,Other Agencies - Third Party P,30078641,LIVABILITY,"4,891.20",04/06/2015
Delivery Units,Adults and Communities,Other Agencies - Third Party P,30078642,LIVABILITY,"5,279.24",04/06/2015
Delivery Units,Adults and Communities,Other Agencies - Third Party P,30080100,LIVABILITY,"3,672.00",17/06/2015
Delivery Units,Adults and Communities,Other Agencies - Third Party P,30080101,LIVABILITY,-319.40,17/06/2015
Delivery Units,Adults and Communities,Other Agencies - Third Party P,30080933,LIVABILITY,"3,672.00",22/06/2015
Delivery Units,Adults and Communities,Other Agencies - Third Party P,30080934,LIVABILITY,-319.40,22/06/2015
Delivery Units,Adults and Communities,Other Agencies - Third Party P,30081539,LIVABILITY,"3,189.32",24/06/2015
Delivery Units,Adults and Communities,Other Agencies - Third Party P,30081540,LIVABILITY,-505.20,24/06/2015
Delivery Units,Adults and Communities,Other Agencies - Third Party P,30081541,LIVABILITY,"3,189.32",24/06/2015
Delivery Units,Adults and Communities,Other Agencies - Third Party P,30081542,LIVABILITY,-505.20,24/06/2015
Delivery Units,Adults and Communities,Other Agencies - Third Party P,30078133,LONG FURROWS RESIDENTIAL CARE HOME,"4,105.24",02/06/2015
Delivery Units,Adults and Communities,Other Agencies - Third Party P,30078134,LONG FURROWS RESIDENTIAL CARE HOME,-539.26,02/06/2015
Delivery Units,Adults and Communities,Other Agencies - Third Party P,30078416,LONG FURROWS RESIDENTIAL CARE HOME,"4,242.08",04/06/2015
Delivery Units,Adults and Communities,Other Agencies - Third Party P,30078417,LONG FURROWS RESIDENTIAL CARE HOME,-559.32,04/06/2015
Delivery Units,Adults and Communities,Other Agencies - Third Party P,30080362,LORRAINES CARE HOME LTD,"1,820.00",18/06/2015
Delivery Units,Adults and Communities,Other Agencies - Third Party P,30080363,LORRAINES CARE HOME LTD,"1,820.00",18/06/2015
Delivery Units,Adults and Communities,Other Agencies - Third Party P,30078624,M D HOMES,"3,542.86",04/06/2015
Delivery Units,Adults and Communities,Other Agencies - Third Party P,30081612,MACINTYRE CARE,"4,015.72",24/06/2015
Delivery Units,Adults and Communities,Other Agencies - Third Party P,30081613,MACINTYRE CARE,-321.80,24/06/2015
Delivery Units,Adults and Communities,Other Agencies - Third Party P,30081614,MACINTYRE CARE,"2,332.48",24/06/2015
Delivery Units,Adults and Communities,Other Agencies - Third Party P,30081615,MACINTYRE CARE,-321.80,24/06/2015
Delivery Units,Adults and Communities,Other Agencies - Third Party P,30081616,MACINTYRE CARE,750.40,24/06/2015
Delivery Units,Adults and Communities,Other Agencies - Third Party P,30081617,MACINTYRE CARE,"3,812.84",24/06/2015
Delivery Units,Adults and Communities,Other Agencies - Third Party P,30081618,MACINTYRE CARE,-321.80,24/06/2015
Delivery Units,Adults and Communities,Other Agencies - Third Party P,30081619,MACINTYRE CARE,"3,570.16",24/06/2015
Delivery Units,Adults and Communities,Other Agencies - Third Party P,30081620,MACINTYRE CARE,-321.80,24/06/2015
Delivery Units,Adults and Communities,Other Agencies - Third Party P,30081621,MACINTYRE CARE,"2,326.48",24/06/2015
Delivery Units,Adults and Communities,Other Agencies - Third Party P,30081622,MACINTYRE CARE,-321.80,24/06/2015
Delivery Units,Adults and Communities,Other Agencies - Third Party P,30079089,MADELAYNE COURT,"2,216.41",08/06/2015
Delivery Units,Adults and Communities,Other Agencies - Third Party P,30079126,MAISON MOTI LTD,"1,642.48",10/06/2015
Delivery Units,Adults and Communities,Other Agencies - Third Party P,30079132,MAISON MOTI LTD,"2,240.00",10/06/2015
Delivery Units,Adults and Communities,Other Agencies - Third Party P,30079133,MAISON MOTI LTD,"2,500.00",09/06/2015
Delivery Units,Adults and Communities,Other Agencies - Third Party P,30079134,MAISON MOTI LTD,"2,500.00",10/06/2015
Delivery Units,Adults and Communities,Other Agencies - Third Party P,30079135,MAISON MOTI LTD,"2,440.00",10/06/2015
Delivery Units,Adults and Communities,Other Agencies - Third Party P,30079136,MAISON MOTI LTD,"1,785.71",09/06/2015
Delivery Units,Adults and Communities,Other Agencies - Third Party P,30079137,MAISON MOTI LTD,"2,500.00",10/06/2015
Delivery Units,Adults and Communities,Other Agencies - Third Party P,30079138,MAISON MOTI LTD,"2,440.00",10/06/2015
Delivery Units,Adults and Communities,Other Agencies - Third Party P,30079139,MAISON MOTI LTD,"1,071.43",09/06/2015
Delivery Units,Adults and Communities,Other Agencies - Third Party P,30079142,MAISON MOTI LTD,"1,026.00",10/06/2015
Delivery Units,Adults and Communities,Other Agencies - Third Party P,30079195,MAISON MOTI LTD,343.40,10/06/2015
Delivery Units,Adults and Communities,Other Agencies - Third Party P,30079443,MAISON MOTI LTD,"3,400.00",11/06/2015
Delivery Units,Adults and Communities,Other Agencies - Third Party P,30080673,MAISON MOTI LTD,"3,260.00",22/06/2015
Delivery Units,Adults and Communities,Other Agencies - Third Party P,30079550,MARRILYNE LODGE,"2,554.20",12/06/2015
Delivery Units,Adults and Communities,Other Agencies - Third Party P,30079551,MARRILYNE LODGE,"2,235.12",12/06/2015
Delivery Units,Adults and Communities,Other Agencies - Third Party P,30078432,MARYVILLE CARE HOME,"2,318.93",04/06/2015
Delivery Units,Adults and Communities,Other Agencies - Third Party P,30078433,MARYVILLE CARE HOME,-559.33,04/06/2015
Delivery Units,Adults and Communities,Other Agencies - Third Party P,30078434,MARYVILLE CARE HOME,"2,512.73",04/06/2015
Delivery Units,Adults and Communities,Other Agencies - Third Party P,30078435,MARYVILLE CARE HOME,-559.33,04/06/2015
Delivery Units,Adults and Communities,Other Agencies - Third Party P,30078647,MAYFIELD ADULT SERVICES,"9,875.71",04/06/2015
Delivery Units,Adults and Communities,Other Agencies - Third Party P,30078188,MCCH SOCIETY LIMITED,"4,280.00",02/06/2015
Delivery Units,Adults and Communities,Other Agencies - Third Party P,30078189,MCCH SOCIETY LIMITED,-495.80,02/06/2015
Delivery Units,Adults and Communities,Other Agencies - Third Party P,30079087,MCCH SOCIETY LIMITED,"4,280.00",29/06/2015
Delivery Units,Adults and Communities,Other Agencies - Third Party P,30079088,MCCH SOCIETY LIMITED,-505.20,29/06/2015
Delivery Units,Adults and Communities,Other Agencies - Third Party P,30079024,MEADOWBANK TRUST,"3,096.30",08/06/2015
Delivery Units,Adults and Communities,Other Agencies - Third Party P,30079025,MEADOWBANK TRUST,-344.36,08/06/2015
Delivery Units,Adults and Communities,Other Agencies - Third Party P,30079028,MEADOWBANK TRUST,"3,199.51",08/06/2015
Delivery Units,Adults and Communities,Other Agencies - Third Party P,30079029,MEADOWBANK TRUST,-356.28,08/06/2015
Delivery Units,Adults and Communities,Other Agencies - Third Party P,30078519,MEERA NURSING HOME LIMITED,"2,318.93",04/06/2015
Delivery Units,Adults and Communities,Other Agencies - Third Party P,30078557,MEERA NURSING HOME LIMITED,"2,318.93",04/06/2015
Delivery Units,Adults and Communities,Other Agencies - Third Party P,30078580,MEERA NURSING HOME LIMITED,"2,318.93",04/06/2015
Delivery Units,Adults and Communities,Other Agencies - Third Party P,30078612,MEERA NURSING HOME LIMITED,"2,320.57",04/06/2015
Delivery Units,Adults and Communities,Other Agencies - Third Party P,30078646,MEERA NURSING HOME LIMITED,"2,318.93",04/06/2015
Delivery Units,Adults and Communities,Other Agencies - Third Party P,30078655,MEERA NURSING HOME LIMITED,"2,318.93",04/06/2015
Delivery Units,Adults and Communities,Other Agencies - Third Party P,30078658,MEERA NURSING HOME LIMITED,"2,531.42",04/06/2015
Delivery Units,Adults and Communities,Other Agencies - Third Party P,30078661,MEERA NURSING HOME LIMITED,"2,318.93",04/06/2015
Delivery Units,Adults and Communities,Other Agencies - Third Party P,30078662,MEERA NURSING HOME LIMITED,"2,320.53",04/06/2015
Delivery Units,Adults and Communities,Other Agencies - Third Party P,30078663,MEERA NURSING HOME LIMITED,"2,318.93",04/06/2015
Delivery Units,Adults and Communities,Other Agencies - Third Party P,30078741,MEERA NURSING HOME LIMITED,"2,318.93",04/06/2015
Delivery Units,Adults and Communities,Other Agencies - Third Party P,30078347,MENTAL HEALTH CARE (UK) LTD,"10,610.19",04/06/2015
Delivery Units,Adults and Communities,Other Agencies - Third Party P,30078635,METHODIST HOMES FOR THE AGED,"2,001.92",04/06/2015
Delivery Units,Adults and Communities,Other Agencies - Third Party P,30078650,METHODIST HOMES FOR THE AGED,"2,500.00",04/06/2015
Delivery Units,Adults and Communities,Other Agencies - Third Party P,30078794,METHODIST HOMES FOR THE AGED,"2,331.32",04/06/2015
Delivery Units,Adults and Communities,Other Agencies - Third Party P,30078795,METHODIST HOMES FOR THE AGED,-505.20,04/06/2015
Delivery Units,Adults and Communities,Other Agencies - Third Party P,30079522,MILBURY,"6,237.40",11/06/2015
Delivery Units,Adults and Communities,Other Agencies - Third Party P,30079523,MILBURY,-321.80,11/06/2015
Delivery Units,Adults and Communities,Other Agencies - Third Party P,30081658,MILBURY,"6,235.00",24/06/2015
Delivery Units,Adults and Communities,Other Agencies - Third Party P,30081659,MILBURY,-321.80,24/06/2015
Delivery Units,Adults and Communities,Other Agencies - Third Party P,30079164,ML HOMES LTD,"1,740.00",12/06/2015
Delivery Units,Adults and Communities,Other Agencies - Third Party P,30079165,ML HOMES LTD,"1,740.00",09/06/2015
Delivery Units,Adults and Communities,Other Agencies - Third Party P,30079166,ML HOMES LTD,"2,118.36",12/06/2015
Delivery Units,Adults and Communities,Other Agencies - Third Party P,30079167,ML HOMES LTD,"1,433.56",12/06/2015
Delivery Units,Adults and Communities,Other Agencies - Third Party P,30079171,ML HOMES LTD,"1,751.16",12/06/2015
Delivery Units,Adults and Communities,Other Agencies - Third Party P,30079173,ML HOMES LTD,"2,118.36",12/06/2015
Delivery Units,Adults and Communities,Other Agencies - Third Party P,30079177,ML HOMES LTD,"1,955.84",12/06/2015
Delivery Units,Adults and Communities,Other Agencies - Third Party P,30079181,ML HOMES LTD,"1,417.24",09/06/2015
Delivery Units,Adults and Communities,Other Agencies - Third Party P,30079183,ML HOMES LTD,"1,428.68",12/06/2015
Delivery Units,Adults and Communities,Other Agencies - Third Party P,30079184,ML HOMES LTD,"1,765.80",12/06/2015
Delivery Units,Adults and Communities,Other Agencies - Third Party P,30079186,ML HOMES LTD,"1,751.16",12/06/2015
Delivery Units,Adults and Communities,Other Agencies - Third Party P,30079191,ML HOMES LTD,"1,767.40",12/06/2015
Delivery Units,Adults and Communities,Other Agencies - Third Party P,30079234,ML HOMES LTD,"1,780.00",12/06/2015
Delivery Units,Adults and Communities,Other Agencies - Third Party P,30079349,ML HOMES LTD,"1,780.80",12/06/2015
Delivery Units,Adults and Communities,Other Agencies - Third Party P,30079354,ML HOMES LTD,"1,780.80",09/06/2015
Delivery Units,Adults and Communities,Other Agencies - Third Party P,30079355,ML HOMES LTD,"1,780.80",12/06/2015
Delivery Units,Adults and Communities,Other Agencies - Third Party P,30079356,ML HOMES LTD,"1,780.80",09/06/2015
Delivery Units,Adults and Communities,Other Agencies - Third Party P,20020719,MURRAYFIELD CARE HOME,"9,000.00",05/06/2015
Delivery Units,Adults and Communities,Other Agencies - Third Party P,30081531,NAS SERVICES LTD,"2,035.64",29/06/2015
Delivery Units,Adults and Communities,Other Agencies - Third Party P,30079091,NAZARETH HOUSE,"2,001.92",08/06/2015
Delivery Units,Adults and Communities,Other Agencies - Third Party P,30080106,NAZARETH HOUSE,"2,001.92",17/06/2015
Delivery Units,Adults and Communities,Other Agencies - Third Party P,30080107,NAZARETH HOUSE,"2,216.41",17/06/2015
Delivery Units,Adults and Communities,Other Agencies - Third Party P,30080108,NAZARETH HOUSE,"2,144.91",17/06/2015
Delivery Units,Adults and Communities,Other Agencies - Third Party P,30080109,NAZARETH HOUSE,"2,216.41",17/06/2015
Delivery Units,Adults and Communities,Other Agencies - Third Party P,30081571,NAZARETH HOUSE,"2,001.92",24/06/2015
Delivery Units,Adults and Communities,Other Agencies - Third Party P,30081572,NAZARETH HOUSE,"2,001.92",24/06/2015
Delivery Units,Adults and Communities,Other Agencies - Third Party P,30081573,NAZARETH HOUSE,"2,001.92",24/06/2015
Delivery Units,Adults and Communities,Other Agencies - Third Party P,30081574,NAZARETH HOUSE,"2,650.40",24/06/2015
Delivery Units,Adults and Communities,Other Agencies - Third Party P,30081575,NAZARETH HOUSE,"2,184.04",24/06/2015
Delivery Units,Adults and Communities,Other Agencies - Third Party P,30081576,NAZARETH HOUSE,"2,001.56",24/06/2015
Delivery Units,Adults and Communities,Other Agencies - Third Party P,30081577,NAZARETH HOUSE,"2,001.92",24/06/2015
Delivery Units,Adults and Communities,Other Agencies - Third Party P,30081578,NAZARETH HOUSE,-495.80,24/06/2015
Delivery Units,Adults and Communities,Other Agencies - Third Party P,30081579,NAZARETH HOUSE,"3,067.68",24/06/2015
Delivery Units,Adults and Communities,Other Agencies - Third Party P,30081580,NAZARETH HOUSE,"-2,114.36",24/06/2015
Delivery Units,Adults and Communities,Other Agencies - Third Party P,30081581,NAZARETH HOUSE,"2,001.92",24/06/2015
Delivery Units,Adults and Communities,Other Agencies - Third Party P,30081582,NAZARETH HOUSE,"1,661.51",24/06/2015
Delivery Units,Adults and Communities,Other Agencies - Third Party P,30078075,NEEM TREE CARE CENTRE,"2,610.00",02/06/2015
Delivery Units,Adults and Communities,Other Agencies - Third Party P,30078337,NEEM TREE CARE CENTRE,"2,699.21",04/06/2015
Delivery Units,Adults and Communities,Other Agencies - Third Party P,30078338,NEEM TREE CARE CENTRE,"2,697.00",04/06/2015
Delivery Units,Adults and Communities,Other Agencies - Third Party P,30078320,NEWCENTURY CARE LTD,"2,581.86",04/06/2015
Delivery Units,Adults and Communities,Other Agencies - Third Party P,30078321,NEWCENTURY CARE LTD,"2,318.93",04/06/2015
Delivery Units,Adults and Communities,Other Agencies - Third Party P,30078322,NEWCENTURY CARE LTD,"2,608.92",04/06/2015
Delivery Units,Adults and Communities,Other Agencies - Third Party P,30079094,NEWCENTURY CARE LTD,"2,094.60",08/06/2015
Delivery Units,Adults and Communities,Other Agencies - Third Party P,30079625,NEWCENTURY CARE LTD,"1,047.30",15/06/2015
Delivery Units,Adults and Communities,Other Agencies - Third Party P,30080545,NEXT STEP SUPPORT LIMITED,"2,240.00",19/06/2015
Delivery Units,Adults and Communities,Other Agencies - Third Party P,30080556,NEXT STEP SUPPORT LIMITED,"2,000.00",19/06/2015
Delivery Units,Adults and Communities,Other Agencies - Third Party P,30078748,NIGHTINGALE HOUSE,"2,318.93",05/06/2015
Delivery Units,Adults and Communities,Other Agencies - Third Party P,30079552,NIGHTINGALE HOUSE,"2,524.29",12/06/2015
Delivery Units,Adults and Communities,Other Agencies - Third Party P,30082429,NIGHTINGALE HOUSE,299.22,26/06/2015
Delivery Units,Adults and Communities,Other Agencies - Third Party P,30082430,NIGHTINGALE HOUSE,"2,442.86",26/06/2015
Delivery Units,Adults and Communities,Other Agencies - Third Party P,30078406,NORTH LONDON CARE SERVICES LTD,"6,260.84",04/06/2015
Delivery Units,Adults and Communities,Other Agencies - Third Party P,30078407,NORTH LONDON CARE SERVICES LTD,-405.65,04/06/2015
Delivery Units,Adults and Communities,Other Agencies - Third Party P,30077911,NORWOOD RAVENSWOOD SCHOOLS LTD,"5,732.00",01/06/2015
Delivery Units,Adults and Communities,Other Agencies - Third Party P,30077912,NORWOOD RAVENSWOOD SCHOOLS LTD,-505.20,01/06/2015
Delivery Units,Adults and Communities,Other Agencies - Third Party P,30077913,NORWOOD RAVENSWOOD SCHOOLS LTD,"6,528.00",01/06/2015
Delivery Units,Adults and Communities,Other Agencies - Third Party P,30077914,NORWOOD RAVENSWOOD SCHOOLS LTD,-321.80,01/06/2015
Delivery Units,Adults and Communities,Other Agencies - Third Party P,30077915,NORWOOD RAVENSWOOD SCHOOLS LTD,"4,656.00",01/06/2015
Delivery Units,Adults and Communities,Other Agencies - Third Party P,30077916,NORWOOD RAVENSWOOD SCHOOLS LTD,-321.80,01/06/2015
Delivery Units,Adults and Communities,Other Agencies - Third Party P,30077919,NORWOOD RAVENSWOOD SCHOOLS LTD,"5,792.00",01/06/2015
Delivery Units,Adults and Communities,Other Agencies - Third Party P,30077920,NORWOOD RAVENSWOOD SCHOOLS LTD,-321.80,01/06/2015
Delivery Units,Adults and Communities,Other Agencies - Third Party P,30077921,NORWOOD RAVENSWOOD SCHOOLS LTD,"7,788.00",01/06/2015
Delivery Units,Adults and Communities,Other Agencies - Third Party P,30077922,NORWOOD RAVENSWOOD SCHOOLS LTD,-505.20,01/06/2015
Delivery Units,Adults and Communities,Other Agencies - Third Party P,30077929,NORWOOD RAVENSWOOD SCHOOLS LTD,"4,748.00",01/06/2015
Delivery Units,Adults and Communities,Other Agencies - Third Party P,30077930,NORWOOD RAVENSWOOD SCHOOLS LTD,-505.20,01/06/2015
Delivery Units,Adults and Communities,Other Agencies - Third Party P,30077931,NORWOOD RAVENSWOOD SCHOOLS LTD,"4,924.00",01/06/2015
Delivery Units,Adults and Communities,Other Agencies - Third Party P,30077932,NORWOOD RAVENSWOOD SCHOOLS LTD,-505.20,01/06/2015
Delivery Units,Adults and Communities,Other Agencies - Third Party P,30077935,NORWOOD RAVENSWOOD SCHOOLS LTD,"8,224.00",01/06/2015
Delivery Units,Adults and Communities,Other Agencies - Third Party P,30077936,NORWOOD RAVENSWOOD SCHOOLS LTD,-348.60,01/06/2015
Delivery Units,Adults and Communities,Other Agencies - Third Party P,30077943,NORWOOD RAVENSWOOD SCHOOLS LTD,"5,540.00",01/06/2015
Delivery Units,Adults and Communities,Other Agencies - Third Party P,30078749,NORWOOD RAVENSWOOD SCHOOLS LTD,608.00,04/06/2015
Delivery Units,Adults and Communities,Other Agencies - Third Party P,30078750,NORWOOD RAVENSWOOD SCHOOLS LTD,"1,520.00",04/06/2015
Delivery Units,Adults and Communities,Other Agencies - Third Party P,30078751,NORWOOD RAVENSWOOD SCHOOLS LTD,729.60,04/06/2015
Delivery Units,Adults and Communities,Other Agencies - Third Party P,30078752,NORWOOD RAVENSWOOD SCHOOLS LTD,304.00,04/06/2015
Delivery Units,Adults and Communities,Other Agencies - Third Party P,30078754,NORWOOD RAVENSWOOD SCHOOLS LTD,790.40,04/06/2015
Delivery Units,Adults and Communities,Other Agencies - Third Party P,30078756,NORWOOD RAVENSWOOD SCHOOLS LTD,486.40,04/06/2015
Delivery Units,Adults and Communities,Other Agencies - Third Party P,30078761,NORWOOD RAVENSWOOD SCHOOLS LTD,"1,021.44",04/06/2015
Delivery Units,Adults and Communities,Other Agencies - Third Party P,30078767,NORWOOD RAVENSWOOD SCHOOLS LTD,"1,021.44",04/06/2015
Delivery Units,Adults and Communities,Other Agencies - Third Party P,30078774,NORWOOD RAVENSWOOD SCHOOLS LTD,820.80,04/06/2015
Delivery Units,Adults and Communities,Other Agencies - Third Party P,30078777,NORWOOD RAVENSWOOD SCHOOLS LTD,364.80,04/06/2015
Delivery Units,Adults and Communities,Other Agencies - Third Party P,30078782,NORWOOD RAVENSWOOD SCHOOLS LTD,"7,148.00",04/06/2015
Delivery Units,Adults and Communities,Other Agencies - Third Party P,30078783,NORWOOD RAVENSWOOD SCHOOLS LTD,-321.80,04/06/2015
Delivery Units,Adults and Communities,Other Agencies - Third Party P,30079516,NORWOOD RAVENSWOOD SCHOOLS LTD,440.00,11/06/2015
Delivery Units,Adults and Communities,Other Agencies - Third Party P,30079517,NORWOOD RAVENSWOOD SCHOOLS LTD,440.00,11/06/2015
Delivery Units,Adults and Communities,Other Agencies - Third Party P,30079518,NORWOOD RAVENSWOOD SCHOOLS LTD,660.00,11/06/2015
Delivery Units,Adults and Communities,Other Agencies - Third Party P,30081625,NORWOOD RAVENSWOOD SCHOOLS LTD,"6,528.00",24/06/2015
Delivery Units,Adults and Communities,Other Agencies - Third Party P,30081626,NORWOOD RAVENSWOOD SCHOOLS LTD,-321.80,24/06/2015
Delivery Units,Adults and Communities,Other Agencies - Third Party P,30081627,NORWOOD RAVENSWOOD SCHOOLS LTD,"4,656.00",24/06/2015
Delivery Units,Adults and Communities,Other Agencies - Third Party P,30081628,NORWOOD RAVENSWOOD SCHOOLS LTD,-321.80,24/06/2015
Delivery Units,Adults and Communities,Other Agencies - Third Party P,30081631,NORWOOD RAVENSWOOD SCHOOLS LTD,"5,792.00",24/06/2015
Delivery Units,Adults and Communities,Other Agencies - Third Party P,30081632,NORWOOD RAVENSWOOD SCHOOLS LTD,-321.80,24/06/2015
Delivery Units,Adults and Communities,Other Agencies - Third Party P,30081637,NORWOOD RAVENSWOOD SCHOOLS LTD,"4,748.00",24/06/2015
Delivery Units,Adults and Communities,Other Agencies - Third Party P,30081638,NORWOOD RAVENSWOOD SCHOOLS LTD,-505.20,24/06/2015
Delivery Units,Adults and Communities,Other Agencies - Third Party P,30081639,NORWOOD RAVENSWOOD SCHOOLS LTD,"4,924.00",24/06/2015
Delivery Units,Adults and Communities,Other Agencies - Third Party P,30081640,NORWOOD RAVENSWOOD SCHOOLS LTD,-505.20,24/06/2015
Delivery Units,Adults and Communities,Other Agencies - Third Party P,30081643,NORWOOD RAVENSWOOD SCHOOLS LTD,"7,148.00",24/06/2015
Delivery Units,Adults and Communities,Other Agencies - Third Party P,30081644,NORWOOD RAVENSWOOD SCHOOLS LTD,-321.80,24/06/2015
Delivery Units,Adults and Communities,Other Agencies - Third Party P,30081645,NORWOOD RAVENSWOOD SCHOOLS LTD,"8,224.00",24/06/2015
Delivery Units,Adults and Communities,Other Agencies - Third Party P,30081646,NORWOOD RAVENSWOOD SCHOOLS LTD,-348.60,24/06/2015
Delivery Units,Adults and Communities,Other Agencies - Third Party P,30081653,NORWOOD RAVENSWOOD SCHOOLS LTD,"5,540.00",24/06/2015
Delivery Units,Adults and Communities,Other Agencies - Third Party P,30081668,NORWOOD RAVENSWOOD SCHOOLS LTD,"7,788.00",24/06/2015
Delivery Units,Adults and Communities,Other Agencies - Third Party P,30081669,NORWOOD RAVENSWOOD SCHOOLS LTD,-505.20,24/06/2015
Delivery Units,Adults and Communities,Other Agencies - Third Party P,30082217,NORWOOD RAVENSWOOD SCHOOLS LTD,608.00,25/06/2015
Delivery Units,Adults and Communities,Other Agencies - Third Party P,30082218,NORWOOD RAVENSWOOD SCHOOLS LTD,"1,520.00",25/06/2015
Delivery Units,Adults and Communities,Other Agencies - Third Party P,30082219,NORWOOD RAVENSWOOD SCHOOLS LTD,729.60,25/06/2015
Delivery Units,Adults and Communities,Other Agencies - Third Party P,30082220,NORWOOD RAVENSWOOD SCHOOLS LTD,304.00,25/06/2015
Delivery Units,Adults and Communities,Other Agencies - Third Party P,30082222,NORWOOD RAVENSWOOD SCHOOLS LTD,790.40,25/06/2015
Delivery Units,Adults and Communities,Other Agencies - Third Party P,30082224,NORWOOD RAVENSWOOD SCHOOLS LTD,486.40,25/06/2015
Delivery Units,Adults and Communities,Other Agencies - Third Party P,30082229,NORWOOD RAVENSWOOD SCHOOLS LTD,"1,021.44",25/06/2015
Delivery Units,Adults and Communities,Other Agencies - Third Party P,30082235,NORWOOD RAVENSWOOD SCHOOLS LTD,"1,021.44",25/06/2015
Delivery Units,Adults and Communities,Other Agencies - Third Party P,30082239,NORWOOD RAVENSWOOD SCHOOLS LTD,820.80,25/06/2015
Delivery Units,Adults and Communities,Other Agencies - Third Party P,30082242,NORWOOD RAVENSWOOD SCHOOLS LTD,364.80,25/06/2015
Delivery Units,Adults and Communities,Other Agencies - Third Party P,30079351,NORWOOD RAVENSWOOD SERVICES LTD,440.00,10/06/2015
Delivery Units,Adults and Communities,Other Agencies - Third Party P,30081522,OLYMPUS CARE SERVICES LTD,480.00,24/06/2015
Delivery Units,Adults and Communities,Other Agencies - Third Party P,30079223,ONE STEP (SUPPORT) LTD,"1,339.80",10/06/2015
Delivery Units,Adults and Communities,Other Agencies - Third Party P,30079224,ONE STEP (SUPPORT) LTD,"3,395.80",10/06/2015
Delivery Units,Adults and Communities,Other Agencies - Third Party P,30079225,ONE STEP (SUPPORT) LTD,638.00,10/06/2015
Delivery Units,Adults and Communities,Other Agencies - Third Party P,30079226,ONE STEP (SUPPORT) LTD,638.00,10/06/2015
Delivery Units,Adults and Communities,Other Agencies - Third Party P,30079227,ONE STEP (SUPPORT) LTD,956.00,10/06/2015
Delivery Units,Adults and Communities,Other Agencies - Third Party P,30079233,ONE STEP (SUPPORT) LTD,"2,618.20",09/06/2015
Delivery Units,Adults and Communities,Other Agencies - Third Party P,30080448,ORIGIN HOUSING LIMITED,"1,584.00",18/06/2015
Delivery Units,Adults and Communities,Other Agencies - Third Party P,30080449,ORIGIN HOUSING LIMITED,"1,728.00",18/06/2015
Delivery Units,Adults and Communities,Other Agencies - Third Party P,30080450,ORIGIN HOUSING LIMITED,"1,324.80",18/06/2015
Delivery Units,Adults and Communities,Other Agencies - Third Party P,30080451,ORIGIN HOUSING LIMITED,"1,065.60",18/06/2015
Delivery Units,Adults and Communities,Other Agencies - Third Party P,20020787,P J CARE LTD,"34,463.52",10/06/2015
Delivery Units,Adults and Communities,Other Agencies - Third Party P,30078438,PARADISE HOUSE ASSOCIATION LTD,"3,868.09",04/06/2015
Delivery Units,Adults and Communities,Other Agencies - Third Party P,30078439,PARADISE HOUSE ASSOCIATION LTD,-353.62,04/06/2015
Delivery Units,Adults and Communities,Other Agencies - Third Party P,30079026,PARADISE HOUSE ASSOCIATION LTD,"3,401.23",08/06/2015
Delivery Units,Adults and Communities,Other Agencies - Third Party P,30079027,PARADISE HOUSE ASSOCIATION LTD,-344.36,08/06/2015
Delivery Units,Adults and Communities,Other Agencies - Third Party P,30078400,PARKCARE HOMES (NO2) LIMITED,"5,486.91",04/06/2015
Delivery Units,Adults and Communities,Other Agencies - Third Party P,30078401,PARKCARE HOMES (NO2) LIMITED,-353.62,04/06/2015
Delivery Units,Adults and Communities,Other Agencies - Third Party P,30078402,PARKCARE HOMES (NO2) LIMITED,"4,796.41",04/06/2015
Delivery Units,Adults and Communities,Other Agencies - Third Party P,30078403,PARKCARE HOMES (NO2) LIMITED,-353.62,04/06/2015
Delivery Units,Adults and Communities,Other Agencies - Third Party P,30078420,PARKCARE HOMES (NO2) LIMITED,"4,813.41",04/06/2015
Delivery Units,Adults and Communities,Other Agencies - Third Party P,30078421,PARKCARE HOMES (NO2) LIMITED,-353.62,04/06/2015
Delivery Units,Adults and Communities,Other Agencies - Third Party P,30078422,PARKCARE HOMES (NO2) LIMITED,"5,155.03",04/06/2015
Delivery Units,Adults and Communities,Other Agencies - Third Party P,30078423,PARKCARE HOMES (NO2) LIMITED,-353.62,04/06/2015
Delivery Units,Adults and Communities,Other Agencies - Third Party P,30078424,PARKCARE HOMES (NO2) LIMITED,"5,155.03",04/06/2015
Delivery Units,Adults and Communities,Other Agencies - Third Party P,30078425,PARKCARE HOMES (NO2) LIMITED,-353.62,04/06/2015
Delivery Units,Adults and Communities,Other Agencies - Third Party P,30080637,PAULMAY RESIDENTIAL HOME,"2,184.04",26/06/2015
Delivery Units,Adults and Communities,Other Agencies - Third Party P,20021533,PETE ANCKETILL SERVICES,393.60,30/06/2015
Delivery Units,Adults and Communities,Other Agencies - Third Party P,30078525,PILLARCARE,"6,780.00",04/06/2015
Delivery Units,Adults and Communities,Other Agencies - Third Party P,30078554,PLATINUM HEALTH RESOURCES LTD,"4,949.11",04/06/2015
Delivery Units,Adults and Communities,Other Agencies - Third Party P,30078573,PLATINUM HEALTH RESOURCES LTD,"3,893.11",04/06/2015
Delivery Units,Adults and Communities,Other Agencies - Third Party P,30078582,PLATINUM HEALTH RESOURCES LTD,"3,764.29",04/06/2015
Delivery Units,Adults and Communities,Other Agencies - Third Party P,30078799,PLATINUM HEALTH RESOURCES LTD,"3,764.29",04/06/2015
Delivery Units,Adults and Communities,Other Agencies - Third Party P,30080104,PLATINUM HEALTH RESOURCES LTD,"4,789.46",23/06/2015
Delivery Units,Adults and Communities,Other Agencies - Third Party P,30080421,PLATINUM HEALTH RESOURCES LTD,"1,597.84",18/06/2015
Delivery Units,Adults and Communities,Other Agencies - Third Party P,30078244,PROSPECTS STAFF BUREAU LTD,373.75,04/06/2015
Delivery Units,Adults and Communities,Other Agencies - Third Party P,30078323,PROSPECTS STAFF BUREAU LTD,373.75,04/06/2015
Delivery Units,Adults and Communities,Other Agencies - Third Party P,30079294,PROSPECTS STAFF BUREAU LTD,304.75,10/06/2015
Delivery Units,Adults and Communities,Other Agencies - Third Party P,30080324,PROSPECTS STAFF BUREAU LTD,373.75,18/06/2015
Delivery Units,Adults and Communities,Other Agencies - Third Party P,30082435,PROSPECTS STAFF BUREAU LTD,373.75,30/06/2015
Delivery Units,Adults and Communities,Other Agencies - Third Party P,30079303,PRT BARNET CARERS CENTRE,"1,036.75",10/06/2015
Delivery Units,Adults and Communities,Other Agencies - Third Party P,30079950,QUANTUM CARE LIMITED,"2,135.96",17/06/2015
Delivery Units,Adults and Communities,Other Agencies - Third Party P,30079951,QUANTUM CARE LIMITED,"2,364.81",17/06/2015
Delivery Units,Adults and Communities,Other Agencies - Third Party P,30079953,QUANTUM CARE LIMITED,"2,288.53",17/06/2015
Delivery Units,Adults and Communities,Other Agencies - Third Party P,30079954,QUANTUM CARE LIMITED,"2,922.86",17/06/2015
Delivery Units,Adults and Communities,Other Agencies - Third Party P,30079955,QUANTUM CARE LIMITED,"2,321.90",17/06/2015
Delivery Units,Adults and Communities,Other Agencies - Third Party P,30080692,QUANTUM CARE LIMITED,"2,312.14",22/06/2015
Delivery Units,Adults and Communities,Other Agencies - Third Party P,30080693,QUANTUM CARE LIMITED,-559.33,22/06/2015
Delivery Units,Adults and Communities,Other Agencies - Third Party P,30078175,QUEEN ANN CARE,"3,985.71",02/06/2015
Delivery Units,Adults and Communities,Other Agencies - Third Party P,30078443,R.M.B.I,"2,216.41",05/06/2015
Delivery Units,Adults and Communities,Other Agencies - Third Party P,30078348,RAINBOW HOMES LONDON LTD,"4,110.60",04/06/2015
Delivery Units,Adults and Communities,Other Agencies - Third Party P,30081525,REAL LIFE OPTIONS,"5,252.28",24/06/2015
Delivery Units,Adults and Communities,Other Agencies - Third Party P,30081526,REAL LIFE OPTIONS,-321.80,24/06/2015
Delivery Units,Adults and Communities,Other Agencies - Third Party P,30078444,REDACTED - PERSONAL DATA,"4,862.75",04/06/2015
Delivery Units,Adults and Communities,Other Agencies - Third Party P,30078445,REDACTED - PERSONAL DATA,-356.28,04/06/2015
Delivery Units,Adults and Communities,Other Agencies - Third Party P,30078645,REDACTED - PERSONAL DATA,"4,343.12",04/06/2015
Delivery Units,Adults and Communities,Other Agencies - Third Party P,30082317,REDACTED - PERSONAL DATA,250.00,26/06/2015
Delivery Units,Adults and Communities,Other Agencies - Third Party P,30078382,REHABILITATION EDUCATION AND,"3,348.00",04/06/2015
Delivery Units,Adults and Communities,Other Agencies - Third Party P,30078383,REHABILITATION EDUCATION AND,-495.80,04/06/2015
Delivery Units,Adults and Communities,Other Agencies - Third Party P,30078384,REHABILITATION EDUCATION AND,"3,348.00",04/06/2015
Delivery Units,Adults and Communities,Other Agencies - Third Party P,30078385,REHABILITATION EDUCATION AND,-495.80,04/06/2015
Delivery Units,Adults and Communities,Other Agencies - Third Party P,30078429,RIDGEWAY NURSING HOME,"2,435.67",04/06/2015
Delivery Units,Adults and Communities,Other Agencies - Third Party P,30081610,RIDGEWAY RESIDENTIAL HOME,"2,027.96",24/06/2015
Delivery Units,Adults and Communities,Other Agencies - Third Party P,30078368,ROBERT OWEN COMMUNITIES (ROC),"5,912.14",04/06/2015
Delivery Units,Adults and Communities,Other Agencies - Third Party P,30078369,ROBERT OWEN COMMUNITIES (ROC),-352.65,04/06/2015
Delivery Units,Adults and Communities,Other Agencies - Third Party P,30079425,ROBERT OWEN COMMUNITIES (ROC),953.57,11/06/2015
Delivery Units,Adults and Communities,Other Agencies - Third Party P,30079427,ROBERT OWEN COMMUNITIES (ROC),"4,767.86",11/06/2015
Delivery Units,Adults and Communities,Other Agencies - Third Party P,30079428,ROBERT OWEN COMMUNITIES (ROC),-287.32,11/06/2015
Delivery Units,Adults and Communities,Other Agencies - Third Party P,30078552,ROLAND COMMUNITY CARE LTD,"2,311.71",04/06/2015
Delivery Units,Adults and Communities,Other Agencies - Third Party P,30078174,ROLAND RESIDENTIAL CARE HOMES,"4,049.44",02/06/2015
Delivery Units,Adults and Communities,Other Agencies - Third Party P,30078184,ROLAND RESIDENTIAL CARE HOMES,"3,741.39",02/06/2015
Delivery Units,Adults and Communities,Other Agencies - Third Party P,30078166,ROLAND RESIDENTIAL CARE HOMES LTD,"3,225.24",02/06/2015
Delivery Units,Adults and Communities,Other Agencies - Third Party P,30078173,ROLAND RESIDENTIAL CARE HOMES LTD,"4,196.51",02/06/2015
Delivery Units,Adults and Communities,Other Agencies - Third Party P,30078176,ROLAND RESIDENTIAL CARE HOMES LTD,"3,426.96",02/06/2015
Delivery Units,Adults and Communities,Other Agencies - Third Party P,30079493,ROSEACRES CARE HOME LIMITED,"2,418.04",11/06/2015
Delivery Units,Adults and Communities,Other Agencies - Third Party P,30079495,ROSEACRES CARE HOME LIMITED,"2,418.04",11/06/2015
Delivery Units,Adults and Communities,Other Agencies - Third Party P,30079496,ROSEACRES CARE HOME LIMITED,"2,418.04",11/06/2015
Delivery Units,Adults and Communities,Other Agencies - Third Party P,30079497,ROSEACRES CARE HOME LIMITED,"2,418.04",11/06/2015
Delivery Units,Adults and Communities,Other Agencies - Third Party P,30079498,ROSEACRES CARE HOME LIMITED,"2,418.04",11/06/2015
Delivery Units,Adults and Communities,Other Agencies - Third Party P,30079499,ROSEACRES CARE HOME LIMITED,"2,418.04",11/06/2015
Delivery Units,Adults and Communities,Other Agencies - Third Party P,30079500,ROSEACRES CARE HOME LIMITED,"2,418.04",11/06/2015
Delivery Units,Adults and Communities,Other Agencies - Third Party P,30079501,ROSEACRES CARE HOME LIMITED,"2,418.04",11/06/2015
Delivery Units,Adults and Communities,Other Agencies - Third Party P,30079502,ROSEACRES CARE HOME LIMITED,"2,418.04",11/06/2015
Delivery Units,Adults and Communities,Other Agencies - Third Party P,30079503,ROSEACRES CARE HOME LIMITED,"2,418.04",11/06/2015
Delivery Units,Adults and Communities,Other Agencies - Third Party P,30079504,ROSEACRES CARE HOME LIMITED,"2,418.04",11/06/2015
Delivery Units,Adults and Communities,Other Agencies - Third Party P,30079505,ROSEACRES CARE HOME LIMITED,"2,418.04",11/06/2015
Delivery Units,Adults and Communities,Other Agencies - Third Party P,30079506,ROSEACRES CARE HOME LIMITED,"2,418.04",11/06/2015
Delivery Units,Adults and Communities,Other Agencies - Third Party P,30079507,ROSEACRES CARE HOME LIMITED,"2,418.04",11/06/2015
Delivery Units,Adults and Communities,Other Agencies - Third Party P,30079508,ROSEACRES CARE HOME LIMITED,"2,418.04",11/06/2015
Delivery Units,Adults and Communities,Other Agencies - Third Party P,30079509,ROSEACRES CARE HOME LIMITED,"2,418.04",11/06/2015
Delivery Units,Adults and Communities,Other Agencies - Third Party P,30079510,ROSEACRES CARE HOME LIMITED,"2,418.04",11/06/2015
Delivery Units,Adults and Communities,Other Agencies - Third Party P,30079511,ROSEACRES CARE HOME LIMITED,-702.01,11/06/2015
Delivery Units,Adults and Communities,Other Agencies - Third Party P,30079673,ROSEACRES CARE HOME LIMITED,"2,418.04",15/06/2015
Delivery Units,Adults and Communities,Other Agencies - Third Party P,30079675,ROSEACRES CARE HOME LIMITED,936.02,15/06/2015
Delivery Units,Adults and Communities,Other Agencies - Third Party P,30079676,ROSEACRES CARE HOME LIMITED,"2,340.04",15/06/2015
Delivery Units,Adults and Communities,Other Agencies - Third Party P,30079677,ROSEACRES CARE HOME LIMITED,"2,418.04",15/06/2015
Delivery Units,Adults and Communities,Other Agencies - Third Party P,30080130,ROSEACRES CARE HOME LIMITED,624.01,17/06/2015
Delivery Units,Adults and Communities,Other Agencies - Third Party P,30079121,ROYAL MENCAP SOCIETY,"1,722.60",09/06/2015
Delivery Units,Adults and Communities,Other Agencies - Third Party P,30079122,ROYAL MENCAP SOCIETY,"1,595.00",09/06/2015
Delivery Units,Adults and Communities,Other Agencies - Third Party P,30079123,ROYAL MENCAP SOCIETY,"1,722.60",09/06/2015
Delivery Units,Adults and Communities,Other Agencies - Third Party P,30079124,ROYAL MENCAP SOCIETY,"1,595.00",09/06/2015
Delivery Units,Adults and Communities,Other Agencies - Third Party P,30080110,SANCTUARY CARE LTD,"5,974.80",17/06/2015
Delivery Units,Adults and Communities,Other Agencies - Third Party P,30080111,SANCTUARY CARE LTD,"2,374.60",17/06/2015
Delivery Units,Adults and Communities,Other Agencies - Third Party P,30078305,SAXON COURT,"2,434.08",04/06/2015
Delivery Units,Adults and Communities,Other Agencies - Third Party P,30078306,SAXON COURT,-559.33,04/06/2015
Delivery Units,Adults and Communities,Other Agencies - Third Party P,30078307,SAXON COURT,"2,434.08",04/06/2015
Delivery Units,Adults and Communities,Other Agencies - Third Party P,30078308,SAXON COURT,-559.33,04/06/2015
Delivery Units,Adults and Communities,Other Agencies - Third Party P,30077891,SCIMITAR CARE HOTELS PLC,"3,428.57",02/06/2015
Delivery Units,Adults and Communities,Other Agencies - Third Party P,30077892,SCIMITAR CARE HOTELS PLC,"2,340.04",02/06/2015
Delivery Units,Adults and Communities,Other Agencies - Third Party P,30078630,SCIMITAR CARE HOTELS PLC,"3,542.86",04/06/2015
Delivery Units,Adults and Communities,Other Agencies - Third Party P,30078631,SCIMITAR CARE HOTELS PLC,"2,418.04",04/06/2015
Delivery Units,Adults and Communities,Other Agencies - Third Party P,30078072,SCOPE,"4,000.00",02/06/2015
Delivery Units,Adults and Communities,Other Agencies - Third Party P,30078073,SCOPE,-362.80,02/06/2015
Delivery Units,Adults and Communities,Other Agencies - Third Party P,30078316,SCOPE,"3,000.68",04/06/2015
Delivery Units,Adults and Communities,Other Agencies - Third Party P,30078317,SCOPE,-356.28,04/06/2015
Delivery Units,Adults and Communities,Other Agencies - Third Party P,30078970,SCOPE,"3,368.05",08/06/2015
Delivery Units,Adults and Communities,Other Agencies - Third Party P,30078971,SCOPE,-559.33,08/06/2015
Delivery Units,Adults and Communities,Other Agencies - Third Party P,30079102,SCOPE,276.24,10/06/2015
Delivery Units,Adults and Communities,Other Agencies - Third Party P,30081426,SCOPE,"4,000.00",24/06/2015
Delivery Units,Adults and Communities,Other Agencies - Third Party P,30081427,SCOPE,-362.80,24/06/2015
Delivery Units,Adults and Communities,Other Agencies - Third Party P,30082434,SCOPE,-356.28,30/06/2015
Delivery Units,Adults and Communities,Other Agencies - Third Party P,30081442,SCOTTISH SOCIETY FOR AUTISM,"5,783.64",24/06/2015
Delivery Units,Adults and Communities,Other Agencies - Third Party P,30081443,SCOTTISH SOCIETY FOR AUTISM,-402.00,24/06/2015
Delivery Units,Adults and Communities,Other Agencies - Third Party P,30081444,SCOTTISH SOCIETY FOR AUTISM,"1,172.08",24/06/2015
Delivery Units,Adults and Communities,Other Agencies - Third Party P,30078508,SEAFORTH LODGE,"2,418.04",04/06/2015
Delivery Units,Adults and Communities,Other Agencies - Third Party P,30078518,SEAFORTH LODGE,"2,418.04",04/06/2015
Delivery Units,Adults and Communities,Other Agencies - Third Party P,30078563,SEAFORTH LODGE,"2,418.04",04/06/2015
Delivery Units,Adults and Communities,Other Agencies - Third Party P,30078608,SEAFORTH LODGE,"2,216.41",04/06/2015
Delivery Units,Adults and Communities,Other Agencies - Third Party P,30078785,SEAFORTH LODGE,"2,418.04",04/06/2015
Delivery Units,Adults and Communities,Other Agencies - Third Party P,30078512,SELF UNLIMITED-LONDON REGION,"3,301.86",04/06/2015
Delivery Units,Adults and Communities,Other Agencies - Third Party P,30078513,SELF UNLIMITED-LONDON REGION,-356.28,04/06/2015
Delivery Units,Adults and Communities,Other Agencies - Third Party P,30081528,SELF UNLIMITED-LONDON REGION,776.00,24/06/2015
Delivery Units,Adults and Communities,Other Agencies - Third Party P,30082179,SELF UNLIMITED-LONDON REGION,"2,120.72",25/06/2015
Delivery Units,Adults and Communities,Other Agencies - Third Party P,30082181,SELF UNLIMITED-LONDON REGION,"3,920.00",25/06/2015
Delivery Units,Adults and Communities,Other Agencies - Third Party P,30082182,SELF UNLIMITED-LONDON REGION,"3,920.00",25/06/2015
Delivery Units,Adults and Communities,Other Agencies - Third Party P,30082183,SELF UNLIMITED-LONDON REGION,"3,920.00",25/06/2015
Delivery Units,Adults and Communities,Other Agencies - Third Party P,30082184,SELF UNLIMITED-LONDON REGION,"1,921.28",25/06/2015
Delivery Units,Adults and Communities,Other Agencies - Third Party P,30082185,SELF UNLIMITED-LONDON REGION,"4,221.36",25/06/2015
Delivery Units,Adults and Communities,Other Agencies - Third Party P,30082186,SELF UNLIMITED-LONDON REGION,"1,520.00",25/06/2015
Delivery Units,Adults and Communities,Other Agencies - Third Party P,30082187,SELF UNLIMITED-LONDON REGION,"3,947.12",25/06/2015
Delivery Units,Adults and Communities,Other Agencies - Third Party P,30082188,SELF UNLIMITED-LONDON REGION,"1,781.44",25/06/2015
Delivery Units,Adults and Communities,Other Agencies - Third Party P,30082189,SELF UNLIMITED-LONDON REGION,"1,690.24",25/06/2015
Delivery Units,Adults and Communities,Other Agencies - Third Party P,30082190,SELF UNLIMITED-LONDON REGION,"1,088.32",25/06/2015
Delivery Units,Adults and Communities,Other Agencies - Third Party P,30082191,SELF UNLIMITED-LONDON REGION,"4,025.56",25/06/2015
Delivery Units,Adults and Communities,Other Agencies - Third Party P,30082192,SELF UNLIMITED-LONDON REGION,"3,279.56",25/06/2015
Delivery Units,Adults and Communities,Other Agencies - Third Party P,30082193,SELF UNLIMITED-LONDON REGION,"1,459.20",25/06/2015
Delivery Units,Adults and Communities,Other Agencies - Third Party P,30082194,SELF UNLIMITED-LONDON REGION,"6,157.84",25/06/2015
Delivery Units,Adults and Communities,Other Agencies - Third Party P,30082195,SELF UNLIMITED-LONDON REGION,"3,240.64",25/06/2015
Delivery Units,Adults and Communities,Other Agencies - Third Party P,30082196,SELF UNLIMITED-LONDON REGION,"2,783.44",25/06/2015
Delivery Units,Adults and Communities,Other Agencies - Third Party P,30082197,SELF UNLIMITED-LONDON REGION,"2,342.64",25/06/2015
Delivery Units,Adults and Communities,Other Agencies - Third Party P,30082198,SELF UNLIMITED-LONDON REGION,"1,177.20",25/06/2015
Delivery Units,Adults and Communities,Other Agencies - Third Party P,30082199,SELF UNLIMITED-LONDON REGION,"2,145.04",25/06/2015
Delivery Units,Adults and Communities,Other Agencies - Third Party P,30082200,SELF UNLIMITED-LONDON REGION,"3,432.76",25/06/2015
Delivery Units,Adults and Communities,Other Agencies - Third Party P,30082201,SELF UNLIMITED-LONDON REGION,"4,496.16",25/06/2015
Delivery Units,Adults and Communities,Other Agencies - Third Party P,30082202,SELF UNLIMITED-LONDON REGION,"3,947.12",25/06/2015
Delivery Units,Adults and Communities,Other Agencies - Third Party P,30082203,SELF UNLIMITED-LONDON REGION,"3,149.44",25/06/2015
Delivery Units,Adults and Communities,Other Agencies - Third Party P,30082204,SELF UNLIMITED-LONDON REGION,"1,428.80",25/06/2015
Delivery Units,Adults and Communities,Other Agencies - Third Party P,30082205,SELF UNLIMITED-LONDON REGION,"4,859.12",25/06/2015
Delivery Units,Adults and Communities,Other Agencies - Third Party P,30082206,SELF UNLIMITED-LONDON REGION,"1,921.28",25/06/2015
Delivery Units,Adults and Communities,Other Agencies - Third Party P,30082207,SELF UNLIMITED-LONDON REGION,"1,914.00",25/06/2015
Delivery Units,Adults and Communities,Other Agencies - Third Party P,30082208,SELF UNLIMITED-LONDON REGION,"2,926.32",25/06/2015
Delivery Units,Adults and Communities,Other Agencies - Third Party P,30082209,SELF UNLIMITED-LONDON REGION,"2,110.96",25/06/2015
Delivery Units,Adults and Communities,Other Agencies - Third Party P,30082210,SELF UNLIMITED-LONDON REGION,"10,929.04",25/06/2015
Delivery Units,Adults and Communities,Other Agencies - Third Party P,30082211,SELF UNLIMITED-LONDON REGION,"1,094.40",25/06/2015
Delivery Units,Adults and Communities,Other Agencies - Third Party P,30079053,SENSE CAS FINANCE TEAM,"2,413.60",10/06/2015
Delivery Units,Adults and Communities,Other Agencies - Third Party P,30079054,SENSE CAS FINANCE TEAM,"3,866.28",10/06/2015
Delivery Units,Adults and Communities,Other Agencies - Third Party P,30079055,SENSE CAS FINANCE TEAM,"8,206.94",10/06/2015
Delivery Units,Adults and Communities,Other Agencies - Third Party P,30079056,SENSE CAS FINANCE TEAM,-559.33,10/06/2015
Delivery Units,Adults and Communities,Other Agencies - Third Party P,30079057,SENSE CAS FINANCE TEAM,"4,754.52",10/06/2015
Delivery Units,Adults and Communities,Other Agencies - Third Party P,30079058,SENSE CAS FINANCE TEAM,-400.60,10/06/2015
Delivery Units,Adults and Communities,Other Agencies - Third Party P,30079678,SENSE CAS FINANCE TEAM,"6,511.68",15/06/2015
Delivery Units,Adults and Communities,Other Agencies - Third Party P,30079679,SENSE CAS FINANCE TEAM,-400.60,15/06/2015
Delivery Units,Adults and Communities,Other Agencies - Third Party P,30082420,SENSE CAS FINANCE TEAM,"6,773.28",29/06/2015
Delivery Units,Adults and Communities,Other Agencies - Third Party P,30082421,SENSE CAS FINANCE TEAM,-321.80,29/06/2015
Delivery Units,Adults and Communities,Other Agencies - Third Party P,30078398,SEVA CARE HOME,"2,216.41",04/06/2015
Delivery Units,Adults and Communities,Other Agencies - Third Party P,30078399,SEVA CARE HOME,"2,216.41",04/06/2015
Delivery Units,Adults and Communities,Other Agencies - Third Party P,30078460,SEYMOUR RESIDENTIAL CARE HOME,"2,418.04",04/06/2015
Delivery Units,Adults and Communities,Other Agencies - Third Party P,30079179,SGSL LTD,"2,880.00",09/06/2015
Delivery Units,Adults and Communities,Other Agencies - Third Party P,30080546,SGSL LTD,"2,707.60",19/06/2015
Delivery Units,Adults and Communities,Other Agencies - Third Party P,30080550,SGSL LTD,"2,880.00",19/06/2015
Delivery Units,Adults and Communities,Other Agencies - Third Party P,30080554,SGSL LTD,"2,399.88",19/06/2015
Delivery Units,Adults and Communities,Other Agencies - Third Party P,30080555,SGSL LTD,"2,720.00",19/06/2015
Delivery Units,Adults and Communities,Other Agencies - Third Party P,30079038,SHINE PARTNERSHIPS LTD,"2,640.00",08/06/2015
Delivery Units,Adults and Communities,Other Agencies - Third Party P,30079059,SHINE PARTNERSHIPS LTD,"2,640.00",08/06/2015
Delivery Units,Adults and Communities,Other Agencies - Third Party P,30082377,SIGN HEALTH,"9,857.14",29/06/2015
Delivery Units,Adults and Communities,Other Agencies - Third Party P,30082378,SIGN HEALTH,-264.43,29/06/2015
Delivery Units,Adults and Communities,Other Agencies - Third Party P,30082380,SIGN HEALTH,"10,185.71",29/06/2015
Delivery Units,Adults and Communities,Other Agencies - Third Party P,30082381,SIGN HEALTH,-273.24,29/06/2015
Delivery Units,Adults and Communities,Other Agencies - Third Party P,30082383,SIGN HEALTH,"9,857.14",29/06/2015
Delivery Units,Adults and Communities,Other Agencies - Third Party P,30082384,SIGN HEALTH,-279.64,29/06/2015
Delivery Units,Adults and Communities,Other Agencies - Third Party P,30078404,SIMEON CARE,"3,200.40",04/06/2015
Delivery Units,Adults and Communities,Other Agencies - Third Party P,30080941,SISTERS OF CHARITY SETON UNIT,"2,144.92",22/06/2015
Delivery Units,Adults and Communities,Other Agencies - Third Party P,30080942,SISTERS OF CHARITY SETON UNIT,-539.61,22/06/2015
Delivery Units,Adults and Communities,Other Agencies - Third Party P,30080943,SISTERS OF CHARITY SETON UNIT,"2,216.41",22/06/2015
Delivery Units,Adults and Communities,Other Agencies - Third Party P,30080944,SISTERS OF CHARITY SETON UNIT,-559.33,22/06/2015
Delivery Units,Adults and Communities,Other Agencies - Third Party P,30079352,SNEH CARE,358.00,10/06/2015
Delivery Units,Adults and Communities,Other Agencies - Third Party P,30079353,SNEH CARE,358.00,10/06/2015
Delivery Units,Adults and Communities,Other Agencies - Third Party P,30082432,SNEH CARE,358.00,30/06/2015
Delivery Units,Adults and Communities,Other Agencies - Third Party P,30081523,SODEXO HEALTHCARE SERVICES LTD,"6,848.03",24/06/2015
Delivery Units,Adults and Communities,Other Agencies - Third Party P,30081524,SODEXO HEALTHCARE SERVICES LTD,"6,536.91",26/06/2015
Delivery Units,Adults and Communities,Other Agencies - Third Party P,30076822,SOMA HEALTHCARE LTD,622.50,15/06/2015
Delivery Units,Adults and Communities,Other Agencies - Third Party P,30076823,SOMA HEALTHCARE LTD,311.25,15/06/2015
Delivery Units,Adults and Communities,Other Agencies - Third Party P,30078446,SOMA HEALTHCARE LTD,622.50,15/06/2015
Delivery Units,Adults and Communities,Other Agencies - Third Party P,30078447,SOMA HEALTHCARE LTD,630.00,15/06/2015
Delivery Units,Adults and Communities,Other Agencies - Third Party P,30078448,SOMA HEALTHCARE LTD,460.00,15/06/2015
Delivery Units,Adults and Communities,Other Agencies - Third Party P,30078456,SOMA HEALTHCARE LTD,500.00,29/06/2015
Delivery Units,Adults and Communities,Other Agencies - Third Party P,30080699,SOMA HEALTHCARE LTD,390.00,22/06/2015
Delivery Units,Adults and Communities,Other Agencies - Third Party P,30078405,SONESTA NURSING HOME LTD.,"2,318.93",04/06/2015
Delivery Units,Adults and Communities,Other Agencies - Third Party P,30078408,SONESTA NURSING HOME LTD.,"2,318.93",04/06/2015
Delivery Units,Adults and Communities,Other Agencies - Third Party P,30078409,SONESTA NURSING HOME LTD.,"2,109.73",04/06/2015
Delivery Units,Adults and Communities,Other Agencies - Third Party P,30078410,SONESTA NURSING HOME LTD.,"2,570.70",04/06/2015
Delivery Units,Adults and Communities,Other Agencies - Third Party P,30079644,SPRINGDENE,"3,321.43",15/06/2015
Delivery Units,Adults and Communities,Other Agencies - Third Party P,30079957,SPRINGDENE,"12,857.14",17/06/2015
Delivery Units,Adults and Communities,Other Agencies - Third Party P,30079456,SPRINGVIEW,"3,100.00",11/06/2015
Delivery Units,Adults and Communities,Other Agencies - Third Party P,30078731,ST AGNELL'S HOUSE (CARETECH),"6,177.86",04/06/2015
Delivery Units,Adults and Communities,Other Agencies - Third Party P,30078370,ST DOMINIC'S NURSING HOME,"2,094.52",04/06/2015
Delivery Units,Adults and Communities,Other Agencies - Third Party P,30081434,ST DOMINIC'S NURSING HOME,"2,094.52",24/06/2015
Delivery Units,Adults and Communities,Other Agencies - Third Party P,30078738,ST ELIZABETH'S CENTRE,"11,753.34",04/06/2015
Delivery Units,Adults and Communities,Other Agencies - Third Party P,30079085,ST ELIZABETH'S CENTRE,"4,351.78",08/06/2015
Delivery Units,Adults and Communities,Other Agencies - Third Party P,30079086,ST ELIZABETH'S CENTRE,-561.32,08/06/2015
Delivery Units,Adults and Communities,Other Agencies - Third Party P,30079684,ST ELIZABETH'S CENTRE,"10,147.20",15/06/2015
Delivery Units,Adults and Communities,Other Agencies - Third Party P,30079685,ST ELIZABETH'S CENTRE,-373.86,15/06/2015
Delivery Units,Adults and Communities,Other Agencies - Third Party P,30079686,ST ELIZABETH'S CENTRE,"10,485.44",15/06/2015
Delivery Units,Adults and Communities,Other Agencies - Third Party P,30079687,ST ELIZABETH'S CENTRE,-385.95,15/06/2015
Delivery Units,Adults and Communities,Other Agencies - Third Party P,30079688,ST ELIZABETH'S CENTRE,"10,147.20",15/06/2015
Delivery Units,Adults and Communities,Other Agencies - Third Party P,30079689,ST ELIZABETH'S CENTRE,-373.50,15/06/2015
Delivery Units,Adults and Communities,Other Agencies - Third Party P,30078253,ST JOSEPH'S PASTORAL CENTRE,572.00,04/06/2015
Delivery Units,Adults and Communities,Other Agencies - Third Party P,30078254,ST JOSEPH'S PASTORAL CENTRE,606.00,04/06/2015
Delivery Units,Adults and Communities,Other Agencies - Third Party P,30078256,ST JOSEPH'S PASTORAL CENTRE,473.00,04/06/2015
Delivery Units,Adults and Communities,Other Agencies - Third Party P,30078257,ST JOSEPH'S PASTORAL CENTRE,599.00,04/06/2015
Delivery Units,Adults and Communities,Other Agencies - Third Party P,30078396,ST JOSEPH'S PASTORAL CENTRE,276.00,04/06/2015
